Workbook

Sheet VENTINELLA DEVIS EN LIGNE
A1: CALCULEZ VOTRE DEVIS EN LIGNE | E1: OFFRE VALABLE JUSQU'AU
E2: =NOW()+90 -> 2017-10-11T10:00:00.430
A3: Choisissez le matériau, le modèle et la couleur.Entrez les dimensions finies (en MM) et les quantités de vos vantaux. Ajoutez les options voulues. Cochez enlèvement (avec remise) ou livraison (mettez le No. de votre département).
A5: CIVILITÉ | C5: NOM ET/OU SOCIÉTÉ
A6: CLIENT | C6: RÉF. CHANTIER
A10: LIGNE | B10: LARGEUR VANTAIL | C10: HAUTEUR VANTAIL | D10: QUANTITÉ | E10: PRIX HT
A11: 1 | B11: 600 | C11: 2000 | D11: 4 | E11: =IF(G162="NOUS CONSULTER","NOUS CONSULTER",ROUNDUP((G38*D11),0)) -> 1228
A12: 2 | E12: 0
A13: 3 | E13: 0
A14: 4 | E14: 0
A15: 5 | E15: 0
A16: 6 | E16: 0
A17: 7 | E17: 0
A18: 8 | E18: 0
A19: 9 | E19: 0
A20: 10 | E20: 0
A21: Entrez le nombre total de traverses et battues requises. Entrez le nombre de vantaux que vous voulez à 3 barres ou à double Z | B21: TRAVERSES HORIZONTALES (MOD.1 à 4) | D21: 4 | E21: =D21*G48 -> 128
B22: BATTUES | D22: 2 | E22: =D22*G49 -> 50
B23: VANTAUX À 3 ème BARRE (MOD. 7) | D23: 0 | E23: =D23*G50 -> 0
B24: VANTAUX À DOUBLE " Z" (MOD. 8) | D24: 0 | E24: =D24*G51 -> 0
A25: Option valable pour tous les volets du devis | B25: JONCTION DROITE (PVC MOD.1 à 4) | E25: =G52 -> 0
A26: TOTAL VOLETS HT | E26: =SUM(E11:E25) -> 1406
A27: JE CHOISIS D'ENLEVER | C27: REMISE POUR ENLÈVEMENT | D27: =(($E$26*$E$145)-(($E$26*$E$145)/1.07)) -> 73.58504673 | E27: =IF($B$62=3,-(D27),0) -> -73.58504673
A28: JE CHOISIS D'ÊTRE LIVRÉ | C28: NO DE VOTRE DÉPARTEMENT | D28: 59 | E28: =IF(B62=2,IF(D75-(($E$26*$E$145)-($E$26*$E$145/1.04))<20,0,D75-(($E$26*$E$145)-($E$26*$E$145/1.04))),0) -> 0
A29: TOTAL FRANCO HT | E29: =E26+E27+E28 -> 1332.414953
A30: TVA 20% | E30: =E29*0.2 -> 266.4829907
A31: TOTAL FRANCO TTC | E31: =E29+E30 -> 1598.897944
A32: PRIX REMISÉ TTC. LA REMISE VOUS SERA COMMUNIQUÉE | D32: 0 | E32: =(E31)-(E31*D32) -> 1598.897944
A33: COMMENTAIRES
A35: Cliquez "Créer un PDF". Gardez une copie. Envoyez le PDF à direction@ventinella.com Vous recevrez votre remise personnalisée que vous entrez dans la case rouge.
A36: NOMBRE VANTAUX | B36: =SUM(D11:D20) -> 4 | C36: KG/M2 | D36: =IF(A161=1,C40,D40) -> 12 | F36: ORANJE OP POS F8 PLAATSEN
A37: TOTAL M2 | B37: =SUM(A40:A49) -> 4.8 | C37: TOTAL M3 | D37: =(((MAX(B11:B20)+50)*(MAX(C11:C20)+50)*(50*B36))+((MAX(B11:B20)+50)*(MAX(C11:C20)+50)*(200)))/1000000000 -> 0.533 | E37: RAPPORT POIDS/M3 | F37: NET | G37: MET MARGE | H37: CONTR
A38: POIDS TOTAL | B38: =B37*D36 -> 57.6 | C38: POIDS FR EXPR | D38: =D37*150 -> 79.95 | E38: =B38/D37 -> 108.0675422 | F38: =CEILING(G144,1) -> 246 | G38: =CEILING(H144,1) -> 307 | H38: =CEILING(G38*$E$145,1) -> 246
A39: Berekening M2 | B39: Keuze gewicht/m2 | F39: =CEILING(G145,1) -> 0 | G39: 0 | H39: =CEILING(G39*$E$145,1) -> 0
A40: =B11*C11*D11/1000000 -> 4.8 | B40: KEUZE | C40: =IF($A$161=1,IF($C$161=1,$C$41,IF($C$161=2,$C$42,IF($C$161=3,$C$43,IF($C$161=4,$C$44,IF($C$161=5,$C$45,IF($C$161=6,$C$46,IF($C$161=7,$C$47,"fout")))))))) -> 12 | D40: =IF($A$161=2,IF($C$161=1,$C$48,IF($C$161=2,$C$49,IF($C$161=3,$C$50,IF($C$161=4,$C$51,IF($C$161=5,$C$52,IF($C$161=6,$C$53,IF($C$161=7,$C$54,"fout")))))))) -> FALSE | F40: 0 | G40: 0 | H40: 0
A41: 0 | B41: PVC1 | C41: 12 | F41: 0 | G41: 0 | H41: 0
A42: 0 | B42: PVC2 | C42: 12 | F42: 0 | G42: 0 | H42: 0
A43: 0 | B43: PVC3 | C43: 16 | F43: 0 | G43: 0 | H43: 0
A44: 0 | B44: PVC4 | C44: 12 | F44: 0 | G44: 0 | H44: 0
A45: 0 | B45: PVC6 | C45: 16 | F45: 0 | G45: 0 | H45: 0
A46: 0 | B46: PVC7 | C46: 17 | F46: 0 | G46: 0 | H46: 0
A47: 0 | B47: PVC8 | C47: 18 | F47: 0 | G47: 0 | H47: 0
A48: 0 | B48: ALU1 | C48: 8 | F48: 25 | G48: 32 | H48: 26
A49: 0 | B49: ALU2 | C49: 14 | F49: 20 | G49: 25 | H49: 20
B50: ALU3 | C50: 18 | F50: 0 | G50: 0 | H50: 0
B51: ALU4 | C51: 18 | F51: 0 | G51: 0 | H51: 0
B52: ALU6 | C52: 9 | F52: 0 | G52: 0 | H52: 0
B53: ALU7 | C53: 10 | F53: =SUM(F38:F52) -> 291 | G53: 364 | H53: 292
B54: ALU8 | C54: 11
A60: CIVILITE | B60: 2 | C60: Mr. | D60: CLIENT | E60: 1 | F60: PROFESSIONNEL
C61: Mme. | F61: PARTICULIER
A62: ENLEVEMENT | B62: 3 | C62: PRO/PARTICULIER | D62: 1 | E62: =IF(B38<30,1,IF(AND(B38<40,B38>29),2,IF(AND(B38<50,B38>39),3,IF(AND(B38<60,B38>49),4,IF(AND(B38<70,B38>59),5,IF(AND(B38<80,B38>69),6,IF(AND(B38<90,B38>79),7,IF(AND(B38<100,B38>89),8,IF(B38>99,9,))))))))) -> 4
A63: 0 | B63: 0 | C63: zone Geodis | D63: =IF(VLOOKUP(D28,A63:B159,1)=D28,VLOOKUP(D28,A63:B159,2),"Fautif") -> 1 | E63: =IF(D63=0,1,IF(D63=1,2,IF(D63=2,3,IF(D63=3,4,IF(D63=4,5,IF(D63=5,6,IF(D63=6,7,IF(D63=7,8,IF(D63=8,9,IF(D63=9,10,IF(D63=10,11,IF(D63=11,12,IF(D63=12,13,"fout"))))))))))))) -> 2 | F63: 1 | G63: 2 | H63: 3 | I63: 4 | J63: 5 | K63: 6 | L63: 7 | M63: 8 | N63: 9
A64: 1 | B64: 7 | C64: tarif | D64: =IF(B38<100,INDEX(F65:N77,E63,E62),B38/100*INDEX(F65:N77,E63,E62)) -> 24.31 | F64: < 30 | G64: <40 | H64: <50 | I64: < 60 | J64: < 70 | K64: < 80 | L64: < 90 | M64: < 100 | N64: >100
A65: 2 | B65: 2 | C65: RDV TELEPH | D65: 6.5 | E65: Zone 00 | F65: 0 | G65: 0 | H65: 0 | I65: 0 | J65: 0 | K65: 0 | L65: 0 | M65: 0 | N65: 0
A66: 3 | B66: 7 | C66: SIGNATURE BL | D66: 2 | E66: Zone 01 | F66: 15.92 | G66: 19.14 | H66: 22.36 | I66: 24.31 | J66: 26.29 | K66: 28.24 | L66: 30.18 | M66: 32.16 | N66: 32.16
A67: 4 | B67: 11 | C67: ASSUR | D67: =MAX(12,E26*0.01) -> 14.06 | E67: Zone 02 | F67: 29.21 | G67: 32.49 | H67: 35.75 | I67: 39.04 | J67: 42.31 | K67: 45.57 | L67: 48.85 | M67: 52.13 | N67: 52.13
A68: 5 | B68: 10 | C68: ENVIRONMENT | D68: 1 | E68: Zone 03 | F68: 35.1 | G68: 39.62 | H68: 44.14 | I68: 48.65 | J68: 53.18 | K68: 57.7 | L68: 62.19 | M68: 66.71 | N68: 66.71
A69: 6 | B69: 12 | C69: FRAIS FIXE | D69: 9 | E69: Zone 04 | F69: 38.37 | G69: 43.4 | H69: 48.44 | I69: 53.47 | J69: 58.5 | K69: 63.53 | L69: 68.56 | M69: 73.6 | N69: 73.6
A70: 7 | B70: 9 | C70: PARIS | D70: =IF(OR(D28=75,D28=77,D28=78,D28=91,D28=92,D28=93,D28=94,D28=95),6,0) -> 0 | E70: Zone 05 | F70: 41.27 | G70: 46.63 | H70: 51.98 | I70: 57.33 | J70: 62.68 | K70: 68.03 | L70: 73.39 | M70: 78.75 | N70: 78.75
A71: 8 | B71: 3 | C71: TOTAL1 | D71: =IF(D63=0,0,SUM(D64:D70)) -> 56.87 | E71: Zone 06 | F71: 44.57 | G71: 50.25 | H71: 55.92 | I71: 61.58 | J71: 67.25 | K71: 72.92 | L71: 78.59 | M71: 84.25 | N71: 84.25
A72: 9 | B72: 12 | C72: SURCHARGE 8% | D72: =D71*0.08 -> 4.5496 | E72: Zone 07 | F72: 48.15 | G72: 54.03 | H72: 59.91 | I72: 65.79 | J72: 71.67 | K72: 77.55 | L72: 83.43 | M72: 89.32 | N72: 89.32
A73: 10 | B73: 5 | C73: TOTAL2 | D73: =D71+D72 -> 61.4196 | E73: Zone 08 | F73: 51.51 | G73: 57.55 | H73: 63.59 | I73: 69.63 | J73: 75.67 | K73: 81.71 | L73: 87.74 | M73: 93.78 | N73: 93.78
A74: 11 | B74: 12 | C74: EMBALLAGE | D74: =IF(D28=0,0,B36*10) -> 40 | E74: Zone 09 | F74: 55.12 | G74: 61.31 | H74: 67.5 | I74: 73.7 | J74: 79.89 | K74: 86.08 | L74: 92.27 | M74: 98.47 | N74: 98.47
A75: 12 | B75: 10 | C75: TOTAL3 | D75: =D73+D74 -> 101.4196 | E75: Zone 10 | F75: 58.98 | G75: 65.32 | H75: 71.67 | I75: 78.02 | J75: 84.36 | K75: 90.7 | L75: 97.05 | M75: 103.4 | N75: 103.4
A76: 13 | B76: 11 | E76: Zone 11 | F76: 62.52 | G76: 69.09 | H76: 75.67 | I76: 82.26 | J76: 88.82 | K76: 95.41 | L76: 101.98 | M76: 108.55 | N76: 108.55
A77: 14 | B77: 5 | E77: Zone 12 | F77: 65.64 | G77: 72.24 | H77: 78.84 | I77: 85.4 | J77: 92.03 | K77: 98.63 | L77: 105.22 | M77: 111.83 | N77: 111.83
A78: 15 | B78: 10
A79: 16 | B79: 8
A80: 17 | B80: 8
A81: 18 | B81: 6
A82: 19 | B82: 9
A83: 21 | B83: 6
A84: 22 | B84: 8 | H84: 6
A85: 23 | B85: 7
A86: 24 | B86: 9
A87: 25 | B87: 7
A88: 26 | B88: 9
A89: 27 | B89: 4
A90: 28 | B90: 5
A91: 30 | B91: 11
A92: 31 | B92: 11
A93: 32 | B93: 11
A94: 33 | B94: 9
A95: 34 | B95: 11
A96: 35 | B96: 7
A97: 36 | B97: 6
A98: 37 | B98: 6
A99: 38 | B99: 9
A100: 39 | B100: 7
A101: 40 | B101: 11
A102: 41 | B102: 6
A103: 42 | B103: 8
A104: 43 | B104: 9
A105: 44 | B105: 7
A106: 45 | B106: 5
A107: 46 | B107: 10
A108: 47 | B108: 10
A109: 48 | B109: 10
A110: 49 | B110: 6
A111: 50 | B111: 5
A112: 51 | B112: 3
A113: 52 | B113: 5
A114: 53 | B114: 6
A115: 54 | B115: 5
A116: 55 | B116: 5
A117: 56 | B117: 8
A118: 57 | B118: 5
A119: 58 | B119: 6
A120: 59 | B120: 1
A121: 60 | B121: 3
A122: 61 | B122: 5
A123: 62 | B123: 2
A124: 63 | B124: 8
A125: 64 | B125: 12
A126: 65 | B126: 12
A127: 66 | B127: 12
A128: 67 | B128: 7
A129: 68 | B129: 7
A130: 69 | B130: 8
A131: 70 | B131: 6
A132: 71 | B132: 7
A133: 72 | B133: 6
A134: 73 | B134: 9
A135: 74 | B135: 9
A136: 75 | B136: 4
A137: 76 | B137: 3
A138: 77 | B138: 4
A139: 78 | B139: 4
A140: 79 | B140: 8
A141: 80 | B141: 2
A142: 81 | B142: 11
A143: 82 | B143: 10 | G143: PROBON | H143: MET MARGE | I143: CONTROLE
A144: 83 | B144: 12 | D144: TOEGESTANE KORTING IN PERCENT | E144: 20 | F144: POS1 | G144: =G162 -> 245.03 | H144: =G144/$E$145 -> 306.2875 | I144: =H144*$E$145 -> 245.03
A145: 84 | B145: 10 | D145: COEFFICIENT | E145: =(1-(E144/100)) -> 0.8 | F145: POS2 | G145: 0 | H145: =G145/$E$145 -> 0 | I145: =H145*$E$145 -> 0
A146: 85 | B146: 8 | F146: POS3 | G146: 0 | H146: 0 | I146: 0
A147: 86 | B147: 7 | F147: POS4 | G147: 0 | H147: 0 | I147: 0
A148: 87 | B148: 8 | F148: POS5 | G148: 0 | H148: 0 | I148: 0
A149: 88 | B149: 6 | F149: POS6 | G149: 0 | H149: 0 | I149: 0
A150: 89 | B150: 5 | F150: POS7 | G150: 0 | H150: 0 | I150: 0
A151: 90 | B151: 7 | F151: POS8 | G151: 0 | H151: 0 | I151: 0
A152: 91 | B152: 4 | F152: POS9 | G152: 0 | H152: 0 | I152: 0
A153: 92 | B153: 4 | F153: POS10 | G153: 0 | H153: 0 | I153: 0
A154: 93 | B154: 4 | F154: TR | G154: =B165 -> 25 | H154: 31.25 | I154: 25
A155: 94 | B155: 4 | F155: BAT | G155: =B166 -> 20 | H155: 25 | I155: 20
A156: 95 | B156: 4 | F156: BAR | G156: 0 | H156: 0 | I156: 0
A157: 96 | B157: 12 | F157: ZZ | G157: 0 | H157: 0 | I157: 0
A158: 97 | B158: 12 | F158: HVL | G158: 0 | H158: 0 | I158: 0
A159: 98 | B159: 12
A161: 1 | B161: PVC | C161: 1 | D161: MODÈLE 1 | E161: 3 | F161: BLANC | G161: KEUZE | H161: PVC1WIT | I161: PVC1 KL | J161: PVC2WIT | K161: PVC2 KL | L161: PVC3WIT | M161: PVC3 KL | N161: PVC4WIT | O161: PVC4 KL | P161: PVC6WIT | Q161: PVC6 KL | R161: PVC7WIT | S161: PVC7 KL | T161: PVC8WIT | U161: PVC8 KL | V161: ALU1RAL | W161: ALU1 HOUT | X161: ALU2RAL | Y161: ALU2 HOUT | Z161: ALU3RAL | AA161: ALU3 HOUT | AB161: ALU4RAL | AC161: ALU4 HOUT | AD161: ALU6RAL | AE161: ALU6 HOUT | AF161: ALU7RAL | AG161: ALU7 HOUT | AH161: ALU8RAL | AI161: ALU8 HOUT
B162: ALU | D162: MODÈLE 2 | F162: TEINTE RAL | G162: =INDEX(H162:AI162,$B$163) -> 245.03 | H162: =IF(OR($B11=0,$C11=0),0,IF(OR($C11<500,$C11>2500,$B11<350,$B11>750),"NOUS CONSULTER",IFERROR(INDEX($B$196:$I$214,MAX(1,(ROUNDUP($C11/100,0)-6)),MAX(1,(ROUNDUP($B11/50,0)-7))),TRUE))) -> 170.13 | I162: =IF(OR($B11=0,$C11=0),0,IF(OR($C11<500,$C11>2500,$B11<350,$B11>750),"NOUS CONSULTER",IFERROR(INDEX($J$196:$Q$214,MAX(1,(ROUNDUP($C11/100,0)-6)),MAX(1,(ROUNDUP($B11/50,0)-7))),TRUE))) -> 245.03 | J162: =IF(OR($B11=0,$C11=0),0,IF(OR($C11<500,$C11>2500,$B11<350,$B11>750),"NOUS CONSULTER",IFERROR(INDEX($R$196:$Y$214,MAX(1,(ROUNDUP($C11/100,0)-6)),MAX(1,(ROUNDUP($B11/50,0)-7))),TRUE))) -> 165.85 | K162: =IF(OR($B11=0,$C11=0),0,IF(OR($C11<500,$C11>2500,$B11<350,$B11>750),"NOUS CONSULTER",IFERROR(INDEX($Z$196:$AG$214,MAX(1,(ROUNDUP($C11/100,0)-6)),MAX(1,(ROUNDUP($B11/50,0)-7))),TRUE))) -> 235.4 | L162: =IF(OR($B11=0,$C11=0),0,IF(OR($C11<500,$C11>2500,$B11<350,$B11>750),"NOUS CONSULTER",IFERROR(INDEX($AH$196:$AO$214,MAX(1,(ROUNDUP($C11/100,0)-6)),MAX(1,(ROUNDUP($B11/50,0)-7))),TRUE))) -> 201.16 | M162: =IF(OR($B11=0,$C11=0),0,IF(OR($C11<500,$C11>2500,$B11<350,$B11>750),"NOUS CONSULTER",IFERROR(INDEX($AP$196:$AW$214,MAX(1,(ROUNDUP($C11/100,0)-6)),MAX(1,(ROUNDUP($B11/50,0)-7))),TRUE))) -> 263.22 | N162: =IF(OR($B11=0,$C11=0),0,IF(OR($C11<500,$C11>2500,$B11<350,$B11>750),"NOUS CONSULTER",IFERROR(INDEX($AX$196:$BE$214,MAX(1,(ROUNDUP($C11/100,0)-6)),MAX(1,(ROUNDUP($B11/50,0)-7))),TRUE))) -> 243.96 | O162: =IF(OR($B11=0,$C11=0),0,IF(OR($C11<500,$C11>2500,$B11<350,$B11>750),"NOUS CONSULTER",IFERROR(INDEX($BF$196:$BM$214,MAX(1,(ROUNDUP($C11/100,0)-6)),MAX(1,(ROUNDUP($B11/50,0)-7))),TRUE))) -> 280.34 | P162: =IF(OR($B11=0,$C11=0),0,IF(OR($C11<500,$C11>2500,$B11<350,$B11>750),"NOUS CONSULTER",IFERROR(INDEX($BN$196:$BU$214,MAX(1,(ROUNDUP($C11/100,0)-6)),MAX(1,(ROUNDUP($B11/50,0)-7))),TRUE))) -> 85.29612 | Q162: =IF(OR($B11=0,$C11=0),0,IF(OR($C11<500,$C11>2500,$B11<350,$B11>750),"NOUS CONSULTER",IFERROR(INDEX($BV$196:$CC$214,MAX(1,(ROUNDUP($C11/100,0)-6)),MAX(1,(ROUNDUP($B11/50,0)-7))),TRUE))) -> 188.11884 | R162: =IF(OR($B11=0,$C11=0),0,IF(OR($C11<500,$C11>2500,$B11<350,$B11>750),"NOUS CONSULTER",IFERROR(INDEX($CD$196:$CK$214,MAX(1,(ROUNDUP($C11/100,0)-6)),MAX(1,(ROUNDUP($B11/50,0)-7))),TRUE))) -> 102.71144 | S162: =IF(OR($B11=0,$C11=0),0,IF(OR($C11<500,$C11>2500,$B11<350,$B11>750),"NOUS CONSULTER",IFERROR(INDEX($CL$196:$CS$214,MAX(1,(ROUNDUP($C11/100,0)-6)),MAX(1,(ROUNDUP($B11/50,0)-7))),TRUE))) -> 223.89536 | T162: =IF(OR($B11=0,$C11=0),0,IF(OR($C11<500,$C11>2500,$B11<350,$B11>750),"NOUS CONSULTER",IFERROR(INDEX($CT$196:$DA$214,MAX(1,(ROUNDUP($C11/100,0)-6)),MAX(1,(ROUNDUP($B11/50,0)-7))),TRUE))) -> 121.96288 | U162: =IF(OR($B11=0,$C11=0),0,IF(OR($C11<500,$C11>2500,$B11<350,$B11>750),"NOUS CONSULTER",IFERROR(INDEX($DB$196:$DI$214,MAX(1,(ROUNDUP($C11/100,0)-6)),MAX(1,(ROUNDUP($B11/50,0)-7))),TRUE))) -> 248.65516 | V162: =IF(OR($B11=0,$C11=0),0,IF(OR($C11<500,$C11>2500,$B11<350,$B11>750),"NOUS CONSULTER",IFERROR(INDEX($DJ$196:$DQ$214,MAX(1,(ROUNDUP($C11/100,0)-6)),MAX(1,(ROUNDUP($B11/50,0)-7))),TRUE))) -> 212.07186 | W162: =IF(OR($B11=0,$C11=0),0,IF(OR($C11<500,$C11>2500,$B11<350,$B11>750),"NOUS CONSULTER",IFERROR(INDEX($DR$196:$DY$214,MAX(1,(ROUNDUP($C11/100,0)-6)),MAX(1,(ROUNDUP($B11/50,0)-7))),TRUE))) -> 310.22082 | X162: =IF(OR($B11=0,$C11=0),0,IF(OR($C11<500,$C11>2500,$B11<350,$B11>750),"NOUS CONSULTER",IFERROR(INDEX($DZ$196:$EG$214,MAX(1,(ROUNDUP($C11/100,0)-6)),MAX(1,(ROUNDUP($B11/50,0)-7))),TRUE))) -> 299.70486 | Y162: =IF(OR($B11=0,$C11=0),0,IF(OR($C11<500,$C11>2500,$B11<350,$B11>750),"NOUS CONSULTER",IFERROR(INDEX($EH$196:$EO$214,MAX(1,(ROUNDUP($C11/100,0)-6)),MAX(1,(ROUNDUP($B11/50,0)-7))),TRUE))) -> 388.21419 | Z162: =IF(OR($B11=0,$C11=0),0,IF(OR($C11<500,$C11>2500,$B11<350,$B11>750),"NOUS CONSULTER",IFERROR(INDEX($EP$196:$EW$214,MAX(1,(ROUNDUP($C11/100,0)-6)),MAX(1,(ROUNDUP($B11/50,0)-7))),TRUE))) -> 254.8805805 | AA162: =IF(OR($B11=0,$C11=0),0,IF(OR($C11<500,$C11>2500,$B11<350,$B11>750),"NOUS CONSULTER",IFERROR(INDEX($EX$196:$FE$214,MAX(1,(ROUNDUP($C11/100,0)-6)),MAX(1,(ROUNDUP($B11/50,0)-7))),TRUE))) -> 350.5758165 | AB162: =IF(OR($B11=0,$C11=0),0,IF(OR($C11<500,$C11>2500,$B11<350,$B11>750),"NOUS CONSULTER",IFERROR(INDEX($FF$196:$FM$214,MAX(1,(ROUNDUP($C11/100,0)-6)),MAX(1,(ROUNDUP($B11/50,0)-7))),TRUE))) -> 242.74341 | AC162: =IF(OR($B11=0,$C11=0),0,IF(OR($C11<500,$C11>2500,$B11<350,$B11>750),"NOUS CONSULTER",IFERROR(INDEX($FN$196:$FU$214,MAX(1,(ROUNDUP($C11/100,0)-6)),MAX(1,(ROUNDUP($B11/50,0)-7))),TRUE))) -> 333.88173 | AD162: =IF(OR($B11=0,$C11=0),0,IF(OR($C11<500,$C11>2500,$B11<350,$B11>750),"NOUS CONSULTER",IFERROR(INDEX($FV$196:$GC$214,MAX(1,(ROUNDUP($C11/100,0)-6)),MAX(1,(ROUNDUP($B11/50,0)-7))),TRUE))) -> 182.27664 | AE162: =IF(OR($B11=0,$C11=0),0,IF(OR($C11<500,$C11>2500,$B11<350,$B11>750),"NOUS CONSULTER",IFERROR(INDEX($GD$196:$GK$214,MAX(1,(ROUNDUP($C11/100,0)-6)),MAX(1,(ROUNDUP($B11/50,0)-7))),TRUE))) -> 241.86708 | AF162: =IF(OR($B11=0,$C11=0),0,IF(OR($C11<500,$C11>2500,$B11<350,$B11>750),"NOUS CONSULTER",IFERROR(INDEX($GL$196:$GS$214,MAX(1,(ROUNDUP($C11/100,0)-6)),MAX(1,(ROUNDUP($B11/50,0)-7))),TRUE))) -> 213.82452 | AG162: =IF(OR($B11=0,$C11=0),0,IF(OR($C11<500,$C11>2500,$B11<350,$B11>750),"NOUS CONSULTER",IFERROR(INDEX($GT$196:$HA$214,MAX(1,(ROUNDUP($C11/100,0)-6)),MAX(1,(ROUNDUP($B11/50,0)-7))),TRUE))) -> 280.4256 | AH162: =IF(OR($B11=0,$C11=0),0,IF(OR($C11<500,$C11>2500,$B11<350,$B11>750),"NOUS CONSULTER",IFERROR(INDEX($HB$196:$HI$214,MAX(1,(ROUNDUP($C11/100,0)-6)),MAX(1,(ROUNDUP($B11/50,0)-7))),TRUE))) -> 235.73277 | AI162: =IF(OR($B11=0,$C11=0),0,IF(OR($C11<500,$C11>2500,$B11<350,$B11>750),"NOUS CONSULTER",IFERROR(INDEX($HJ$196:$HQ$214,MAX(1,(ROUNDUP($C11/100,0)-6)),MAX(1,(ROUNDUP($B11/50,0)-7))),TRUE))) -> 309.34449
A163: =IF($A$161=1,IF($C$161=1,IF($E$161=1,1,2),IF($C$161=2,IF($E$161=1,3,4),IF($C$161=3,IF($E$161=1,5,6),IF($C$161=4,IF($E$161=1,7,8),IF($C$161=5,IF($E$161=1,9,10),IF($C$161=6,IF($E$161=1,11,12),IF($C$161=7,IF($E$161=1,13,14)))))))),99) -> 2 | B163: =MIN(A163,A164) -> 2 | D163: MODÈLE 3 | F163: TON BOIS | G163: 0 | H163: 0 | I163: 0 | J163: 0 | K163: 0 | L163: 0 | M163: 0 | N163: 0 | O163: 0 | P163: 0 | Q163: 0 | R163: 0 | S163: 0 | T163: 0 | U163: 0 | V163: 0 | W163: 0 | X163: 0 | Y163: 0 | Z163: 0 | AA163: 0 | AB163: 0 | AC163: 0 | AD163: 0 | AE163: 0 | AF163: 0 | AG163: 0 | AH163: 0 | AI163: 0
A164: =IF($A$161=2,IF($C$161=1,IF($E$161=3,16,15),IF($C$161=2,IF($E$161=3,18,17),IF($C$161=3,IF($E$161=3,20,19),IF($C$161=4,IF($E$161=3,22,21),IF($C$161=5,IF($E$161=3,24,23),IF($C$161=6,IF($E$161=3,26,25),IF($C$161=7,IF($E$161=3,28,27)))))))),99) -> 99 | D164: MODÈLE 4 | G164: 0 | H164: 0 | I164: 0 | J164: 0 | K164: 0 | L164: 0 | M164: 0 | N164: 0 | O164: 0 | P164: 0 | Q164: 0 | R164: 0 | S164: 0 | T164: 0 | U164: 0 | V164: 0 | W164: 0 | X164: 0 | Y164: 0 | Z164: 0 | AA164: 0 | AB164: 0 | AC164: 0 | AD164: 0 | AE164: 0 | AF164: 0 | AG164: 0 | AH164: 0 | AI164: 0
A165: TR | B165: =IF(A161=1,25,IF(AND(A161=2,C161=3),35,IF(AND(A161=2,OR(C161=1,C161=2,C161=4)),30,0))) -> 25 | D165: MODÈLE 6 | G165: 0 | H165: 0 | I165: 0 | J165: 0 | K165: 0 | L165: 0 | M165: 0 | N165: 0 | O165: 0 | P165: 0 | Q165: 0 | R165: 0 | S165: 0 | T165: 0 | U165: 0 | V165: 0 | W165: 0 | X165: 0 | Y165: 0 | Z165: 0 | AA165: 0 | AB165: 0 | AC165: 0 | AD165: 0 | AE165: 0 | AF165: 0 | AG165: 0 | AH165: 0 | AI165: 0
A166: BAT | B166: =IF(AND(A161=1,E161=1),15,20) -> 20 | D166: MODÈLE 7 | G166: 0 | H166: 0 | I166: 0 | J166: 0 | K166: 0 | L166: 0 | M166: 0 | N166: 0 | O166: 0 | P166: 0 | Q166: 0 | R166: 0 | S166: 0 | T166: 0 | U166: 0 | V166: 0 | W166: 0 | X166: 0 | Y166: 0 | Z166: 0 | AA166: 0 | AB166: 0 | AC166: 0 | AD166: 0 | AE166: 0 | AF166: 0 | AG166: 0 | AH166: 0 | AI166: 0
A167: BAR | B167: =IF(OR(C161=1,C161=2,C161=3,C161=4),0,IF(AND($A$161=1,$E$161=1),10,IF(AND($A$161=1,$E$161<>1),15,IF($A$161=2,28,0)))) -> 0 | D167: MODÈLE 8 | G167: 0 | H167: 0 | I167: 0 | J167: 0 | K167: 0 | L167: 0 | M167: 0 | N167: 0 | O167: 0 | P167: 0 | Q167: 0 | R167: 0 | S167: 0 | T167: 0 | U167: 0 | V167: 0 | W167: 0 | X167: 0 | Y167: 0 | Z167: 0 | AA167: 0 | AB167: 0 | AC167: 0 | AD167: 0 | AE167: 0 | AF167: 0 | AG167: 0 | AH167: 0 | AI167: 0
A168: ZZ | B168: =IF(OR(C161=1,C161=2,C161=3,C161=4),0,IF(AND($A$161=1,$E$161=1),20,IF(AND($A$161=1,$E$161<>1),30,IF($A$161=2,50,0)))) -> 0 | G168: 0 | H168: 0 | I168: 0 | J168: 0 | K168: 0 | L168: 0 | M168: 0 | N168: 0 | O168: 0 | P168: 0 | Q168: 0 | R168: 0 | S168: 0 | T168: 0 | U168: 0 | V168: 0 | W168: 0 | X168: 0 | Y168: 0 | Z168: 0 | AA168: 0 | AB168: 0 | AC168: 0 | AD168: 0 | AE168: 0 | AF168: 0 | AG168: 0 | AH168: 0 | AI168: 0
A169: HVL | B169: =IF(AND(A161=1,C169=TRUE, OR(C161=1,C161=2,C161=3,C161=4)),SUM(E11:E20)*0.15,0) -> 0 | C169: FALSE | G169: 0 | H169: 0 | I169: 0 | J169: 0 | K169: 0 | L169: 0 | M169: 0 | N169: 0 | O169: 0 | P169: 0 | Q169: 0 | R169: 0 | S169: 0 | T169: 0 | U169: 0 | V169: 0 | W169: 0 | X169: 0 | Y169: 0 | Z169: 0 | AA169: 0 | AB169: 0 | AC169: 0 | AD169: 0 | AE169: 0 | AF169: 0 | AG169: 0 | AH169: 0 | AI169: 0
G170: 0 | H170: 0 | I170: 0 | J170: 0 | K170: 0 | L170: 0 | M170: 0 | N170: 0 | O170: 0 | P170: 0 | Q170: 0 | R170: 0 | S170: 0 | T170: 0 | U170: 0 | V170: 0 | W170: 0 | X170: 0 | Y170: 0 | Z170: 0 | AA170: 0 | AB170: 0 | AC170: 0 | AD170: 0 | AE170: 0 | AF170: 0 | AG170: 0 | AH170: 0 | AI170: 0
G171: 0 | H171: 0 | I171: 0 | J171: 0 | K171: 0 | L171: 0 | M171: 0 | N171: 0 | O171: 0 | P171: 0 | Q171: 0 | R171: 0 | S171: 0 | T171: 0 | U171: 0 | V171: 0 | W171: 0 | X171: 0 | Y171: 0 | Z171: 0 | AA171: 0 | AB171: 0 | AC171: 0 | AD171: 0 | AE171: 0 | AF171: 0 | AG171: 0 | AH171: 0 | AI171: 0
B172: PVC 1 WIT | J172: PVC 1 KLEUR | R172: PVC 2 WIT | Z172: PVC 2 KLEUR | AH172: PVC 3 WIT | AP172: PVC 3 KLEUR | AX172: PVC 4 WIT | BF172: PVC 4 KLEUR | BN172: PVC 6 WIT | BV172: PVC 6 KLEUR | CD172: PVC 7 WIT | CL172: PVC 7 KLEUR | CT172: PVC 8 WIT | DB172: PVC 8 KLEUR | DJ172: ALU 1 RAL | DR172: ALU 1 HOUT | DZ172: ALU 2 RAL | EH172: ALU 2 HOUT | EP172: ALU 3 RAL | EX172: ALU 3 HOUT | FF172: ALU 4 RAL | FN172: ALU 4 HOUT | FV172: ALU 6 RAL | GD172: ALU 6 HOUT | GL172: ALU 7 RAL | GT172: ALU 7 HOUT | HB172: ALU 8 RAL | HJ172: ALU 8 HOUT
B173: 400 | C173: 450 | D173: 500 | E173: 550 | F173: 600 | G173: 650 | H173: 700 | I173: 750 | J173: 400 | K173: 450 | L173: 500 | M173: 550 | N173: 600 | O173: 650 | P173: 700 | Q173: 750 | R173: 400 | S173: 450 | T173: 500 | U173: 550 | V173: 600 | W173: 650 | X173: 700 | Y173: 750 | Z173: 400 | AA173: 450 | AB173: 500 | AC173: 550 | AD173: 600 | AE173: 650 | AF173: 700 | AG173: 750 | AH173: 400 | AI173: 450 | AJ173: 500 | AK173: 550 | AL173: 600 | AM173: 650 | AN173: 700 | AO173: 750 | AP173: 400 | AQ173: 450 | AR173: 500 | AS173: 550 | AT173: 600 | AU173: 650 | AV173: 700 | AW173: 750 | AX173: 400 | AY173: 450 | AZ173: 500 | BA173: 550 | BB173: 600 | BC173: 650 | BD173: 700 | BE173: 750 | BF173: 400 | BG173: 450 | BH173: 500 | BI173: 550 | BJ173: 600 | BK173: 650 | BL173: 700 | BM173: 750 | BN173: 400 | BO173: 450 | BP173: 500 | BQ173: 550 | BR173: 600 | BS173: 650 | BT173: 700 | BU173: 750 | BV173: 400 | BW173: 450 | BX173: 500 | BY173: 550 | BZ173: 600 | CA173: 650 | CB173: 700 | CC173: 750 | CD173: 400 | CE173: 450 | CF173: 500 | CG173: 550 | CH173: 600 | CI173: 650 | CJ173: 700 | CK173: 750 | CL173: 400 | CM173: 450 | CN173: 500 | CO173: 550 | CP173: 600 | CQ173: 650 | CR173: 700 | CS173: 750 | CT173: 400 | CU173: 450 | CV173: 500 | CW173: 550 | CX173: 600 | CY173: 650 | CZ173: 700 | DA173: 750 | DB173: 400 | DC173: 450 | DD173: 500 | DE173: 550 | DF173: 600 | DG173: 650 | DH173: 700 | DI173: 750 | DJ173: 400 | DK173: 450 | DL173: 500 | DM173: 550 | DN173: 600 | DO173: 650 | DP173: 700 | DQ173: 750 | DR173: 400 | DS173: 450 | DT173: 500 | DU173: 550 | DV173: 600 | DW173: 650 | DX173: 700 | DY173: 750 | DZ173: 400 | EA173: 450 | EB173: 500 | EC173: 550 | ED173: 600 | EE173: 650 | EF173: 700 | EG173: 750 | EH173: 400 | EI173: 450 | EJ173: 500 | EK173: 550 | EL173: 600 | EM173: 650 | EN173: 700 | EO173: 750 | EP173: 400 | EQ173: 450 | ER173: 500 | ES173: 550 | ET173: 600 | EU173: 650 | EV173: 700 | EW173: 750 | EX173: 400 | EY173: 450 | EZ173: 500 | FA173: 550 | FB173: 600 | FC173: 650 | FD173: 700 | FE173: 750 | FF173: 400 | FG173: 450 | FH173: 500 | FI173: 550 | FJ173: 600 | FK173: 650 | FL173: 700 | FM173: 750 | FN173: 400 | FO173: 450 | FP173: 500 | FQ173: 550 | FR173: 600 | FS173: 650 | FT173: 700 | FU173: 750 | FV173: 400 | FW173: 450 | FX173: 500 | FY173: 550 | FZ173: 600 | GA173: 650 | GB173: 700 | GC173: 750 | GD173: 400 | GE173: 450 | GF173: 500 | GG173: 550 | GH173: 600 | GI173: 650 | GJ173: 700 | GK173: 750 | GL173: 400 | GM173: 450 | GN173: 500 | GO173: 550 | GP173: 600 | GQ173: 650 | GR173: 700 | GS173: 750 | GT173: 400 | GU173: 450 | GV173: 500 | GW173: 550 | GX173: 600 | GY173: 650 | GZ173: 700 | HA173: 750 | HB173: 400 | HC173: 450 | HD173: 500 | HE173: 550 | HF173: 600 | HG173: 650 | HH173: 700 | HI173: 750 | HJ173: 400 | HK173: 450 | HL173: 500 | HM173: 550 | HN173: 600 | HO173: 650 | HP173: 700 | HQ173: 750
A174: 700 | B174: 67 | C174: 68 | D174: 70 | E174: 71 | F174: 72 | G174: 73 | H174: 74 | I174: 77.9025 | J174: 109 | K174: 113 | L174: 117 | M174: 121 | N174: 125 | O174: 128 | P174: 132 | Q174: 136 | R174: 66 | S174: 67 | T174: 68 | U174: 69 | V174: 70 | W174: 71 | X174: 72 | Y174: 74.9025 | Z174: 107 | AA174: 110 | AB174: 114 | AC174: 117 | AD174: 120 | AE174: 124 | AF174: 127 | AG174: 130 | AH174: 73 | AI174: 74 | AJ174: 77 | AK174: 78 | AL174: 81 | AM174: 84 | AN174: 84 | AO174: 88.9025 | AP174: 115 | AQ174: 116 | AR174: 122 | AS174: 123 | AT174: 130 | AU174: 136 | AV174: 137 | AW174: 143 | AX174: 80 | AY174: 83 | AZ174: 86 | BA174: 90 | BB174: 93 | BC174: 97 | BD174: 100 | BE174: 105.9025 | BF174: 115 | BG174: 120 | BH174: 125 | BI174: 130 | BJ174: 135 | BK174: 140 | BL174: 144 | BM174: 149 | BN174: 30.5604 | BO174: 32.43045 | BP174: 34.3005 | BQ174: 36.17055 | BR174: 38.0406 | BS174: 39.91065 | BT174: 41.7807 | BU174: 43.65075 | BV174: 52.9828 | BW174: 57.65565 | BX174: 62.3285 | BY174: 67.00135 | BZ174: 71.6742 | CA174: 76.34705 | CB174: 81.0199 | CC174: 85.69275 | CD174: 38.3448 | CE174: 40.5379 | CF174: 42.731 | CG174: 44.9241 | CH174: 47.1172 | CI174: 49.3103 | CJ174: 51.5034 | CK174: 53.6965 | CL174: 64.7712 | CM174: 70.2676 | CN174: 75.764 | CO174: 81.2604 | CP174: 86.7568 | CQ174: 92.2532 | CR174: 97.7496 | CS174: 103.246 | CT174: 46.5296 | CU174: 49.0958 | CV174: 51.662 | CW174: 54.2282 | CX174: 56.7944 | CY174: 59.3606 | CZ174: 61.9268 | DA174: 64.493 | DB174: 78 | DC174: 80.17685 | DD174: 86.1965 | DE174: 92.21615 | DF174: 98.2358 | DG174: 104.25545 | DH174: 110.2751 | DI174: 116.29475 | DJ174: 90.09 | DK174: 93.366 | DL174: 97.461 | DM174: 100.737 | DN174: 104.832 | DO174: 108.108 | DP174: 113.022 | DQ174: 116.298 | DR174: 117.936 | DS174: 123.669 | DT174: 129.402 | DU174: 135.954 | DV174: 142.506 | DW174: 148.239 | DX174: 153.972 | DY174: 160.524 | DZ174: 120.393 | EA174: 124.488 | EB174: 130.221 | EC174: 134.316 | ED174: 139.23 | EE174: 144.963 | EF174: 149.058 | EG174: 153.153 | EH174: 144.144 | EI174: 150.696 | EJ174: 158.067 | EK174: 165.438 | EL174: 173.628 | EM174: 180.18 | EN174: 187.551 | EO174: 194.103 | EP174: 113.5134 | EQ174: 118.6731 | ER174: 122.97285 | ES174: 127.2726 | ET174: 130.7124 | EU174: 135.8721 | EV174: 140.17185 | EW174: 145.33155 | EX174: 139.3119 | EY174: 147.05145 | EZ174: 154.791 | FA174: 160.81065 | FB174: 168.5502 | FC174: 175.4298 | FD174: 184.0293 | FE174: 190.9089 | FF174: 108.108 | FG174: 113.022 | FH174: 117.117 | FI174: 121.212 | FJ174: 124.488 | FK174: 129.402 | FL174: 133.497 | FM174: 138.411 | FN174: 132.678 | FO174: 140.049 | FP174: 147.42 | FQ174: 153.153 | FR174: 160.524 | FS174: 167.076 | FT174: 175.266 | FU174: 181.818 | FV174: 70.434 | FW174: 74.529 | FX174: 78.624 | FY174: 81.9 | FZ174: 85.995 | GA174: 90.909 | GB174: 94.185 | GC174: 98.28 | GD174: 88.452 | GE174: 94.185 | GF174: 99.918 | GG174: 106.47 | GH174: 112.203 | GI174: 117.117 | GJ174: 123.669 | GK174: 128.583 | GL174: 93.366 | GM174: 98.28 | GN174: 103.194 | GO174: 108.927 | GP174: 113.841 | GQ174: 117.936 | GR174: 123.669 | GS174: 128.583 | GT174: 115.479 | GU174: 122.85 | GV174: 129.402 | GW174: 136.773 | GX174: 143.325 | GY174: 150.696 | GZ174: 158.067 | HA174: 164.619 | HB174: 99.918 | HC174: 105.651 | HD174: 111.384 | HE174: 115.479 | HF174: 122.031 | HG174: 126.945 | HH174: 131.859 | HI174: 137.592 | HJ174: 123.669 | HK174: 131.859 | HL174: 139.23 | HM174: 147.42 | HN174: 153.972 | HO174: 162.981 | HP174: 169.533 | HQ174: 177.723
A175: 800 | B175: 69 | C175: 70 | D175: 71 | E175: 73 | F175: 74 | G175: 76.458 | H175: 82.014 | I175: 86.57 | J175: 114 | K175: 118 | L175: 122 | M175: 126 | N175: 130 | O175: 135 | P175: 139 | Q175: 143 | R175: 68 | S175: 69 | T175: 70 | U175: 71 | V175: 72 | W175: 74.458 | X175: 80.014 | Y175: 84.57 | Z175: 112 | AA175: 116 | AB175: 120 | AC175: 123 | AD175: 127 | AE175: 131 | AF175: 135 | AG175: 139 | AH175: 76 | AI175: 77 | AJ175: 80 | AK175: 81 | AL175: 84 | AM175: 89.458 | AN175: 93.014 | AO175: 100.57 | AP175: 121 | AQ175: 122 | AR175: 129 | AS175: 130 | AT175: 137 | AU175: 144 | AV175: 145 | AW175: 153 | AX175: 83 | AY175: 87 | AZ175: 91 | BA175: 95 | BB175: 99 | BC175: 104.458 | BD175: 112.014 | BE175: 119.57 | BF175: 121 | BG175: 127 | BH175: 132 | BI175: 138 | BJ175: 143 | BK175: 149 | BL175: 154 | BM175: 160 | BN175: 32.6976 | BO175: 34.8348 | BP175: 36.972 | BQ175: 39.1092 | BR175: 41.2464 | BS175: 43.3836 | BT175: 45.5208 | BU175: 47.658 | BV175: 58.3232 | BW175: 63.6636 | BX175: 69.004 | BY175: 74.3444 | BZ175: 79.6848 | CA175: 85.0252 | CB175: 90.3656 | CC175: 95.706 | CD175: 40.8512 | CE175: 43.3576 | CF175: 45.864 | CG175: 48.3704 | CH175: 50.8768 | CI175: 53.3832 | CJ175: 55.8896 | CK175: 58.396 | CL175: 71.0528 | CM175: 77.3344 | CN175: 83.616 | CO175: 89.8976 | CP175: 96.1792 | CQ175: 102.4608 | CR175: 108.7424 | CS175: 115.024 | CT175: 49.4624 | CU175: 52.3952 | CV175: 55.328 | CW175: 58.2608 | CX175: 61.1936 | CY175: 64.1264 | CZ175: 67.0592 | DA175: 69.992 | DB175: 81.0368 | DC175: 87.9164 | DD175: 94.796 | DE175: 101.6756 | DF175: 108.5552 | DG175: 115.4348 | DH175: 122.3144 | DI175: 129.194 | DJ175: 90.09 | DK175: 93.366 | DL175: 97.461 | DM175: 100.737 | DN175: 104.832 | DO175: 108.108 | DP175: 113.022 | DQ175: 116.298 | DR175: 117.936 | DS175: 123.669 | DT175: 129.402 | DU175: 135.954 | DV175: 142.506 | DW175: 148.239 | DX175: 153.972 | DY175: 160.524 | DZ175: 120.393 | EA175: 124.488 | EB175: 130.221 | EC175: 134.316 | ED175: 139.23 | EE175: 144.963 | EF175: 149.058 | EG175: 153.153 | EH175: 144.144 | EI175: 150.696 | EJ175: 158.067 | EK175: 165.438 | EL175: 173.628 | EM175: 180.18 | EN175: 187.551 | EO175: 194.103 | EP175: 113.5134 | EQ175: 118.6731 | ER175: 122.97285 | ES175: 127.2726 | ET175: 130.7124 | EU175: 135.8721 | EV175: 140.17185 | EW175: 145.33155 | EX175: 139.3119 | EY175: 147.05145 | EZ175: 154.791 | FA175: 160.81065 | FB175: 168.5502 | FC175: 175.4298 | FD175: 184.0293 | FE175: 190.9089 | FF175: 108.108 | FG175: 113.022 | FH175: 117.117 | FI175: 121.212 | FJ175: 124.488 | FK175: 129.402 | FL175: 133.497 | FM175: 138.411 | FN175: 132.678 | FO175: 140.049 | FP175: 147.42 | FQ175: 153.153 | FR175: 160.524 | FS175: 167.076 | FT175: 175.266 | FU175: 181.818 | FV175: 70.434 | FW175: 74.529 | FX175: 78.624 | FY175: 81.9 | FZ175: 85.995 | GA175: 90.909 | GB175: 94.185 | GC175: 98.28 | GD175: 88.452 | GE175: 94.185 | GF175: 99.918 | GG175: 106.47 | GH175: 112.203 | GI175: 117.117 | GJ175: 123.669 | GK175: 128.583 | GL175: 93.366 | GM175: 98.28 | GN175: 103.194 | GO175: 108.927 | GP175: 113.841 | GQ175: 117.936 | GR175: 123.669 | GS175: 128.583 | GT175: 115.479 | GU175: 122.85 | GV175: 129.402 | GW175: 136.773 | GX175: 143.325 | GY175: 150.696 | GZ175: 158.067 | HA175: 164.619 | HB175: 99.918 | HC175: 105.651 | HD175: 111.384 | HE175: 115.479 | HF175: 122.031 | HG175: 126.945 | HH175: 131.859 | HI175: 137.592 | HJ175: 123.669 | HK175: 131.859 | HL175: 139.23 | HM175: 147.42 | HN175: 153.972 | HO175: 162.981 | HP175: 169.533 | HQ175: 177.723
A176: 900 | B176: 70 | C176: 72 | D176: 73 | E176: 75 | F176: 79.236 | G176: 84.2365 | H176: 90.237 | I176: 95.2375 | J176: 118 | K176: 122 | L176: 127 | M176: 132 | N176: 136 | O176: 141 | P176: 145 | Q176: 150 | R176: 69 | S176: 71 | T176: 72 | U176: 73 | V176: 77.236 | W176: 83.2365 | X176: 88.237 | Y176: 93.2375 | Z176: 117 | AA176: 121 | AB176: 125 | AC176: 130 | AD176: 134 | AE176: 139 | AF176: 143 | AG176: 147 | AH176: 79 | AI176: 80 | AJ176: 84 | AK176: 84 | AL176: 91.236 | AM176: 99.2365 | AN176: 104.237 | AO176: 112.2375 | AP176: 126 | AQ176: 127 | AR176: 136 | AS176: 137 | AT176: 145 | AU176: 153 | AV176: 154 | AW176: 162 | AX176: 87 | AY176: 92 | AZ176: 96 | BA176: 101 | BB176: 108.236 | BC176: 116.2365 | BD176: 125.237 | BE176: 133.2375 | BF176: 127 | BG176: 133 | BH176: 139 | BI176: 145 | BJ176: 151 | BK176: 158 | BL176: 164 | BM176: 170 | BN176: 34.8348 | BO176: 37.23915 | BP176: 39.6435 | BQ176: 42.04785 | BR176: 44.4522 | BS176: 46.85655 | BT176: 49.2609 | BU176: 51.66525 | BV176: 63.6636 | BW176: 69.67155 | BX176: 75.6795 | BY176: 81.68745 | BZ176: 87.6954 | CA176: 93.70335 | CB176: 99.7113 | CC176: 105.71925 | CD176: 43.3576 | CE176: 46.1773 | CF176: 48.997 | CG176: 51.8167 | CH176: 54.6364 | CI176: 57.4561 | CJ176: 60.2758 | CK176: 63.0955 | CL176: 77.3344 | CM176: 84.4012 | CN176: 91.468 | CO176: 98.5348 | CP176: 105.6016 | CQ176: 112.6684 | CR176: 119.7352 | CS176: 126.802 | CT176: 52.3952 | CU176: 55.6946 | CV176: 58.994 | CW176: 62.2934 | CX176: 65.5928 | CY176: 68.8922 | CZ176: 72.1916 | DA176: 75.491 | DB176: 87.9164 | DC176: 95.65595 | DD176: 103.3955 | DE176: 111.13505 | DF176: 118.8746 | DG176: 126.61415 | DH176: 134.3537 | DI176: 142.09325 | DJ176: 95.823 | DK176: 100.737 | DL176: 104.832 | DM176: 108.927 | DN176: 113.841 | DO176: 117.117 | DP176: 121.212 | DQ176: 125.307 | DR176: 127.764 | DS176: 133.497 | DT176: 140.868 | DU176: 148.239 | DV176: 154.791 | DW176: 161.343 | DX176: 167.895 | DY176: 176.085 | DZ176: 128.583 | EA176: 133.497 | EB176: 139.23 | EC176: 144.963 | ED176: 149.877 | EE176: 154.791 | EF176: 160.524 | EG176: 165.438 | EH176: 153.972 | EI176: 162.162 | EJ176: 170.352 | EK176: 179.361 | EL176: 187.551 | EM176: 194.922 | EN176: 203.931 | EO176: 212.121 | EP176: 121.25295 | EQ176: 126.41265 | ER176: 130.7124 | ES176: 135.8721 | ET176: 141.0318 | EU176: 146.1915 | EV176: 151.3512 | EW176: 156.5109 | EX176: 150.49125 | EY176: 158.2308 | EZ176: 166.8303 | FA176: 173.7099 | FB176: 183.16935 | FC176: 190.9089 | FD176: 198.64845 | FE176: 206.388 | FF176: 115.479 | FG176: 120.393 | FH176: 124.488 | FI176: 129.402 | FJ176: 134.316 | FK176: 139.23 | FL176: 144.144 | FM176: 149.058 | FN176: 143.325 | FO176: 150.696 | FP176: 158.886 | FQ176: 165.438 | FR176: 174.447 | FS176: 181.818 | FT176: 189.189 | FU176: 196.56 | FV176: 76.167 | FW176: 80.262 | FX176: 84.357 | FY176: 90.09 | FZ176: 94.185 | GA176: 98.28 | GB176: 102.375 | GC176: 107.289 | GD176: 96.642 | GE176: 102.375 | GF176: 108.927 | GG176: 114.66 | GH176: 122.031 | GI176: 127.764 | GJ176: 134.316 | GK176: 140.049 | GL176: 99.918 | GM176: 104.832 | GN176: 110.565 | GO176: 115.479 | GP176: 122.031 | GQ176: 126.945 | GR176: 131.859 | GS176: 137.592 | GT176: 123.669 | GU176: 131.04 | GV176: 139.23 | GW176: 146.601 | GX176: 153.153 | GY176: 162.162 | GZ176: 168.714 | HA176: 176.904 | HB176: 107.289 | HC176: 113.022 | HD176: 117.936 | HE176: 125.307 | HF176: 130.221 | HG176: 135.954 | HH176: 141.687 | HI176: 148.239 | HJ176: 133.497 | HK176: 141.687 | HL176: 149.877 | HM176: 158.886 | HN176: 166.257 | HO176: 175.266 | HP176: 182.637 | HQ176: 190.827
A177: 1000 | B177: 72 | C177: 74 | D177: 75 | E177: 81.125 | F177: 86.57 | G177: 93.015 | H177: 99.46 | I177: 104.905 | J177: 123 | K177: 128 | L177: 134 | M177: 139 | N177: 144 | O177: 149 | P177: 154 | Q177: 159 | R177: 71 | S177: 72 | T177: 73 | U177: 79.125 | V177: 84.57 | W177: 90.015 | X177: 96.46 | Y177: 101.905 | Z177: 120 | AA177: 125 | AB177: 129 | AC177: 134 | AD177: 139 | AE177: 143 | AF177: 148 | AG177: 153 | AH177: 82 | AI177: 82 | AJ177: 87 | AK177: 91.125 | AL177: 100.57 | AM177: 109.015 | AN177: 114.46 | AO177: 122.905 | AP177: 132 | AQ177: 133 | AR177: 142 | AS177: 143 | AT177: 152 | AU177: 161 | AV177: 162 | AW177: 171 | AX177: 91 | AY177: 96 | AZ177: 101 | BA177: 110.125 | BB177: 119.57 | BC177: 129.015 | BD177: 138.46 | BE177: 147.905 | BF177: 132 | BG177: 139 | BH177: 146 | BI177: 153 | BJ177: 160 | BK177: 167 | BL177: 173 | BM177: 180 | BN177: 36.972 | BO177: 39.6435 | BP177: 42.315 | BQ177: 44.9865 | BR177: 47.658 | BS177: 50.3295 | BT177: 53.001 | BU177: 55.6725 | BV177: 69.004 | BW177: 75.6795 | BX177: 82.355 | BY177: 89.0305 | BZ177: 95.706 | CA177: 102.3815 | CB177: 109.057 | CC177: 115.7325 | CD177: 45.864 | CE177: 48.997 | CF177: 52.13 | CG177: 55.263 | CH177: 58.396 | CI177: 61.529 | CJ177: 64.662 | CK177: 67.795 | CL177: 83.616 | CM177: 91.468 | CN177: 99.32 | CO177: 107.172 | CP177: 115.024 | CQ177: 122.876 | CR177: 130.728 | CS177: 138.58 | CT177: 55.328 | CU177: 58.994 | CV177: 62.66 | CW177: 66.326 | CX177: 69.992 | CY177: 73.658 | CZ177: 77.324 | DA177: 80.99 | DB177: 94.796 | DC177: 103.3955 | DD177: 111.995 | DE177: 120.5945 | DF177: 129.194 | DG177: 137.7935 | DH177: 146.393 | DI177: 154.9925 | DJ177: 103.194 | DK177: 108.108 | DL177: 113.022 | DM177: 117.117 | DN177: 121.212 | DO177: 125.307 | DP177: 130.221 | DQ177: 135.954 | DR177: 137.592 | DS177: 144.963 | DT177: 152.334 | DU177: 160.524 | DV177: 167.076 | DW177: 176.085 | DX177: 182.637 | DY177: 190.827 | DZ177: 135.954 | EA177: 142.506 | EB177: 148.239 | EC177: 153.153 | ED177: 159.705 | EE177: 165.438 | EF177: 171.99 | EG177: 177.723 | EH177: 163.8 | EI177: 174.447 | EJ177: 182.637 | EK177: 191.646 | EL177: 201.474 | EM177: 210.483 | EN177: 220.311 | EO177: 228.501 | EP177: 128.13255 | EQ177: 134.1522 | ER177: 139.3119 | ES177: 145.33155 | ET177: 151.3512 | EU177: 156.5109 | EV177: 161.6706 | EW177: 167.69025 | EX177: 160.81065 | EY177: 170.2701 | EZ177: 178.8696 | FA177: 187.4691 | FB177: 196.92855 | FC177: 204.6681 | FD177: 214.9875 | FE177: 222.72705 | FF177: 122.031 | FG177: 127.764 | FH177: 132.678 | FI177: 138.411 | FJ177: 144.144 | FK177: 149.058 | FL177: 153.972 | FM177: 159.705 | FN177: 153.153 | FO177: 162.162 | FP177: 170.352 | FQ177: 178.542 | FR177: 187.551 | FS177: 194.922 | FT177: 204.75 | FU177: 212.121 | FV177: 81.081 | FW177: 85.995 | FX177: 90.909 | FY177: 96.642 | FZ177: 101.556 | GA177: 106.47 | GB177: 111.384 | GC177: 115.479 | GD177: 103.194 | GE177: 110.565 | GF177: 117.117 | GG177: 125.307 | GH177: 131.04 | GI177: 139.23 | GJ177: 144.963 | GK177: 151.515 | GL177: 105.651 | GM177: 111.384 | GN177: 117.117 | GO177: 123.669 | GP177: 128.583 | GQ177: 134.316 | GR177: 140.868 | GS177: 146.601 | GT177: 131.04 | GU177: 139.23 | GV177: 148.239 | GW177: 156.429 | GX177: 163.8 | GY177: 173.628 | GZ177: 180.999 | HA177: 188.37 | HB177: 114.66 | HC177: 119.574 | HD177: 126.945 | HE177: 132.678 | HF177: 139.23 | HG177: 144.963 | HH177: 150.696 | HI177: 158.067 | HJ177: 143.325 | HK177: 151.515 | HL177: 161.343 | HM177: 169.533 | HN177: 178.542 | HO177: 186.732 | HP177: 195.741 | HQ177: 203.931
A178: 1100 | B178: 74 | C178: 75 | D178: 81.125 | E178: 88.0145 | F178: 93.904 | G178: 100.7935 | H178: 107.683 | I178: 113.5725 | J178: 127 | K178: 133 | L178: 139 | M178: 144 | N178: 150 | O178: 155 | P178: 161 | Q178: 166 | R178: 72 | S178: 74 | T178: 79.125 | U178: 86.0145 | V178: 91.904 | W178: 98.7935 | X178: 104.683 | Y178: 110.5725 | Z178: 125 | AA178: 130 | AB178: 135 | AC178: 141 | AD178: 146 | AE178: 151 | AF178: 156 | AG178: 161 | AH178: 85 | AI178: 85 | AJ178: 94.125 | AK178: 100.0145 | AL178: 108.904 | AM178: 118.7935 | AN178: 124.683 | AO178: 134.5725 | AP178: 138 | AQ178: 139 | AR178: 149 | AS178: 150 | AT178: 160 | AU178: 170 | AV178: 171 | AW178: 181 | AX178: 95 | AY178: 100 | AZ178: 110.125 | BA178: 120.0145 | BB178: 130.904 | BC178: 140.7935 | BD178: 151.683 | BE178: 161.5725 | BF178: 138 | BG178: 146 | BH178: 153 | BI178: 161 | BJ178: 168 | BK178: 176 | BL178: 183 | BM178: 191 | BN178: 39.1092 | BO178: 42.04785 | BP178: 44.9865 | BQ178: 47.92515 | BR178: 50.8638 | BS178: 53.80245 | BT178: 56.7411 | BU178: 59.67975 | BV178: 74.3444 | BW178: 81.68745 | BX178: 89.0305 | BY178: 96.37355 | BZ178: 103.7166 | CA178: 111.05965 | CB178: 118.4027 | CC178: 125.74575 | CD178: 48.3704 | CE178: 51.8167 | CF178: 55.263 | CG178: 58.7093 | CH178: 62.1556 | CI178: 65.6019 | CJ178: 69.0482 | CK178: 72.4945 | CL178: 89.8976 | CM178: 98.5348 | CN178: 107.172 | CO178: 115.8092 | CP178: 124.4464 | CQ178: 133.0836 | CR178: 141.7208 | CS178: 150.358 | CT178: 58.2608 | CU178: 62.2934 | CV178: 66.326 | CW178: 70.3586 | CX178: 74.3912 | CY178: 78.4238 | CZ178: 82.4564 | DA178: 86.489 | DB178: 101.6756 | DC178: 111.13505 | DD178: 120.5945 | DE178: 130.05395 | DF178: 139.5134 | DG178: 148.97285 | DH178: 158.4323 | DI178: 167.89175 | DJ178: 109.746 | DK178: 114.66 | DL178: 119.574 | DM178: 124.488 | DN178: 129.402 | DO178: 134.316 | DP178: 140.049 | DQ178: 144.963 | DR178: 147.42 | DS178: 154.791 | DT178: 163.8 | DU178: 172.809 | DV178: 180.999 | DW178: 189.189 | DX178: 196.56 | DY178: 206.388 | DZ178: 144.144 | EA178: 149.877 | EB178: 157.248 | EC178: 162.981 | ED178: 169.533 | EE178: 176.904 | EF178: 182.637 | EG178: 189.189 | EH178: 175.266 | EI178: 184.275 | EJ178: 194.922 | EK178: 205.569 | EL178: 216.216 | EM178: 225.225 | EN178: 236.691 | EO178: 246.519 | EP178: 136.73205 | EQ178: 142.7517 | ER178: 147.9114 | ES178: 154.791 | ET178: 159.9507 | EU178: 166.8303 | EV178: 171.99 | EW178: 178.00965 | EX178: 171.99 | EY178: 182.3094 | EZ178: 190.9089 | FA178: 201.2283 | FB178: 210.68775 | FC178: 220.1472 | FD178: 229.60665 | FE178: 238.20615 | FF178: 130.221 | FG178: 135.954 | FH178: 140.868 | FI178: 147.42 | FJ178: 152.334 | FK178: 158.886 | FL178: 163.8 | FM178: 169.533 | FN178: 163.8 | FO178: 173.628 | FP178: 181.818 | FQ178: 191.646 | FR178: 200.655 | FS178: 209.664 | FT178: 218.673 | FU178: 226.863 | FV178: 87.633 | FW178: 92.547 | FX178: 97.461 | FY178: 102.375 | FZ178: 108.927 | GA178: 114.66 | GB178: 118.755 | GC178: 125.307 | GD178: 111.384 | GE178: 118.755 | GF178: 126.945 | GG178: 133.497 | GH178: 141.687 | GI178: 149.058 | GJ178: 156.429 | GK178: 163.8 | GL178: 111.384 | GM178: 117.117 | GN178: 124.488 | GO178: 130.221 | GP178: 136.773 | GQ178: 143.325 | GR178: 149.058 | GS178: 154.791 | GT178: 139.23 | GU178: 148.239 | GV178: 157.248 | GW178: 165.438 | GX178: 175.266 | GY178: 183.456 | GZ178: 192.465 | HA178: 200.655 | HB178: 120.393 | HC178: 127.764 | HD178: 134.316 | HE178: 140.868 | HF178: 148.239 | HG178: 153.972 | HH178: 161.343 | HI178: 167.895 | HJ178: 151.515 | HK178: 162.162 | HL178: 171.171 | HM178: 180.18 | HN178: 189.189 | HO178: 199.017 | HP178: 209.664 | HQ178: 217.854
A179: 1200 | B179: 76 | C179: 80.236 | D179: 87.57 | E179: 94.904 | F179: 102.238 | G179: 109.572 | H179: 116.906 | I179: 123.24 | J179: 133 | K179: 139 | L179: 145 | M179: 151 | N179: 157 | O179: 164 | P179: 170 | Q179: 176 | R179: 74 | S179: 79.236 | T179: 85.57 | U179: 92.904 | V179: 99.238 | W179: 106.572 | X179: 112.906 | Y179: 120.24 | Z179: 130 | AA179: 136 | AB179: 141 | AC179: 147 | AD179: 153 | AE179: 158 | AF179: 164 | AG179: 170 | AH179: 88 | AI179: 91.236 | AJ179: 101.57 | AK179: 107.904 | AL179: 118.238 | AM179: 128.572 | AN179: 134.906 | AO179: 145.24 | AP179: 143 | AQ179: 144 | AR179: 155 | AS179: 156 | AT179: 167 | AU179: 178 | AV179: 179 | AW179: 190 | AX179: 99 | AY179: 108.236 | AZ179: 119.57 | BA179: 130.904 | BB179: 142.238 | BC179: 153.572 | BD179: 163.906 | BE179: 175.24 | BF179: 144 | BG179: 152 | BH179: 160 | BI179: 168 | BJ179: 176 | BK179: 185 | BL179: 193 | BM179: 201 | BN179: 41.2464 | BO179: 44.4522 | BP179: 47.658 | BQ179: 50.8638 | BR179: 54.0696 | BS179: 57.2754 | BT179: 60.4812 | BU179: 63.687 | BV179: 79.6848 | BW179: 87.6954 | BX179: 95.706 | BY179: 103.7166 | BZ179: 111.7272 | CA179: 119.7378 | CB179: 127.7484 | CC179: 135.759 | CD179: 50.8768 | CE179: 54.6364 | CF179: 58.396 | CG179: 62.1556 | CH179: 65.9152 | CI179: 69.6748 | CJ179: 73.4344 | CK179: 77.194 | CL179: 96.1792 | CM179: 105.6016 | CN179: 115.024 | CO179: 124.4464 | CP179: 133.8688 | CQ179: 143.2912 | CR179: 152.7136 | CS179: 162.136 | CT179: 61.1936 | CU179: 65.5928 | CV179: 69.992 | CW179: 74.3912 | CX179: 78.7904 | CY179: 83.1896 | CZ179: 87.5888 | DA179: 91.988 | DB179: 108.5552 | DC179: 118.8746 | DD179: 129.194 | DE179: 139.5134 | DF179: 149.8328 | DG179: 160.1522 | DH179: 170.4716 | DI179: 180.791 | DJ179: 116.298 | DK179: 121.212 | DL179: 126.945 | DM179: 132.678 | DN179: 138.411 | DO179: 144.144 | DP179: 149.058 | DQ179: 153.972 | DR179: 157.248 | DS179: 165.438 | DT179: 175.266 | DU179: 184.275 | DV179: 193.284 | DW179: 203.112 | DX179: 212.121 | DY179: 221.13 | DZ179: 151.515 | EA179: 158.886 | EB179: 165.438 | EC179: 173.628 | ED179: 180.18 | EE179: 187.551 | EF179: 194.103 | EG179: 201.474 | EH179: 185.094 | EI179: 195.741 | EJ179: 208.026 | EK179: 218.673 | EL179: 229.32 | EM179: 241.605 | EN179: 252.252 | EO179: 263.718 | EP179: 144.4716 | EQ179: 151.3512 | ER179: 157.37085 | ES179: 164.25045 | ET179: 169.41015 | EU179: 175.4298 | EV179: 183.16935 | EW179: 189.189 | EX179: 183.16935 | EY179: 193.48875 | EZ179: 203.80815 | FA179: 214.9875 | FB179: 224.44695 | FC179: 234.76635 | FD179: 245.08575 | FE179: 255.40515 | FF179: 137.592 | FG179: 144.144 | FH179: 149.877 | FI179: 156.429 | FJ179: 161.343 | FK179: 167.076 | FL179: 174.447 | FM179: 180.18 | FN179: 174.447 | FO179: 184.275 | FP179: 194.103 | FQ179: 204.75 | FR179: 213.759 | FS179: 223.587 | FT179: 233.415 | FU179: 243.243 | FV179: 92.547 | FW179: 98.28 | FX179: 103.194 | FY179: 110.565 | FZ179: 115.479 | GA179: 122.031 | GB179: 127.764 | GC179: 133.497 | GD179: 117.936 | GE179: 126.945 | GF179: 135.135 | GG179: 143.325 | GH179: 150.696 | GI179: 159.705 | GJ179: 167.076 | GK179: 175.266 | GL179: 117.117 | GM179: 124.488 | GN179: 131.04 | GO179: 137.592 | GP179: 144.144 | GQ179: 150.696 | GR179: 158.067 | GS179: 164.619 | GT179: 147.42 | GU179: 157.248 | GV179: 165.438 | GW179: 175.266 | GX179: 185.094 | GY179: 194.922 | GZ179: 203.931 | HA179: 213.759 | HB179: 127.764 | HC179: 135.135 | HD179: 142.506 | HE179: 149.877 | HF179: 156.429 | HG179: 162.981 | HH179: 170.352 | HI179: 177.723 | HJ179: 162.162 | HK179: 171.99 | HL179: 181.818 | HM179: 191.646 | HN179: 201.474 | HO179: 211.302 | HP179: 221.949 | HQ179: 231.777
A180: 1300 | B180: 78.458 | C180: 86.2365 | D180: 94.015 | E180: 101.7935 | F180: 109.572 | G180: 117.3505 | H180: 125.129 | I180: 131 | J180: 137 | K180: 144 | L180: 150 | M180: 157 | N180: 163 | O180: 170 | P180: 176 | Q180: 183 | R180: 76.458 | S180: 84.2365 | T180: 92.015 | U180: 98.7935 | V180: 106.572 | W180: 113.3505 | X180: 121.129 | Y180: 127 | Z180: 133 | AA180: 139 | AB180: 145 | AC180: 151 | AD180: 157 | AE180: 163 | AF180: 169 | AG180: 175 | AH180: 91.458 | AI180: 98.2365 | AJ180: 110.015 | AK180: 115.7935 | AL180: 127.572 | AM180: 139.3505 | AN180: 145.129 | AO180: 155 | AP180: 149 | AQ180: 150 | AR180: 162 | AS180: 163 | AT180: 175 | AU180: 186 | AV180: 187 | AW180: 199 | AX180: 104.458 | AY180: 116.2365 | AZ180: 128.015 | BA180: 140.7935 | BB180: 152.572 | BC180: 165.3505 | BD180: 177.129 | BE180: 188 | BF180: 149 | BG180: 158 | BH180: 167 | BI180: 176 | BJ180: 185 | BK180: 194 | BL180: 202 | BM180: 211 | BN180: 43.3836 | BO180: 46.85655 | BP180: 50.3295 | BQ180: 53.80245 | BR180: 57.2754 | BS180: 60.74835 | BT180: 64.2213 | BU180: 67.69425 | BV180: 85.0252 | BW180: 93.70335 | BX180: 102.3815 | BY180: 111.05965 | BZ180: 119.7378 | CA180: 128.41595 | CB180: 137.0941 | CC180: 145.77225 | CD180: 53.3832 | CE180: 57.4561 | CF180: 61.529 | CG180: 65.6019 | CH180: 69.6748 | CI180: 73.7477 | CJ180: 77.8206 | CK180: 81.8935 | CL180: 102.4608 | CM180: 112.6684 | CN180: 122.876 | CO180: 133.0836 | CP180: 143.2912 | CQ180: 153.4988 | CR180: 163.7064 | CS180: 173.914 | CT180: 64.1264 | CU180: 68.8922 | CV180: 73.658 | CW180: 78.4238 | CX180: 83.1896 | CY180: 87.9554 | CZ180: 92.7212 | DA180: 97.487 | DB180: 115.4348 | DC180: 126.61415 | DD180: 137.7935 | DE180: 148.97285 | DF180: 160.1522 | DG180: 171.33155 | DH180: 182.5109 | DI180: 193.69025 | DJ180: 121.212 | DK180: 126.945 | DL180: 132.678 | DM180: 139.23 | DN180: 144.963 | DO180: 150.696 | DP180: 157.248 | DQ180: 162.981 | DR180: 164.619 | DS180: 175.266 | DT180: 184.275 | DU180: 194.103 | DV180: 205.569 | DW180: 214.578 | DX180: 224.406 | DY180: 234.234 | DZ180: 156.429 | EA180: 163.8 | EB180: 172.809 | EC180: 180.18 | ED180: 187.551 | EE180: 194.922 | EF180: 203.931 | EG180: 211.302 | EH180: 192.465 | EI180: 205.569 | EJ180: 217.854 | EK180: 228.501 | EL180: 241.605 | EM180: 253.89 | EN180: 266.175 | EO180: 278.46 | EP180: 150.49125 | EQ180: 157.37085 | ER180: 164.25045 | ES180: 170.2701 | ET180: 178.00965 | EU180: 184.88925 | EV180: 190.9089 | EW180: 197.7885 | EX180: 191.76885 | EY180: 202.9482 | EZ180: 214.9875 | FA180: 225.3069 | FB180: 235.6263 | FC180: 246.80565 | FD180: 258.84495 | FE180: 269.16435 | FF180: 143.325 | FG180: 149.877 | FH180: 156.429 | FI180: 162.162 | FJ180: 169.533 | FK180: 176.085 | FL180: 181.818 | FM180: 188.37 | FN180: 182.637 | FO180: 193.284 | FP180: 204.75 | FQ180: 214.578 | FR180: 224.406 | FS180: 235.053 | FT180: 246.519 | FU180: 256.347 | FV180: 96.642 | FW180: 102.375 | FX180: 109.746 | FY180: 115.479 | FZ180: 122.85 | GA180: 128.583 | GB180: 135.135 | GC180: 141.687 | GD180: 125.307 | GE180: 133.497 | GF180: 142.506 | GG180: 150.696 | GH180: 160.524 | GI180: 168.714 | GJ180: 177.723 | GK180: 186.732 | GL180: 122.031 | GM180: 128.583 | GN180: 135.954 | GO180: 143.325 | GP180: 150.696 | GQ180: 158.067 | GR180: 164.619 | GS180: 171.99 | GT180: 153.153 | GU180: 162.981 | GV180: 174.447 | GW180: 184.275 | GX180: 194.103 | GY180: 203.931 | GZ180: 213.759 | HA180: 223.587 | HB180: 133.497 | HC180: 140.868 | HD180: 148.239 | HE180: 156.429 | HF180: 162.981 | HG180: 171.171 | HH180: 178.542 | HI180: 186.732 | HJ180: 169.533 | HK180: 180.18 | HL180: 190.827 | HM180: 200.655 | HN180: 212.121 | HO180: 222.768 | HP180: 233.415 | HQ180: 244.062
A181: 1400 | B181: 84.014 | C181: 92.237 | D181: 100.46 | E181: 108.683 | F181: 116.906 | G181: 125.129 | H181: 131 | I181: 134 | J181: 142 | K181: 150 | L181: 157 | M181: 164 | N181: 171 | O181: 178 | P181: 185 | Q181: 192 | R181: 82.014 | S181: 90.237 | T181: 98.46 | U181: 105.683 | V181: 113.906 | W181: 122.129 | X181: 127 | Y181: 129 | Z181: 138 | AA181: 145 | AB181: 151 | AC181: 158 | AD181: 164 | AE181: 171 | AF181: 177 | AG181: 183 | AH181: 98.014 | AI181: 105.237 | AJ181: 117.46 | AK181: 123.683 | AL181: 136.906 | AM181: 149.129 | AN181: 153 | AO181: 159 | AP181: 155 | AQ181: 156 | AR181: 168 | AS181: 169 | AT181: 182 | AU181: 195 | AV181: 196 | AW181: 209 | AX181: 111.014 | AY181: 124.237 | AZ181: 137.46 | BA181: 150.683 | BB181: 163.906 | BC181: 177.129 | BD181: 188 | BE181: 195 | BF181: 155 | BG181: 165 | BH181: 174 | BI181: 184 | BJ181: 193 | BK181: 203 | BL181: 212 | BM181: 222 | BN181: 45.5208 | BO181: 49.2609 | BP181: 53.001 | BQ181: 56.7411 | BR181: 60.4812 | BS181: 64.2213 | BT181: 67.9614 | BU181: 71.7015 | BV181: 90.3656 | BW181: 99.7113 | BX181: 109.057 | BY181: 118.4027 | BZ181: 127.7484 | CA181: 137.0941 | CB181: 146.4398 | CC181: 155.7855 | CD181: 55.8896 | CE181: 60.2758 | CF181: 64.662 | CG181: 69.0482 | CH181: 73.4344 | CI181: 77.8206 | CJ181: 82.2068 | CK181: 86.593 | CL181: 108.7424 | CM181: 119.7352 | CN181: 130.728 | CO181: 141.7208 | CP181: 152.7136 | CQ181: 163.7064 | CR181: 174.6992 | CS181: 185.692 | CT181: 67.0592 | CU181: 72.1916 | CV181: 77.324 | CW181: 82.4564 | CX181: 87.5888 | CY181: 92.7212 | CZ181: 97.8536 | DA181: 102.986 | DB181: 122.3144 | DC181: 134.3537 | DD181: 146.393 | DE181: 158.4323 | DF181: 170.4716 | DG181: 182.5109 | DH181: 194.5502 | DI181: 206.5895 | DJ181: 125.307 | DK181: 131.859 | DL181: 139.23 | DM181: 145.782 | DN181: 151.515 | DO181: 158.067 | DP181: 164.619 | DQ181: 171.99 | DR181: 173.628 | DS181: 183.456 | DT181: 194.103 | DU181: 205.569 | DV181: 216.216 | DW181: 226.044 | DX181: 237.51 | DY181: 248.157 | DZ181: 161.343 | EA181: 170.352 | EB181: 178.542 | EC181: 186.732 | ED181: 194.922 | EE181: 203.931 | EF181: 212.121 | EG181: 220.311 | EH181: 200.655 | EI181: 213.759 | EJ181: 226.863 | EK181: 240.786 | EL181: 253.071 | EM181: 266.175 | EN181: 280.098 | EO181: 293.202 | EP181: 155.65095 | EQ181: 162.53055 | ER181: 170.2701 | ES181: 178.00965 | ET181: 185.7492 | EU181: 191.76885 | EV181: 199.5084 | EW181: 206.388 | EX181: 201.2283 | EY181: 213.2676 | EZ181: 224.44695 | FA181: 236.48625 | FB181: 248.52555 | FC181: 260.56485 | FD181: 270.88425 | FE181: 283.7835 | FF181: 148.239 | FG181: 154.791 | FH181: 162.162 | FI181: 169.533 | FJ181: 176.904 | FK181: 182.637 | FL181: 190.008 | FM181: 196.56 | FN181: 191.646 | FO181: 203.112 | FP181: 213.759 | FQ181: 225.225 | FR181: 236.691 | FS181: 248.157 | FT181: 257.985 | FU181: 270.27 | FV181: 101.556 | FW181: 108.108 | FX181: 114.66 | FY181: 122.031 | FZ181: 128.583 | GA181: 135.135 | GB181: 142.506 | GC181: 149.058 | GD181: 131.04 | GE181: 140.868 | GF181: 150.696 | GG181: 159.705 | GH181: 168.714 | GI181: 178.542 | GJ181: 186.732 | GK181: 197.379 | GL181: 126.945 | GM181: 133.497 | GN181: 141.687 | GO181: 149.058 | GP181: 157.248 | GQ181: 163.8 | GR181: 171.99 | GS181: 179.361 | GT181: 160.524 | GU181: 170.352 | GV181: 180.999 | GW181: 192.465 | GX181: 202.293 | GY181: 213.759 | GZ181: 223.587 | HA181: 235.053 | HB181: 139.23 | HC181: 146.601 | HD181: 153.972 | HE181: 162.981 | HF181: 170.352 | HG181: 178.542 | HH181: 186.732 | HI181: 194.922 | HJ181: 176.904 | HK181: 187.551 | HL181: 199.017 | HM181: 211.302 | HN181: 221.949 | HO181: 233.415 | HP181: 244.881 | HQ181: 255.528
A182: 1500 | B182: 89.49 | C182: 98.1575 | D182: 106.825 | E182: 115.4925 | F182: 124.16 | G182: 133.8275 | H182: 139 | I182: 141 | J182: 152 | K182: 159 | L182: 167 | M182: 174 | N182: 182 | O182: 189 | P182: 197 | Q182: 205 | R182: 87.49 | S182: 96.1575 | T182: 104.825 | U182: 112.4925 | V182: 121.16 | W182: 129.8275 | X182: 135 | Y182: 137 | Z182: 148 | AA182: 155 | AB182: 162 | AC182: 169 | AD182: 176 | AE182: 183 | AF182: 190 | AG182: 197 | AH182: 104.49 | AI182: 112.1575 | AJ182: 124.825 | AK182: 132.4925 | AL182: 145.16 | AM182: 158.8275 | AN182: 162 | AO182: 169 | AP182: 165 | AQ182: 166 | AR182: 180 | AS182: 181 | AT182: 195 | AU182: 208 | AV182: 209 | AW182: 223 | AX182: 118.49 | AY182: 133.1575 | AZ182: 146.825 | BA182: 161.4925 | BB182: 175.16 | BC182: 189.8275 | BD182: 200 | BE182: 208 | BF182: 166 | BG182: 176 | BH182: 186 | BI182: 196 | BJ182: 207 | BK182: 217 | BL182: 227 | BM182: 237 | BN182: 47.658 | BO182: 51.66525 | BP182: 55.6725 | BQ182: 59.67975 | BR182: 63.687 | BS182: 67.69425 | BT182: 71.7015 | BU182: 75.70875 | BV182: 95.706 | BW182: 105.71925 | BX182: 115.7325 | BY182: 125.74575 | BZ182: 135.759 | CA182: 145.77225 | CB182: 155.7855 | CC182: 165.79875 | CD182: 58.396 | CE182: 63.0955 | CF182: 67.795 | CG182: 72.4945 | CH182: 77.194 | CI182: 81.8935 | CJ182: 86.593 | CK182: 91.2925 | CL182: 115.024 | CM182: 126.802 | CN182: 138.58 | CO182: 150.358 | CP182: 162.136 | CQ182: 173.914 | CR182: 185.692 | CS182: 197.47 | CT182: 69.992 | CU182: 75.491 | CV182: 80.99 | CW182: 86.489 | CX182: 91.988 | CY182: 97.487 | CZ182: 102.986 | DA182: 108.485 | DB182: 129.194 | DC182: 142.09325 | DD182: 154.9925 | DE182: 167.89175 | DF182: 180.791 | DG182: 193.69025 | DH182: 206.5895 | DI182: 219.48875 | DJ182: 131.04 | DK182: 138.411 | DL182: 144.963 | DM182: 151.515 | DN182: 158.886 | DO182: 165.438 | DP182: 172.809 | DQ182: 179.361 | DR182: 181.818 | DS182: 192.465 | DT182: 204.75 | DU182: 216.216 | DV182: 226.863 | DW182: 239.148 | DX182: 250.614 | DY182: 261.261 | DZ182: 166.257 | EA182: 176.085 | EB182: 184.275 | EC182: 193.284 | ED182: 203.931 | EE182: 212.121 | EF182: 221.13 | EG182: 229.32 | EH182: 208.845 | EI182: 222.768 | EJ182: 237.51 | EK182: 251.433 | EL182: 265.356 | EM182: 280.098 | EN182: 293.202 | EO182: 307.944 | EP182: 161.6706 | EQ182: 169.41015 | ER182: 176.28975 | ES182: 185.7492 | ET182: 192.6288 | EU182: 200.36835 | EV182: 207.24795 | EW182: 216.7074 | EX182: 208.96785 | EY182: 222.72705 | EZ182: 234.76635 | FA182: 246.80565 | FB182: 260.56485 | FC182: 271.7442 | FD182: 285.5034 | FE182: 297.5427 | FF182: 153.972 | FG182: 161.343 | FH182: 167.895 | FI182: 176.904 | FJ182: 183.456 | FK182: 190.827 | FL182: 197.379 | FM182: 206.388 | FN182: 199.017 | FO182: 212.121 | FP182: 223.587 | FQ182: 235.053 | FR182: 248.157 | FS182: 258.804 | FT182: 271.908 | FU182: 283.374 | FV182: 105.651 | FW182: 113.022 | FX182: 119.574 | FY182: 127.764 | FZ182: 135.135 | GA182: 142.506 | GB182: 149.877 | GC182: 157.248 | GD182: 137.592 | GE182: 148.239 | GF182: 158.067 | GG182: 167.895 | GH182: 177.723 | GI182: 187.551 | GJ182: 198.198 | GK182: 208.026 | GL182: 130.221 | GM182: 139.23 | GN182: 146.601 | GO182: 154.791 | GP182: 162.981 | GQ182: 171.171 | GR182: 179.361 | GS182: 186.732 | GT182: 165.438 | GU182: 177.723 | GV182: 188.37 | GW182: 199.836 | GX182: 211.302 | GY182: 222.768 | GZ182: 234.234 | HA182: 246.519 | HB182: 144.144 | HC182: 152.334 | HD182: 161.343 | HE182: 169.533 | HF182: 177.723 | HG182: 186.732 | HH182: 194.922 | HI182: 203.112 | HJ182: 185.094 | HK182: 197.379 | HL182: 208.845 | HM182: 220.311 | HN182: 232.596 | HO182: 244.881 | HP182: 255.528 | HQ182: 267.813
A183: 1600 | B183: 94.046 | C183: 104.158 | D183: 113.27 | E183: 122.382 | F183: 131.494 | G183: 139 | H183: 141 | I183: 143 | J183: 156 | K183: 164 | L183: 172 | M183: 180 | N183: 188 | O183: 196 | P183: 204 | Q183: 212 | R183: 92.046 | S183: 101.158 | T183: 110.27 | U183: 119.382 | V183: 128.494 | W183: 135 | X183: 136 | Y183: 138 | Z183: 152 | AA183: 159 | AB183: 166 | AC183: 173 | AD183: 181 | AE183: 188 | AF183: 195 | AG183: 202 | AH183: 111.046 | AI183: 118.158 | AJ183: 132.27 | AK183: 140.382 | AL183: 154.494 | AM183: 166 | AN183: 167 | AO183: 174 | AP183: 171 | AQ183: 172 | AR183: 187 | AS183: 188 | AT183: 202 | AU183: 217 | AV183: 218 | AW183: 232 | AX183: 126.046 | AY183: 141.158 | AZ183: 156.27 | BA183: 171.382 | BB183: 186.494 | BC183: 199 | BD183: 207 | BE183: 215 | BF183: 172 | BG183: 182 | BH183: 193 | BI183: 204 | BJ183: 215 | BK183: 226 | BL183: 237 | BM183: 247 | BN183: 49.7952 | BO183: 54.0696 | BP183: 58.344 | BQ183: 62.6184 | BR183: 66.8928 | BS183: 71.1672 | BT183: 75.4416 | BU183: 79.716 | BV183: 101.0464 | BW183: 111.7272 | BX183: 122.408 | BY183: 133.0888 | BZ183: 143.7696 | CA183: 154.4504 | CB183: 165.1312 | CC183: 175.812 | CD183: 60.9024 | CE183: 65.9152 | CF183: 70.928 | CG183: 75.9408 | CH183: 80.9536 | CI183: 85.9664 | CJ183: 90.9792 | CK183: 95.992 | CL183: 121.3056 | CM183: 133.8688 | CN183: 146.432 | CO183: 158.9952 | CP183: 171.5584 | CQ183: 184.1216 | CR183: 196.6848 | CS183: 209.248 | CT183: 72.9248 | CU183: 78.7904 | CV183: 84.656 | CW183: 90.5216 | CX183: 96.3872 | CY183: 102.2528 | CZ183: 108.1184 | DA183: 113.984 | DB183: 136.0736 | DC183: 149.8328 | DD183: 163.592 | DE183: 177.3512 | DF183: 191.1104 | DG183: 204.8696 | DH183: 218.6288 | DI183: 232.388 | DJ183: 135.954 | DK183: 144.144 | DL183: 150.696 | DM183: 158.067 | DN183: 164.619 | DO183: 173.628 | DP183: 180.18 | DQ183: 187.551 | DR183: 190.008 | DS183: 201.474 | DT183: 213.759 | DU183: 226.044 | DV183: 238.329 | DW183: 250.614 | DX183: 262.899 | DY183: 276.003 | DZ183: 172.809 | EA183: 181.818 | EB183: 191.646 | EC183: 200.655 | ED183: 210.483 | EE183: 220.311 | EF183: 229.32 | EG183: 239.967 | EH183: 217.035 | EI183: 231.777 | EJ183: 247.338 | EK183: 262.08 | EL183: 277.641 | EM183: 292.383 | EN183: 307.944 | EO183: 322.686 | EP183: 167.69025 | EQ183: 175.4298 | ER183: 184.0293 | ES183: 191.76885 | ET183: 200.36835 | EU183: 208.1079 | EV183: 216.7074 | EW183: 224.44695 | EX183: 219.28725 | EY183: 232.1865 | EZ183: 245.08575 | FA183: 258.84495 | FB183: 271.7442 | FC183: 285.5034 | FD183: 298.40265 | FE183: 311.3019 | FF183: 159.705 | FG183: 167.076 | FH183: 175.266 | FI183: 182.637 | FJ183: 190.827 | FK183: 198.198 | FL183: 206.388 | FM183: 213.759 | FN183: 208.845 | FO183: 221.13 | FP183: 233.415 | FQ183: 246.519 | FR183: 258.804 | FS183: 271.908 | FT183: 284.193 | FU183: 296.478 | FV183: 110.565 | FW183: 117.936 | FX183: 126.126 | FY183: 133.497 | FZ183: 140.868 | GA183: 149.058 | GB183: 157.248 | GC183: 163.8 | GD183: 144.144 | GE183: 153.972 | GF183: 165.438 | GG183: 176.085 | GH183: 186.732 | GI183: 197.379 | GJ183: 208.845 | GK183: 218.673 | GL183: 135.135 | GM183: 144.144 | GN183: 151.515 | GO183: 161.343 | GP183: 168.714 | GQ183: 177.723 | GR183: 186.732 | GS183: 194.922 | GT183: 171.99 | GU183: 184.275 | GV183: 196.56 | GW183: 208.845 | GX183: 220.311 | GY183: 232.596 | GZ183: 244.881 | HA183: 256.347 | HB183: 149.877 | HC183: 158.886 | HD183: 167.076 | HE183: 176.085 | HF183: 185.094 | HG183: 194.103 | HH183: 202.293 | HI183: 211.302 | HJ183: 193.284 | HK183: 204.75 | HL183: 217.854 | HM183: 230.139 | HN183: 242.424 | HO183: 254.709 | HP183: 266.994 | HQ183: 280.098
A184: 1700 | B184: 99.602 | C184: 110.1585 | D184: 119.715 | E184: 129.2715 | F184: 139 | G184: 141 | H184: 144 | I184: 146 | J184: 161 | K184: 170 | L184: 178 | M184: 187 | N184: 195 | O184: 204 | P184: 213 | Q184: 221 | R184: 97.602 | S184: 107.1585 | T184: 116.715 | U184: 126.2715 | V184: 135 | W184: 137 | X184: 139 | Y184: 141 | Z184: 157 | AA184: 164 | AB184: 172 | AC184: 180 | AD184: 188 | AE184: 195 | AF184: 203 | AG184: 211 | AH184: 117.602 | AI184: 125.1585 | AJ184: 140.715 | AK184: 148.2715 | AL184: 163 | AM184: 170 | AN184: 171 | AO184: 178 | AP184: 177 | AQ184: 178 | AR184: 193 | AS184: 194 | AT184: 210 | AU184: 225 | AV184: 226 | AW184: 242 | AX184: 133.602 | AY184: 150.1585 | AZ184: 165.715 | BA184: 181.2715 | BB184: 197 | BC184: 205 | BD184: 214 | BE184: 222 | BF184: 177 | BG184: 189 | BH184: 200 | BI184: 212 | BJ184: 223 | BK184: 235 | BL184: 246 | BM184: 258 | BN184: 51.9324 | BO184: 56.47395 | BP184: 61.0155 | BQ184: 65.55705 | BR184: 70.0986 | BS184: 74.64015 | BT184: 79.1817 | BU184: 83.72325 | BV184: 106.3868 | BW184: 117.73515 | BX184: 129.0835 | BY184: 140.43185 | BZ184: 151.7802 | CA184: 163.12855 | CB184: 174.4769 | CC184: 185.82525 | CD184: 63.4088 | CE184: 68.7349 | CF184: 74.061 | CG184: 79.3871 | CH184: 84.7132 | CI184: 90.0393 | CJ184: 95.3654 | CK184: 100.6915 | CL184: 127.5872 | CM184: 140.9356 | CN184: 154.284 | CO184: 167.6324 | CP184: 180.9808 | CQ184: 194.3292 | CR184: 207.6776 | CS184: 221.026 | CT184: 75.8576 | CU184: 82.0898 | CV184: 88.322 | CW184: 94.5542 | CX184: 100.7864 | CY184: 107.0186 | CZ184: 113.2508 | DA184: 119.483 | DB184: 142.9532 | DC184: 157.57235 | DD184: 172.1915 | DE184: 186.81065 | DF184: 201.4298 | DG184: 216.04895 | DH184: 230.6681 | DI184: 245.28725 | DJ184: 143.325 | DK184: 150.696 | DL184: 158.067 | DM184: 165.438 | DN184: 174.447 | DO184: 181.818 | DP184: 189.189 | DQ184: 196.56 | DR184: 199.017 | DS184: 212.121 | DT184: 225.225 | DU184: 238.329 | DV184: 251.433 | DW184: 263.718 | DX184: 277.641 | DY184: 290.745 | DZ184: 179.361 | EA184: 190.008 | EB184: 199.017 | EC184: 210.483 | ED184: 220.311 | EE184: 230.958 | EF184: 241.605 | EG184: 251.433 | EH184: 226.044 | EI184: 243.243 | EJ184: 258.804 | EK184: 276.003 | EL184: 291.564 | EM184: 307.944 | EN184: 323.505 | EO184: 339.885 | EP184: 174.56985 | EQ184: 184.0293 | ER184: 192.6288 | ES184: 201.2283 | ET184: 208.96785 | EU184: 218.4273 | EV184: 227.88675 | EW184: 235.6263 | EX184: 230.4666 | EY184: 244.2258 | EZ184: 258.84495 | FA184: 271.7442 | FB184: 286.36335 | FC184: 300.12255 | FD184: 313.88175 | FE184: 328.5009 | FF184: 166.257 | FG184: 175.266 | FH184: 183.456 | FI184: 191.646 | FJ184: 199.017 | FK184: 208.026 | FL184: 217.035 | FM184: 224.406 | FN184: 219.492 | FO184: 232.596 | FP184: 246.519 | FQ184: 258.804 | FR184: 272.727 | FS184: 285.831 | FT184: 298.935 | FU184: 312.858 | FV184: 115.479 | FW184: 124.488 | FX184: 131.859 | FY184: 140.049 | FZ184: 149.058 | GA184: 157.248 | GB184: 164.619 | GC184: 173.628 | GD184: 150.696 | GE184: 162.981 | GF184: 174.447 | GG184: 185.094 | GH184: 196.56 | GI184: 208.026 | GJ184: 218.673 | GK184: 230.139 | GL184: 140.868 | GM184: 149.877 | GN184: 159.705 | GO184: 167.895 | GP184: 176.904 | GQ184: 185.913 | GR184: 194.922 | GS184: 203.112 | GT184: 180.18 | GU184: 193.284 | GV184: 205.569 | GW184: 217.854 | GX184: 230.958 | GY184: 244.062 | GZ184: 256.347 | HA184: 268.632 | HB184: 156.429 | HC184: 165.438 | HD184: 175.266 | HE184: 184.275 | HF184: 194.103 | HG184: 203.112 | HH184: 212.121 | HI184: 221.949 | HJ184: 201.474 | HK184: 215.397 | HL184: 228.501 | HM184: 240.786 | HN184: 253.89 | HO184: 266.994 | HP184: 280.917 | HQ184: 294.021
A185: 1800 | B185: 105.078 | C185: 115.079 | D185: 126.08 | E185: 136.081 | F185: 146 | G185: 148 | H185: 151 | I185: 154 | J185: 171 | K185: 179 | L185: 188 | M185: 197 | N185: 206 | O185: 215 | P185: 224 | Q185: 233 | R185: 102.078 | S185: 112.079 | T185: 122.08 | U185: 132.081 | V185: 142 | W185: 144 | X185: 146 | Y185: 148 | Z185: 165 | AA185: 173 | AB185: 181 | AC185: 189 | AD185: 197 | AE185: 205 | AF185: 213 | AG185: 221 | AH185: 124.078 | AI185: 132.079 | AJ185: 148.08 | AK185: 157.081 | AL185: 171 | AM185: 179 | AN185: 180 | AO185: 188 | AP185: 187 | AQ185: 188 | AR185: 205 | AS185: 206 | AT185: 222 | AU185: 239 | AV185: 240 | AW185: 256 | AX185: 141.078 | AY185: 158.079 | AZ185: 175.08 | BA185: 192.081 | BB185: 208 | BC185: 217 | BD185: 226 | BE185: 235 | BF185: 188 | BG185: 200 | BH185: 212 | BI185: 225 | BJ185: 237 | BK185: 249 | BL185: 261 | BM185: 273 | BN185: 54.0696 | BO185: 58.8783 | BP185: 63.687 | BQ185: 68.4957 | BR185: 73.3044 | BS185: 78.1131 | BT185: 82.9218 | BU185: 87.7305 | BV185: 111.7272 | BW185: 123.7431 | BX185: 135.759 | BY185: 147.7749 | BZ185: 159.7908 | CA185: 171.8067 | CB185: 183.8226 | CC185: 195.8385 | CD185: 65.9152 | CE185: 71.5546 | CF185: 77.194 | CG185: 82.8334 | CH185: 88.4728 | CI185: 94.1122 | CJ185: 99.7516 | CK185: 105.391 | CL185: 133.8688 | CM185: 148.0024 | CN185: 162.136 | CO185: 176.2696 | CP185: 190.4032 | CQ185: 204.5368 | CR185: 218.6704 | CS185: 232.804 | CT185: 78.7904 | CU185: 85.3892 | CV185: 91.988 | CW185: 98.5868 | CX185: 105.1856 | CY185: 111.7844 | CZ185: 118.3832 | DA185: 124.982 | DB185: 149.8328 | DC185: 165.3119 | DD185: 180.791 | DE185: 196.2701 | DF185: 211.7492 | DG185: 227.2283 | DH185: 242.7074 | DI185: 258.1865 | DJ185: 149.058 | DK185: 157.248 | DL185: 165.438 | DM185: 174.447 | DN185: 181.818 | DO185: 190.827 | DP185: 198.198 | DQ185: 207.207 | DR185: 209.664 | DS185: 222.768 | DT185: 237.51 | DU185: 250.614 | DV185: 263.718 | DW185: 278.46 | DX185: 291.564 | DY185: 306.306 | DZ185: 187.551 | EA185: 197.379 | EB185: 208.845 | EC185: 220.311 | ED185: 230.958 | EE185: 241.605 | EF185: 252.252 | EG185: 262.899 | EH185: 237.51 | EI185: 253.89 | EJ185: 271.089 | EK185: 288.288 | EL185: 306.306 | EM185: 322.686 | EN185: 339.885 | EO185: 357.084 | EP185: 184.0293 | EQ185: 191.76885 | ER185: 201.2283 | ES185: 210.68775 | ET185: 219.28725 | EU185: 228.7467 | EV185: 237.3462 | EW185: 246.80565 | EX185: 239.92605 | EY185: 255.40515 | EZ185: 270.0243 | FA185: 285.5034 | FB185: 299.2626 | FC185: 313.88175 | FD185: 329.36085 | FE185: 343.98 | FF185: 175.266 | FG185: 182.637 | FH185: 191.646 | FI185: 200.655 | FJ185: 208.845 | FK185: 217.854 | FL185: 226.044 | FM185: 235.053 | FN185: 228.501 | FO185: 243.243 | FP185: 257.166 | FQ185: 271.908 | FR185: 285.012 | FS185: 298.935 | FT185: 313.677 | FU185: 327.6 | FV185: 122.031 | FW185: 129.402 | FX185: 139.23 | FY185: 147.42 | FZ185: 156.429 | GA185: 163.8 | GB185: 173.628 | GC185: 181.818 | GD185: 159.705 | GE185: 170.352 | GF185: 182.637 | GG185: 194.922 | GH185: 206.388 | GI185: 218.673 | GJ185: 230.139 | GK185: 242.424 | GL185: 147.42 | GM185: 156.429 | GN185: 165.438 | GO185: 175.266 | GP185: 185.094 | GQ185: 194.103 | GR185: 203.112 | GS185: 212.94 | GT185: 187.551 | GU185: 200.655 | GV185: 214.578 | GW185: 227.682 | GX185: 240.786 | GY185: 253.89 | GZ185: 267.813 | HA185: 280.917 | HB185: 162.981 | HC185: 173.628 | HD185: 182.637 | HE185: 193.284 | HF185: 202.293 | HG185: 212.121 | HH185: 221.949 | HI185: 231.777 | HJ185: 211.302 | HK185: 225.225 | HL185: 238.329 | HM185: 252.252 | HN185: 266.175 | HO185: 280.098 | HP185: 294.021 | HQ185: 307.125
A186: 1900 | B186: 110.634 | C186: 121.0795 | D186: 132.525 | E186: 143.9705 | F186: 148 | G186: 151 | H186: 154 | I186: 156 | J186: 176 | K186: 185 | L186: 195 | M186: 205 | N186: 214 | O186: 224 | P186: 233 | Q186: 243 | R186: 107.634 | S186: 118.0795 | T186: 128.525 | U186: 138.9705 | V186: 144 | W186: 146 | X186: 148 | Y186: 150 | Z186: 170 | AA186: 179 | AB186: 187 | AC186: 196 | AD186: 204 | AE186: 213 | AF186: 221 | AG186: 230 | AH186: 129.634 | AI186: 139.0795 | AJ186: 155.525 | AK186: 164.9705 | AL186: 175 | AM186: 184 | AN186: 184 | AO186: 192 | AP186: 193 | AQ186: 194 | AR186: 211 | AS186: 212 | AT186: 230 | AU186: 247 | AV186: 248 | AW186: 265 | AX186: 148.634 | AY186: 166.0795 | AZ186: 184.525 | BA186: 201.9705 | BB186: 214 | BC186: 223 | BD186: 233 | BE186: 242 | BF186: 194 | BG186: 207 | BH186: 219 | BI186: 232 | BJ186: 245 | BK186: 258 | BL186: 271 | BM186: 283 | BN186: 56.2068 | BO186: 61.28265 | BP186: 66.3585 | BQ186: 71.43435 | BR186: 76.5102 | BS186: 81.58605 | BT186: 86.6619 | BU186: 91.73775 | BV186: 117.0676 | BW186: 129.75105 | BX186: 142.4345 | BY186: 155.11795 | BZ186: 167.8014 | CA186: 180.48485 | CB186: 193.1683 | CC186: 205.85175 | CD186: 68.4216 | CE186: 74.3743 | CF186: 80.327 | CG186: 86.2797 | CH186: 92.2324 | CI186: 98.1851 | CJ186: 104.1378 | CK186: 110.0905 | CL186: 140.1504 | CM186: 155.0692 | CN186: 169.988 | CO186: 184.9068 | CP186: 199.8256 | CQ186: 214.7444 | CR186: 229.6632 | CS186: 244.582 | CT186: 81.7232 | CU186: 88.6886 | CV186: 95.654 | CW186: 102.6194 | CX186: 109.5848 | CY186: 116.5502 | CZ186: 123.5156 | DA186: 130.481 | DB186: 156.7124 | DC186: 173.05145 | DD186: 189.3905 | DE186: 205.72955 | DF186: 222.0686 | DG186: 238.40765 | DH186: 254.7467 | DI186: 271.08575 | DJ186: 154.791 | DK186: 163.8 | DL186: 173.628 | DM186: 181.818 | DN186: 190.827 | DO186: 198.198 | DP186: 208.026 | DQ186: 217.035 | DR186: 219.492 | DS186: 233.415 | DT186: 248.157 | DU186: 262.899 | DV186: 277.641 | DW186: 291.564 | DX186: 306.306 | DY186: 321.048 | DZ186: 194.922 | EA186: 207.207 | EB186: 217.854 | EC186: 228.501 | ED186: 240.786 | EE186: 252.252 | EF186: 263.718 | EG186: 276.003 | EH186: 248.157 | EI186: 265.356 | EJ186: 283.374 | EK186: 301.392 | EL186: 320.229 | EM186: 338.247 | EN186: 356.265 | EO186: 374.283 | EP186: 190.9089 | EQ186: 200.36835 | ER186: 208.96785 | ES186: 219.28725 | ET186: 229.60665 | EU186: 238.20615 | EV186: 248.52555 | EW186: 257.985 | EX186: 251.96535 | EY186: 266.5845 | EZ186: 282.0636 | FA186: 298.40265 | FB186: 313.0218 | FC186: 329.36085 | FD186: 343.98 | FE186: 360.31905 | FF186: 181.818 | FG186: 190.827 | FH186: 199.017 | FI186: 208.845 | FJ186: 218.673 | FK186: 226.863 | FL186: 236.691 | FM186: 245.7 | FN186: 239.967 | FO186: 253.89 | FP186: 268.632 | FQ186: 284.193 | FR186: 298.116 | FS186: 313.677 | FT186: 327.6 | FU186: 343.161 | FV186: 126.945 | FW186: 135.954 | FX186: 144.963 | FY186: 153.153 | FZ186: 162.981 | GA186: 171.99 | GB186: 181.818 | GC186: 190.827 | GD186: 166.257 | GE186: 178.542 | GF186: 191.646 | GG186: 203.931 | GH186: 216.216 | GI186: 229.32 | GJ186: 240.786 | GK186: 253.89 | GL186: 152.334 | GM186: 162.981 | GN186: 173.628 | GO186: 182.637 | GP186: 192.465 | GQ186: 201.474 | GR186: 212.121 | GS186: 221.949 | GT186: 196.56 | GU186: 210.483 | GV186: 222.768 | GW186: 237.51 | GX186: 251.433 | GY186: 265.356 | GZ186: 279.279 | HA186: 294.021 | HB186: 170.352 | HC186: 180.18 | HD186: 190.827 | HE186: 200.655 | HF186: 211.302 | HG186: 221.13 | HH186: 231.777 | HI186: 242.424 | HJ186: 221.13 | HK186: 235.053 | HL186: 248.976 | HM186: 263.718 | HN186: 277.641 | HO186: 291.564 | HP186: 306.306 | HQ186: 320.229
A187: 2000 | B187: 115.3 | C187: 127.19 | D187: 139.08 | E187: 150.97 | F187: 159 | G187: 162 | H187: 165 | I187: 168 | J187: 189 | K187: 199 | L187: 209 | M187: 219 | N187: 229 | O187: 239 | P187: 249 | Q187: 259 | R187: 113.3 | S187: 124.19 | T187: 135.08 | U187: 145.97 | V187: 155 | W187: 157 | X187: 159 | Y187: 161 | Z187: 184 | AA187: 193 | AB187: 202 | AC187: 211 | AD187: 220 | AE187: 229 | AF187: 238 | AG187: 247 | AH187: 136.3 | AI187: 146.19 | AJ187: 163.08 | AK187: 172.97 | AL187: 188 | AM187: 197 | AN187: 197 | AO187: 206 | AP187: 208 | AQ187: 209 | AR187: 227 | AS187: 228 | AT187: 246 | AU187: 264 | AV187: 265 | AW187: 283 | AX187: 156.3 | AY187: 175.19 | AZ187: 193.08 | BA187: 211.97 | BB187: 228 | BC187: 238 | BD187: 248 | BE187: 258 | BF187: 208 | BG187: 222 | BH187: 235 | BI187: 249 | BJ187: 262 | BK187: 276 | BL187: 289 | BM187: 303 | BN187: 58.344 | BO187: 63.687 | BP187: 69.03 | BQ187: 74.373 | BR187: 79.716 | BS187: 85.059 | BT187: 90.402 | BU187: 95.745 | BV187: 122.408 | BW187: 135.759 | BX187: 149.11 | BY187: 162.461 | BZ187: 175.812 | CA187: 189.163 | CB187: 202.514 | CC187: 215.865 | CD187: 70.928 | CE187: 77.194 | CF187: 83.46 | CG187: 89.726 | CH187: 95.992 | CI187: 102.258 | CJ187: 108.524 | CK187: 114.79 | CL187: 146.432 | CM187: 162.136 | CN187: 177.84 | CO187: 193.544 | CP187: 209.248 | CQ187: 224.952 | CR187: 240.656 | CS187: 256.36 | CT187: 84.656 | CU187: 91.988 | CV187: 99.32 | CW187: 106.652 | CX187: 113.984 | CY187: 121.316 | CZ187: 128.648 | DA187: 135.98 | DB187: 163.592 | DC187: 180.791 | DD187: 197.99 | DE187: 215.189 | DF187: 232.388 | DG187: 249.587 | DH187: 266.786 | DI187: 283.985 | DJ187: 162.162 | DK187: 171.99 | DL187: 180.18 | DM187: 190.008 | DN187: 198.198 | DO187: 208.026 | DP187: 217.854 | DQ187: 226.044 | DR187: 228.501 | DS187: 244.062 | DT187: 258.804 | DU187: 274.365 | DV187: 289.926 | DW187: 305.487 | DX187: 320.229 | DY187: 334.971 | DZ187: 231.777 | EA187: 243.243 | EB187: 254.709 | EC187: 267.813 | ED187: 280.098 | EE187: 291.564 | EF187: 304.668 | EG187: 315.315 | EH187: 285.831 | EI187: 306.306 | EJ187: 324.324 | EK187: 343.98 | EL187: 362.817 | EM187: 381.654 | EN187: 401.31 | EO187: 419.328 | EP187: 198.64845 | EQ187: 208.1079 | ER187: 218.4273 | ES187: 228.7467 | ET187: 238.20615 | EU187: 249.3855 | EV187: 258.84495 | EW187: 268.3044 | EX187: 263.1447 | EY187: 278.6238 | EZ187: 294.96285 | FA187: 311.3019 | FB187: 327.64095 | FC187: 343.12005 | FD187: 360.31905 | FE187: 375.79815 | FF187: 189.189 | FG187: 198.198 | FH187: 208.026 | FI187: 217.854 | FJ187: 226.863 | FK187: 237.51 | FL187: 246.519 | FM187: 255.528 | FN187: 250.614 | FO187: 265.356 | FP187: 280.917 | FQ187: 296.478 | FR187: 312.039 | FS187: 326.781 | FT187: 343.161 | FU187: 357.903 | FV187: 131.859 | FW187: 141.687 | FX187: 150.696 | FY187: 161.343 | FZ187: 170.352 | GA187: 180.18 | GB187: 189.189 | GC187: 199.017 | GD187: 174.447 | GE187: 186.732 | GF187: 199.836 | GG187: 212.94 | GH187: 226.044 | GI187: 239.148 | GJ187: 252.252 | GK187: 266.175 | GL187: 158.886 | GM187: 168.714 | GN187: 179.361 | GO187: 189.189 | GP187: 199.836 | GQ187: 211.302 | GR187: 220.311 | GS187: 230.958 | GT187: 203.931 | GU187: 218.673 | GV187: 233.415 | GW187: 247.338 | GX187: 262.08 | GY187: 276.822 | GZ187: 290.745 | HA187: 305.487 | HB187: 176.904 | HC187: 187.551 | HD187: 199.017 | HE187: 209.664 | HF187: 220.311 | HG187: 230.958 | HH187: 240.786 | HI187: 251.433 | HJ187: 230.139 | HK187: 245.7 | HL187: 259.623 | HM187: 274.365 | HN187: 289.107 | HO187: 304.668 | HP187: 319.41 | HQ187: 333.333
A188: 2100 | B188: 120.856 | C188: 133.1905 | D188: 145.525 | E188: 157.8595 | F188: 162 | G188: 165 | H188: 168 | I188: 171 | J188: 194 | K188: 205 | L188: 215 | M188: 226 | N188: 237 | O188: 247 | P188: 258 | Q188: 268 | R188: 117.856 | S188: 129.1905 | T188: 141.525 | U188: 152.8595 | V188: 156 | W188: 159 | X188: 161 | Y188: 163 | Z188: 187 | AA188: 197 | AB188: 206 | AC188: 215 | AD188: 225 | AE188: 234 | AF188: 243 | AG188: 253 | AH188: 142.856 | AI188: 152.1905 | AJ188: 171.525 | AK188: 180.8595 | AL188: 191 | AM188: 201 | AN188: 201 | AO188: 211 | AP188: 213 | AQ188: 214 | AR188: 233 | AS188: 234 | AT188: 253 | AU188: 273 | AV188: 274 | AW188: 293 | AX188: 162.856 | AY188: 183.1905 | AZ188: 202.525 | BA188: 222.8595 | BB188: 234 | BC188: 245 | BD188: 255 | BE188: 266 | BF188: 214 | BG188: 228 | BH188: 242 | BI188: 256 | BJ188: 271 | BK188: 285 | BL188: 299 | BM188: 313 | BN188: 60.4812 | BO188: 66.09135 | BP188: 71.7015 | BQ188: 77.31165 | BR188: 82.9218 | BS188: 88.53195 | BT188: 94.1421 | BU188: 99.75225 | BV188: 127.7484 | BW188: 141.76695 | BX188: 155.7855 | BY188: 169.80405 | BZ188: 183.8226 | CA188: 197.84115 | CB188: 211.8597 | CC188: 225.87825 | CD188: 73.4344 | CE188: 80.0137 | CF188: 86.593 | CG188: 93.1723 | CH188: 99.7516 | CI188: 106.3309 | CJ188: 112.9102 | CK188: 119.4895 | CL188: 152.7136 | CM188: 169.2028 | CN188: 185.692 | CO188: 202.1812 | CP188: 218.6704 | CQ188: 235.1596 | CR188: 251.6488 | CS188: 268.138 | CT188: 87.5888 | CU188: 95.2874 | CV188: 102.986 | CW188: 110.6846 | CX188: 118.3832 | CY188: 126.0818 | CZ188: 133.7804 | DA188: 141.479 | DB188: 170.4716 | DC188: 188.53055 | DD188: 206.5895 | DE188: 224.64845 | DF188: 242.7074 | DG188: 260.76635 | DH188: 278.8253 | DI188: 296.88425 | DJ188: 166.257 | DK188: 176.904 | DL188: 186.732 | DM188: 195.741 | DN188: 206.388 | DO188: 214.578 | DP188: 224.406 | DQ188: 234.234 | DR188: 237.51 | DS188: 253.071 | DT188: 268.632 | DU188: 285.012 | DV188: 300.573 | DW188: 316.953 | DX188: 332.514 | DY188: 349.713 | DZ188: 236.691 | EA188: 248.976 | EB188: 262.08 | EC188: 275.184 | ED188: 286.65 | EE188: 299.754 | EF188: 312.858 | EG188: 325.143 | EH188: 294.021 | EI188: 314.496 | EJ188: 334.971 | EK188: 354.627 | EL188: 374.283 | EM188: 394.758 | EN188: 414.414 | EO188: 434.889 | EP188: 203.80815 | EQ188: 214.9875 | ER188: 225.3069 | ES188: 235.6263 | ET188: 245.9457 | EU188: 256.2651 | EV188: 266.5845 | EW188: 277.76385 | EX188: 270.88425 | EY188: 288.08325 | EZ188: 305.28225 | FA188: 323.3412 | FB188: 339.68025 | FC188: 356.87925 | FD188: 373.2183 | FE188: 390.4173 | FF188: 194.103 | FG188: 204.75 | FH188: 214.578 | FI188: 224.406 | FJ188: 234.234 | FK188: 244.062 | FL188: 253.89 | FM188: 264.537 | FN188: 257.985 | FO188: 274.365 | FP188: 290.745 | FQ188: 307.944 | FR188: 323.505 | FS188: 339.885 | FT188: 355.446 | FU188: 371.826 | FV188: 136.773 | FW188: 146.601 | FX188: 157.248 | FY188: 166.257 | FZ188: 176.904 | GA188: 186.732 | GB188: 197.379 | GC188: 206.388 | GD188: 180.18 | GE188: 194.103 | GF188: 208.026 | GG188: 221.13 | GH188: 235.053 | GI188: 248.976 | GJ188: 262.899 | GK188: 276.822 | GL188: 162.981 | GM188: 174.447 | GN188: 185.094 | GO188: 195.741 | GP188: 205.569 | GQ188: 217.035 | GR188: 227.682 | GS188: 238.329 | GT188: 211.302 | GU188: 225.225 | GV188: 239.967 | GW188: 255.528 | GX188: 271.089 | GY188: 285.831 | GZ188: 300.573 | HA188: 316.134 | HB188: 182.637 | HC188: 194.103 | HD188: 204.75 | HE188: 216.216 | HF188: 226.863 | HG188: 237.51 | HH188: 248.976 | HI188: 260.442 | HJ188: 237.51 | HK188: 253.071 | HL188: 268.632 | HM188: 284.193 | HN188: 299.754 | HO188: 315.315 | HP188: 330.876 | HQ188: 345.618
A189: 2200 | B189: 126.412 | C189: 139.191 | D189: 151.97 | E189: 161 | F189: 164 | G189: 167 | H189: 170 | I189: 173 | J189: 199 | K189: 209 | L189: 220 | M189: 231 | N189: 242 | O189: 253 | P189: 264 | Q189: 275 | R189: 123.412 | S189: 135.191 | T189: 146.97 | U189: 156 | V189: 158 | W189: 161 | X189: 163 | Y189: 166 | Z189: 192 | AA189: 202 | AB189: 212 | AC189: 222 | AD189: 232 | AE189: 241 | AF189: 251 | AG189: 261 | AH189: 149.412 | AI189: 159.191 | AJ189: 178.97 | AK189: 185 | AL189: 195 | AM189: 205 | AN189: 205 | AO189: 215 | AP189: 219 | AQ189: 220 | AR189: 240 | AS189: 241 | AT189: 261 | AU189: 281 | AV189: 282 | AW189: 302 | AX189: 170.412 | AY189: 191.191 | AZ189: 211.97 | BA189: 229 | BB189: 240 | BC189: 251 | BD189: 262 | BE189: 273 | BF189: 220 | BG189: 235 | BH189: 249 | BI189: 264 | BJ189: 279 | BK189: 294 | BL189: 309 | BM189: 323 | BN189: 62.6184 | BO189: 68.4957 | BP189: 74.373 | BQ189: 80.2503 | BR189: 86.1276 | BS189: 92.0049 | BT189: 97.8822 | BU189: 103.7595 | BV189: 133.0888 | BW189: 147.7749 | BX189: 162.461 | BY189: 177.1471 | BZ189: 191.8332 | CA189: 206.5193 | CB189: 221.2054 | CC189: 235.8915 | CD189: 75.9408 | CE189: 82.8334 | CF189: 89.726 | CG189: 96.6186 | CH189: 103.5112 | CI189: 110.4038 | CJ189: 117.2964 | CK189: 124.189 | CL189: 158.9952 | CM189: 176.2696 | CN189: 193.544 | CO189: 210.8184 | CP189: 228.0928 | CQ189: 245.3672 | CR189: 262.6416 | CS189: 279.916 | CT189: 90.5216 | CU189: 98.5868 | CV189: 106.652 | CW189: 114.7172 | CX189: 122.7824 | CY189: 130.8476 | CZ189: 138.9128 | DA189: 146.978 | DB189: 177.3512 | DC189: 196.2701 | DD189: 215.189 | DE189: 234.1079 | DF189: 253.0268 | DG189: 271.9457 | DH189: 290.8646 | DI189: 309.7835 | DJ189: 172.809 | DK189: 181.818 | DL189: 192.465 | DM189: 203.112 | DN189: 212.121 | DO189: 222.768 | DP189: 232.596 | DQ189: 242.424 | DR189: 245.7 | DS189: 262.08 | DT189: 279.279 | DU189: 295.659 | DV189: 312.039 | DW189: 328.419 | DX189: 345.618 | DY189: 361.998 | DZ189: 241.605 | EA189: 254.709 | EB189: 268.632 | EC189: 281.736 | ED189: 294.84 | EE189: 308.763 | EF189: 321.867 | EG189: 335.79 | EH189: 302.211 | EI189: 323.505 | EJ189: 343.98 | EK189: 366.093 | EL189: 385.749 | EM189: 407.862 | EN189: 428.337 | EO189: 448.812 | EP189: 210.68775 | EQ189: 221.00715 | ER189: 232.1865 | ES189: 242.5059 | ET189: 253.68525 | EU189: 264.8646 | EV189: 275.184 | EW189: 286.36335 | EX189: 280.3437 | EY189: 298.40265 | EZ189: 315.60165 | FA189: 333.6606 | FB189: 351.71955 | FC189: 369.7785 | FD189: 386.9775 | FE189: 405.03645 | FF189: 200.655 | FG189: 210.483 | FH189: 221.13 | FI189: 230.958 | FJ189: 241.605 | FK189: 252.252 | FL189: 262.08 | FM189: 272.727 | FN189: 266.994 | FO189: 284.193 | FP189: 300.573 | FQ189: 317.772 | FR189: 334.971 | FS189: 352.17 | FT189: 368.55 | FU189: 385.749 | FV189: 140.868 | FW189: 150.696 | FX189: 162.981 | FY189: 173.628 | FZ189: 183.456 | GA189: 194.103 | GB189: 203.931 | GC189: 214.578 | GD189: 186.732 | GE189: 200.655 | GF189: 215.397 | GG189: 230.139 | GH189: 244.062 | GI189: 257.985 | GJ189: 271.908 | GK189: 286.65 | GL189: 167.895 | GM189: 178.542 | GN189: 189.189 | GO189: 200.655 | GP189: 212.121 | GQ189: 222.768 | GR189: 235.053 | GS189: 246.519 | GT189: 216.216 | GU189: 232.596 | GV189: 248.157 | GW189: 263.718 | GX189: 280.098 | GY189: 295.659 | GZ189: 311.22 | HA189: 326.781 | HB189: 187.551 | HC189: 199.017 | HD189: 211.302 | HE189: 222.768 | HF189: 234.234 | HG189: 246.519 | HH189: 257.166 | HI189: 269.451 | HJ189: 246.519 | HK189: 262.08 | HL189: 277.641 | HM189: 294.021 | HN189: 308.763 | HO189: 325.143 | HP189: 341.523 | HQ189: 357.084
A190: 2300 | B190: 131.968 | C190: 145.1915 | D190: 158.415 | E190: 163 | F190: 166 | G190: 169 | H190: 173 | I190: 176 | J190: 204 | K190: 215 | L190: 227 | M190: 239 | N190: 250 | O190: 262 | P190: 273 | Q190: 285 | R190: 127.968 | S190: 141.1915 | T190: 153.415 | U190: 158 | V190: 160 | W190: 163 | X190: 166 | Y190: 168 | Z190: 197 | AA190: 208 | AB190: 218 | AC190: 228 | AD190: 239 | AE190: 249 | AF190: 259 | AG190: 270 | AH190: 154.968 | AI190: 166.1915 | AJ190: 186.415 | AK190: 189 | AL190: 199 | AM190: 209 | AN190: 209 | AO190: 220 | AP190: 224 | AQ190: 225 | AR190: 246 | AS190: 247 | AT190: 268 | AU190: 289 | AV190: 290 | AW190: 311 | AX190: 177.968 | AY190: 200.1915 | AZ190: 221.415 | BA190: 235 | BB190: 246 | BC190: 258 | BD190: 269 | BE190: 281 | BF190: 225 | BG190: 241 | BH190: 256 | BI190: 272 | BJ190: 287 | BK190: 303 | BL190: 318 | BM190: 334 | BN190: 64.7556 | BO190: 70.90005 | BP190: 77.0445 | BQ190: 83.18895 | BR190: 89.3334 | BS190: 95.47785 | BT190: 101.6223 | BU190: 107.76675 | BV190: 138.4292 | BW190: 153.78285 | BX190: 169.1365 | BY190: 184.49015 | BZ190: 199.8438 | CA190: 215.19745 | CB190: 230.5511 | CC190: 245.90475 | CD190: 78.4472 | CE190: 85.6531 | CF190: 92.859 | CG190: 100.0649 | CH190: 107.2708 | CI190: 114.4767 | CJ190: 121.6826 | CK190: 128.8885 | CL190: 165.2768 | CM190: 183.3364 | CN190: 201.396 | CO190: 219.4556 | CP190: 237.5152 | CQ190: 255.5748 | CR190: 273.6344 | CS190: 291.694 | CT190: 93.4544 | CU190: 101.8862 | CV190: 110.318 | CW190: 118.7498 | CX190: 127.1816 | CY190: 135.6134 | CZ190: 144.0452 | DA190: 152.477 | DB190: 184.2308 | DC190: 204.00965 | DD190: 223.7885 | DE190: 243.56735 | DF190: 263.3462 | DG190: 283.12505 | DH190: 302.9039 | DI190: 322.68275 | DJ190: 206.388 | DK190: 216.216 | DL190: 226.044 | DM190: 237.51 | DN190: 248.157 | DO190: 257.985 | DP190: 269.451 | DQ190: 280.098 | DR190: 282.555 | DS190: 299.754 | DT190: 316.953 | DU190: 334.971 | DV190: 352.17 | DW190: 370.188 | DX190: 386.568 | DY190: 404.586 | DZ190: 247.338 | EA190: 260.442 | EB190: 275.184 | EC190: 289.107 | ED190: 302.211 | EE190: 316.134 | EF190: 330.057 | EG190: 343.98 | EH190: 310.401 | EI190: 330.876 | EJ190: 353.808 | EK190: 375.921 | EL190: 398.034 | EM190: 420.147 | EN190: 442.26 | EO190: 463.554 | EP190: 246.80565 | EQ190: 257.985 | ER190: 268.3044 | ES190: 280.3437 | ET190: 291.52305 | EU190: 301.84245 | EV190: 314.7417 | EW190: 325.92105 | EX190: 319.9014 | EY190: 337.96035 | EZ190: 356.87925 | FA190: 374.9382 | FB190: 392.99715 | FC190: 411.0561 | FD190: 430.83495 | FE190: 448.8939 | FF190: 235.053 | FG190: 245.7 | FH190: 255.528 | FI190: 266.994 | FJ190: 277.641 | FK190: 287.469 | FL190: 299.754 | FM190: 310.401 | FN190: 304.668 | FO190: 321.867 | FP190: 339.885 | FQ190: 357.084 | FR190: 374.283 | FS190: 391.482 | FT190: 410.319 | FU190: 427.518 | FV190: 145.782 | FW190: 157.248 | FX190: 167.076 | FY190: 178.542 | FZ190: 189.189 | GA190: 199.836 | GB190: 211.302 | GC190: 221.949 | GD190: 193.284 | GE190: 208.026 | GF190: 222.768 | GG190: 237.51 | GH190: 252.252 | GI190: 267.813 | GJ190: 283.374 | GK190: 298.116 | GL190: 171.99 | GM190: 184.275 | GN190: 195.741 | GO190: 206.388 | GP190: 218.673 | GQ190: 230.139 | GR190: 242.424 | GS190: 253.071 | GT190: 222.768 | GU190: 239.148 | GV190: 255.528 | GW190: 271.089 | GX190: 288.288 | GY190: 304.668 | GZ190: 321.048 | HA190: 337.428 | HB190: 193.284 | HC190: 204.75 | HD190: 217.035 | HE190: 229.32 | HF190: 240.786 | HG190: 253.071 | HH190: 265.356 | HI190: 277.641 | HJ190: 253.071 | HK190: 270.27 | HL190: 286.65 | HM190: 303.03 | HN190: 319.41 | HO190: 336.609 | HP190: 352.989 | HQ190: 369.369
A191: 2400 | B191: 136.524 | C191: 151.192 | D191: 162 | E191: 165 | F191: 168 | G191: 172 | H191: 175 | I191: 178 | J191: 208 | K191: 220 | L191: 232 | M191: 244 | N191: 256 | O191: 268 | P191: 280 | Q191: 292 | R191: 133.524 | S191: 146.192 | T191: 157 | U191: 159 | V191: 162 | W191: 165 | X191: 167 | Y191: 170 | Z191: 201 | AA191: 211 | AB191: 222 | AC191: 232 | AD191: 243 | AE191: 254 | AF191: 264 | AG191: 275 | AH191: 161.524 | AI191: 173.192 | AJ191: 191 | AK191: 192 | AL191: 202 | AM191: 213 | AN191: 214 | AO191: 224 | AP191: 230 | AQ191: 231 | AR191: 253 | AS191: 254 | AT191: 276 | AU191: 298 | AV191: 299 | AW191: 321 | AX191: 185.524 | AY191: 208.192 | AZ191: 228 | BA191: 240 | BB191: 252 | BC191: 264 | BD191: 276 | BE191: 288 | BF191: 231 | BG191: 247 | BH191: 263 | BI191: 279 | BJ191: 296 | BK191: 312 | BL191: 328 | BM191: 344 | BN191: 66.8928 | BO191: 73.3044 | BP191: 79.716 | BQ191: 86.1276 | BR191: 92.5392 | BS191: 98.9508 | BT191: 105.3624 | BU191: 111.774 | BV191: 143.7696 | BW191: 159.7908 | BX191: 175.812 | BY191: 191.8332 | BZ191: 207.8544 | CA191: 223.8756 | CB191: 239.8968 | CC191: 255.918 | CD191: 80.9536 | CE191: 88.4728 | CF191: 95.992 | CG191: 103.5112 | CH191: 111.0304 | CI191: 118.5496 | CJ191: 126.0688 | CK191: 133.588 | CL191: 171.5584 | CM191: 190.4032 | CN191: 209.248 | CO191: 228.0928 | CP191: 246.9376 | CQ191: 265.7824 | CR191: 284.6272 | CS191: 303.472 | CT191: 96.3872 | CU191: 105.1856 | CV191: 113.984 | CW191: 122.7824 | CX191: 131.5808 | CY191: 140.3792 | CZ191: 149.1776 | DA191: 157.976 | DB191: 191.1104 | DC191: 211.7492 | DD191: 232.388 | DE191: 253.0268 | DF191: 273.6656 | DG191: 294.3044 | DH191: 314.9432 | DI191: 335.582 | DJ191: 210.483 | DK191: 221.949 | DL191: 233.415 | DM191: 243.243 | DN191: 254.709 | DO191: 266.175 | DP191: 276.822 | DQ191: 287.469 | DR191: 290.745 | DS191: 308.763 | DT191: 326.781 | DU191: 344.799 | DV191: 363.636 | DW191: 381.654 | DX191: 400.491 | DY191: 417.69 | DZ191: 252.252 | EA191: 266.994 | EB191: 280.917 | EC191: 295.659 | ED191: 310.401 | EE191: 324.324 | EF191: 339.885 | EG191: 353.808 | EH191: 318.591 | EI191: 340.704 | EJ191: 363.636 | EK191: 386.568 | EL191: 410.319 | EM191: 433.251 | EN191: 456.183 | EO191: 479.115 | EP191: 251.96535 | EQ191: 264.00465 | ER191: 275.184 | ES191: 288.08325 | ET191: 298.40265 | EU191: 310.44195 | EV191: 323.3412 | EW191: 334.52055 | EX191: 328.5009 | EY191: 346.55985 | EZ191: 367.19865 | FA191: 386.9775 | FB191: 405.03645 | FC191: 424.8153 | FD191: 443.7342 | FE191: 463.51305 | FF191: 239.967 | FG191: 251.433 | FH191: 262.08 | FI191: 274.365 | FJ191: 284.193 | FK191: 295.659 | FL191: 307.944 | FM191: 318.591 | FN191: 312.858 | FO191: 330.057 | FP191: 349.713 | FQ191: 368.55 | FR191: 385.749 | FS191: 404.586 | FT191: 422.604 | FU191: 441.441 | FV191: 149.877 | FW191: 162.162 | FX191: 173.628 | FY191: 184.275 | FZ191: 195.741 | GA191: 208.026 | GB191: 218.673 | GC191: 230.139 | GD191: 199.017 | GE191: 214.578 | GF191: 230.958 | GG191: 246.519 | GH191: 261.261 | GI191: 277.641 | GJ191: 292.383 | GK191: 307.944 | GL191: 176.904 | GM191: 188.37 | GN191: 200.655 | GO191: 212.94 | GP191: 225.225 | GQ191: 236.691 | GR191: 248.976 | GS191: 261.261 | GT191: 229.32 | GU191: 246.519 | GV191: 263.718 | GW191: 280.917 | GX191: 297.297 | GY191: 314.496 | GZ191: 331.695 | HA191: 348.075 | HB191: 199.017 | HC191: 211.302 | HD191: 222.768 | HE191: 235.872 | HF191: 248.157 | HG191: 261.261 | HH191: 272.727 | HI191: 285.831 | HJ191: 261.261 | HK191: 278.46 | HL191: 295.659 | HM191: 312.858 | HN191: 330.876 | HO191: 347.256 | HP191: 365.274 | HQ191: 381.654
A192: 2500 | B192: 142.08 | C192: 156.1925 | D192: 164 | E192: 167 | F192: 170 | G192: 174 | H192: 177 | I192: 180 | J192: 212 | K192: 225 | L192: 237 | M192: 249 | N192: 262 | O192: 274 | P192: 286 | Q192: 299 | R192: 138.08 | S192: 152.1925 | T192: 159 | U192: 161 | V192: 164 | W192: 167 | X192: 170 | Y192: 172 | Z192: 206 | AA192: 217 | AB192: 228 | AC192: 239 | AD192: 250 | AE192: 261 | AF192: 272 | AG192: 283 | AH192: 168.08 | AI192: 180.1925 | AJ192: 195 | AK192: 195 | AL192: 206 | AM192: 217 | AN192: 218 | AO192: 229 | AP192: 236 | AQ192: 237 | AR192: 260 | AS192: 261 | AT192: 283 | AU192: 306 | AV192: 307 | AW192: 330 | AX192: 193.08 | AY192: 216.1925 | AZ192: 233 | BA192: 245 | BB192: 258 | BC192: 270 | BD192: 283 | BE192: 295 | BF192: 237 | BG192: 254 | BH192: 270 | BI192: 287 | BJ192: 304 | BK192: 321 | BL192: 338 | BM192: 354 | BN192: 69.03 | BO192: 75.70875 | BP192: 82.3875 | BQ192: 89.06625 | BR192: 95.745 | BS192: 102.42375 | BT192: 109.1025 | BU192: 115.78125 | BV192: 149.11 | BW192: 165.79875 | BX192: 182.4875 | BY192: 199.17625 | BZ192: 215.865 | CA192: 232.55375 | CB192: 249.2425 | CC192: 265.93125 | CD192: 83.46 | CE192: 91.2925 | CF192: 99.125 | CG192: 106.9575 | CH192: 114.79 | CI192: 122.6225 | CJ192: 130.455 | CK192: 138.2875 | CL192: 177.84 | CM192: 197.47 | CN192: 217.1 | CO192: 236.73 | CP192: 256.36 | CQ192: 275.99 | CR192: 295.62 | CS192: 315.25 | CT192: 99.32 | CU192: 108.485 | CV192: 117.65 | CW192: 126.815 | CX192: 135.98 | CY192: 145.145 | CZ192: 154.31 | DA192: 163.475 | DB192: 197.99 | DC192: 219.48875 | DD192: 240.9875 | DE192: 262.48625 | DF192: 283.985 | DG192: 305.48375 | DH192: 326.9825 | DI192: 348.48125 | DJ192: 216.216 | DK192: 226.863 | DL192: 239.148 | DM192: 249.795 | DN192: 261.261 | DO192: 272.727 | DP192: 284.193 | DQ192: 295.659 | DR192: 298.935 | DS192: 316.953 | DT192: 337.428 | DU192: 355.446 | DV192: 374.283 | DW192: 393.939 | DX192: 412.776 | DY192: 430.794 | DZ192: 256.347 | EA192: 271.908 | EB192: 286.65 | EC192: 303.03 | ED192: 318.591 | EE192: 334.152 | EF192: 348.894 | EG192: 363.636 | EH192: 325.143 | EI192: 349.713 | EJ192: 373.464 | EK192: 397.215 | EL192: 420.966 | EM192: 445.536 | EN192: 470.106 | EO192: 493.038 | EP192: 277.641 | EQ192: 290.745 | ER192: 304.668 | ES192: 318.591 | ET192: 332.514 | EU192: 346.437 | EV192: 360.36 | EW192: 374.283 | EX192: 337.1004 | EY192: 357.7392 | EZ192: 376.6581 | FA192: 398.15685 | FB192: 417.07575 | FC192: 436.8546 | FD192: 457.4934 | FE192: 477.27225 | FF192: 245.7 | FG192: 256.347 | FH192: 268.632 | FI192: 280.098 | FJ192: 292.383 | FK192: 304.668 | FL192: 315.315 | FM192: 326.781 | FN192: 321.048 | FO192: 340.704 | FP192: 358.722 | FQ192: 379.197 | FR192: 397.215 | FS192: 416.052 | FT192: 435.708 | FU192: 454.545 | FV192: 153.972 | FW192: 166.257 | FX192: 178.542 | FY192: 189.189 | FZ192: 201.474 | GA192: 213.759 | GB192: 226.044 | GC192: 237.51 | GD192: 205.569 | GE192: 221.949 | GF192: 237.51 | GG192: 253.89 | GH192: 270.27 | GI192: 286.65 | GJ192: 303.03 | GK192: 319.41 | GL192: 180.999 | GM192: 194.103 | GN192: 205.569 | GO192: 218.673 | GP192: 230.958 | GQ192: 244.062 | GR192: 256.347 | GS192: 268.632 | GT192: 235.053 | GU192: 253.071 | GV192: 271.089 | GW192: 288.288 | GX192: 306.306 | GY192: 323.505 | GZ192: 341.523 | HA192: 358.722 | HB192: 203.931 | HC192: 217.035 | HD192: 230.139 | HE192: 243.243 | HF192: 255.528 | HG192: 268.632 | HH192: 281.736 | HI192: 294.84 | HJ192: 269.451 | HK192: 286.65 | HL192: 304.668 | HM192: 321.867 | HN192: 339.885 | HO192: 357.903 | HP192: 375.921 | HQ192: 393.12
A193: INCLUSIEF 7% TRANSPORT
B194: PVC 1 WIT | J194: PVC 1 KLEUR | R194: PVC 2 WIT | Z194: PVC 2 KLEUR | AH194: PVC 3 WIT | AP194: PVC 3 KLEUR | AX194: PVC 4 WIT | BF194: PVC 4 KLEUR | BN194: PVC 6 WIT | BV194: PVC 6 KLEUR | CD194: PVC 7 WIT | CL194: PVC 7 KLEUR | CT194: PVC 8 WIT | DB194: PVC 8 KLEUR | DJ194: ALU 1 RAL | DR194: ALU 1 HOUT | DZ194: ALU 2 RAL | EH194: ALU 2 HOUT | EP194: ALU 3 RAL | EX194: ALU 3 HOUT | FF194: ALU 4 RAL | FN194: ALU 4 HOUT | FV194: ALU 6 RAL | GD194: ALU 6 HOUT | GL194: ALU 7 RAL | GT194: ALU 7 HOUT | HB194: ALU 8 RAL | HJ194: ALU 8 HOUT
B195: 400 | C195: 450 | D195: 500 | E195: 550 | F195: 600 | G195: 650 | H195: 700 | I195: 750 | J195: 400 | K195: 450 | L195: 500 | M195: 550 | N195: 600 | O195: 650 | P195: 700 | Q195: 750 | R195: 400 | S195: 450 | T195: 500 | U195: 550 | V195: 600 | W195: 650 | X195: 700 | Y195: 750 | Z195: 400 | AA195: 450 | AB195: 500 | AC195: 550 | AD195: 600 | AE195: 650 | AF195: 700 | AG195: 750 | AH195: 400 | AI195: 450 | AJ195: 500 | AK195: 550 | AL195: 600 | AM195: 650 | AN195: 700 | AO195: 750 | AP195: 400 | AQ195: 450 | AR195: 500 | AS195: 550 | AT195: 600 | AU195: 650 | AV195: 700 | AW195: 750 | AX195: 400 | AY195: 450 | AZ195: 500 | BA195: 550 | BB195: 600 | BC195: 650 | BD195: 700 | BE195: 750 | BF195: 400 | BG195: 450 | BH195: 500 | BI195: 550 | BJ195: 600 | BK195: 650 | BL195: 700 | BM195: 750 | BN195: 400 | BO195: 450 | BP195: 500 | BQ195: 550 | BR195: 600 | BS195: 650 | BT195: 700 | BU195: 750 | BV195: 400 | BW195: 450 | BX195: 500 | BY195: 550 | BZ195: 600 | CA195: 650 | CB195: 700 | CC195: 750 | CD195: 400 | CE195: 450 | CF195: 500 | CG195: 550 | CH195: 600 | CI195: 650 | CJ195: 700 | CK195: 750 | CL195: 400 | CM195: 450 | CN195: 500 | CO195: 550 | CP195: 600 | CQ195: 650 | CR195: 700 | CS195: 750 | CT195: 400 | CU195: 450 | CV195: 500 | CW195: 550 | CX195: 600 | CY195: 650 | CZ195: 700 | DA195: 750 | DB195: 400 | DC195: 450 | DD195: 500 | DE195: 550 | DF195: 600 | DG195: 650 | DH195: 700 | DI195: 750 | DJ195: 400 | DK195: 450 | DL195: 500 | DM195: 550 | DN195: 600 | DO195: 650 | DP195: 700 | DQ195: 750 | DR195: 400 | DS195: 450 | DT195: 500 | DU195: 550 | DV195: 600 | DW195: 650 | DX195: 700 | DY195: 750 | DZ195: 400 | EA195: 450 | EB195: 500 | EC195: 550 | ED195: 600 | EE195: 650 | EF195: 700 | EG195: 750 | EH195: 400 | EI195: 450 | EJ195: 500 | EK195: 550 | EL195: 600 | EM195: 650 | EN195: 700 | EO195: 750 | EP195: 400 | EQ195: 450 | ER195: 500 | ES195: 550 | ET195: 600 | EU195: 650 | EV195: 700 | EW195: 750 | EX195: 400 | EY195: 450 | EZ195: 500 | FA195: 550 | FB195: 600 | FC195: 650 | FD195: 700 | FE195: 750 | FF195: 400 | FG195: 450 | FH195: 500 | FI195: 550 | FJ195: 600 | FK195: 650 | FL195: 700 | FM195: 750 | FN195: 400 | FO195: 450 | FP195: 500 | FQ195: 550 | FR195: 600 | FS195: 650 | FT195: 700 | FU195: 750 | FV195: 400 | FW195: 450 | FX195: 500 | FY195: 550 | FZ195: 600 | GA195: 650 | GB195: 700 | GC195: 750 | GD195: 400 | GE195: 450 | GF195: 500 | GG195: 550 | GH195: 600 | GI195: 650 | GJ195: 700 | GK195: 750 | GL195: 400 | GM195: 450 | GN195: 500 | GO195: 550 | GP195: 600 | GQ195: 650 | GR195: 700 | GS195: 750 | GT195: 400 | GU195: 450 | GV195: 500 | GW195: 550 | GX195: 600 | GY195: 650 | GZ195: 700 | HA195: 750 | HB195: 400 | HC195: 450 | HD195: 500 | HE195: 550 | HF195: 600 | HG195: 650 | HH195: 700 | HI195: 750 | HJ195: 400 | HK195: 450 | HL195: 500 | HM195: 550 | HN195: 600 | HO195: 650 | HP195: 700 | HQ195: 750
A196: 700 | B196: =B174*1.07 -> 71.69 | C196: =C174*1.07 -> 72.76 | D196: 74.9 | E196: 75.97 | F196: 77.04 | G196: 78.11 | H196: 79.18 | I196: 83.355675 | J196: =J174*1.07 -> 116.63 | K196: =K174*1.07 -> 120.91 | L196: 125.19 | M196: 129.47 | N196: 133.75 | O196: 136.96 | P196: 141.24 | Q196: 145.52 | R196: =R174*1.07 -> 70.62 | S196: =S174*1.07 -> 71.69 | T196: 72.76 | U196: 73.83 | V196: 74.9 | W196: 75.97 | X196: 77.04 | Y196: 80.145675 | Z196: =Z174*1.07 -> 114.49 | AA196: =AA174*1.07 -> 117.7 | AB196: 121.98 | AC196: 125.19 | AD196: 128.4 | AE196: 132.68 | AF196: 135.89 | AG196: 139.1 | AH196: =AH174*1.07 -> 78.11 | AI196: =AI174*1.07 -> 79.18 | AJ196: 82.39 | AK196: 83.46 | AL196: 86.67 | AM196: 89.88 | AN196: 89.88 | AO196: 95.125675 | AP196: =AP174*1.07 -> 123.05 | AQ196: =AQ174*1.07 -> 124.12 | AR196: 130.54 | AS196: 131.61 | AT196: 139.1 | AU196: 145.52 | AV196: 146.59 | AW196: 153.01 | AX196: =AX174*1.07 -> 85.6 | AY196: =AY174*1.07 -> 88.81 | AZ196: 92.02 | BA196: 96.3 | BB196: 99.51 | BC196: 103.79 | BD196: 107 | BE196: 113.315675 | BF196: =BF174*1.07 -> 123.05 | BG196: =BG174*1.07 -> 128.4 | BH196: 133.75 | BI196: 139.1 | BJ196: 144.45 | BK196: 149.8 | BL196: 154.08 | BM196: 159.43 | BN196: =BN174*1.07 -> 32.699628 | BO196: =BO174*1.07 -> 34.7005815 | BP196: 36.701535 | BQ196: 38.7024885 | BR196: 40.703442 | BS196: 42.7043955 | BT196: 44.705349 | BU196: 46.7063025 | BV196: =BV174*1.07 -> 56.691596 | BW196: =BW174*1.07 -> 61.6915455 | BX196: 66.691495 | BY196: 71.6914445 | BZ196: 76.691394 | CA196: 81.6913435 | CB196: 86.691293 | CC196: 91.6912425 | CD196: =CD174*1.07 -> 41.028936 | CE196: =CE174*1.07 -> 43.375553 | CF196: 45.72217 | CG196: 48.068787 | CH196: 50.415404 | CI196: 52.762021 | CJ196: 55.108638 | CK196: 57.455255 | CL196: =CL174*1.07 -> 69.305184 | CM196: =CM174*1.07 -> 75.186332 | CN196: 81.06748 | CO196: 86.948628 | CP196: 92.829776 | CQ196: 98.710924 | CR196: 104.592072 | CS196: 110.47322 | CT196: =CT174*1.07 -> 49.786672 | CU196: =CU174*1.07 -> 52.532506 | CV196: 55.27834 | CW196: 58.024174 | CX196: 60.770008 | CY196: 63.515842 | CZ196: 66.261676 | DA196: 69.00751 | DB196: =DB174*1.07 -> 83.46 | DC196: =DC174*1.07 -> 85.7892295 | DD196: 92.230255 | DE196: 98.6712805 | DF196: 105.112306 | DG196: 111.5533315 | DH196: 117.994357 | DI196: 124.4353825 | DJ196: =DJ174*1.07 -> 96.3963 | DK196: =DK174*1.07 -> 99.90162 | DL196: 104.28327 | DM196: 107.78859 | DN196: 112.17024 | DO196: 115.67556 | DP196: 120.93354 | DQ196: 124.43886 | DR196: =DR174*1.07 -> 126.19152 | DS196: =DS174*1.07 -> 132.32583 | DT196: 138.46014 | DU196: 145.47078 | DV196: 152.48142 | DW196: 158.61573 | DX196: 164.75004 | DY196: 171.76068 | DZ196: =DZ174*1.07 -> 128.82051 | EA196: =EA174*1.07 -> 133.20216 | EB196: 139.33647 | EC196: 143.71812 | ED196: 148.9761 | EE196: 155.11041 | EF196: 159.49206 | EG196: 163.87371 | EH196: =EH174*1.07 -> 154.23408 | EI196: =EI174*1.07 -> 161.24472 | EJ196: 169.13169 | EK196: 177.01866 | EL196: 185.78196 | EM196: 192.7926 | EN196: 200.67957 | EO196: 207.69021 | EP196: =EP174*1.07 -> 121.459338 | EQ196: =EQ174*1.07 -> 126.980217 | ER196: 131.5809495 | ES196: 136.181682 | ET196: 139.862268 | EU196: 145.383147 | EV196: 149.9838795 | EW196: 155.5047585 | EX196: =EX174*1.07 -> 149.063733 | EY196: =EY174*1.07 -> 157.3450515 | EZ196: 165.62637 | FA196: 172.0673955 | FB196: 180.348714 | FC196: 187.709886 | FD196: 196.911351 | FE196: 204.272523 | FF196: =FF174*1.07 -> 115.67556 | FG196: =FG174*1.07 -> 120.93354 | FH196: 125.31519 | FI196: 129.69684 | FJ196: 133.20216 | FK196: 138.46014 | FL196: 142.84179 | FM196: 148.09977 | FN196: =FN174*1.07 -> 141.96546 | FO196: =FO174*1.07 -> 149.85243 | FP196: 157.7394 | FQ196: 163.87371 | FR196: 171.76068 | FS196: 178.77132 | FT196: 187.53462 | FU196: 194.54526 | FV196: =FV174*1.07 -> 75.36438 | FW196: =FW174*1.07 -> 79.74603 | FX196: 84.12768 | FY196: 87.633 | FZ196: 92.01465 | GA196: 97.27263 | GB196: 100.77795 | GC196: 105.1596 | GD196: =GD174*1.07 -> 94.64364 | GE196: =GE174*1.07 -> 100.77795 | GF196: 106.91226 | GG196: 113.9229 | GH196: 120.05721 | GI196: 125.31519 | GJ196: 132.32583 | GK196: 137.58381 | GL196: =GL174*1.07 -> 99.90162 | GM196: =GM174*1.07 -> 105.1596 | GN196: 110.41758 | GO196: 116.55189 | GP196: 121.80987 | GQ196: 126.19152 | GR196: 132.32583 | GS196: 137.58381 | GT196: =GT174*1.07 -> 123.56253 | GU196: =GU174*1.07 -> 131.4495 | GV196: 138.46014 | GW196: 146.34711 | GX196: 153.35775 | GY196: 161.24472 | GZ196: 169.13169 | HA196: 176.14233 | HB196: =HB174*1.07 -> 106.91226 | HC196: =HC174*1.07 -> 113.04657 | HD196: 119.18088 | HE196: 123.56253 | HF196: 130.57317 | HG196: 135.83115 | HH196: 141.08913 | HI196: 147.22344 | HJ196: =HJ174*1.07 -> 132.32583 | HK196: =HK174*1.07 -> 141.08913 | HL196: 148.9761 | HM196: 157.7394 | HN196: 164.75004 | HO196: 174.38967 | HP196: 181.40031 | HQ196: 190.16361
A197: 800 | B197: =B175*1.07 -> 73.83 | C197: 74.9 | D197: 75.97 | E197: 78.11 | F197: 79.18 | G197: 81.81006 | H197: 87.75498 | I197: 92.6299 | J197: =J175*1.07 -> 121.98 | K197: 126.26 | L197: 130.54 | M197: 134.82 | N197: 139.1 | O197: 144.45 | P197: 148.73 | Q197: 153.01 | R197: 72.76 | S197: 73.83 | T197: 74.9 | U197: 75.97 | V197: 77.04 | W197: 79.67006 | X197: 85.61498 | Y197: 90.4899 | Z197: 119.84 | AA197: 124.12 | AB197: 128.4 | AC197: 131.61 | AD197: 135.89 | AE197: 140.17 | AF197: 144.45 | AG197: 148.73 | AH197: 81.32 | AI197: 82.39 | AJ197: 85.6 | AK197: 86.67 | AL197: 89.88 | AM197: 95.72006 | AN197: 99.52498 | AO197: 107.6099 | AP197: 129.47 | AQ197: 130.54 | AR197: 138.03 | AS197: 139.1 | AT197: 146.59 | AU197: 154.08 | AV197: 155.15 | AW197: 163.71 | AX197: 88.81 | AY197: 93.09 | AZ197: 97.37 | BA197: 101.65 | BB197: 105.93 | BC197: 111.77006 | BD197: 119.85498 | BE197: 127.9399 | BF197: 129.47 | BG197: 135.89 | BH197: 141.24 | BI197: 147.66 | BJ197: 153.01 | BK197: 159.43 | BL197: 164.78 | BM197: 171.2 | BN197: 34.986432 | BO197: 37.273236 | BP197: 39.56004 | BQ197: 41.846844 | BR197: 44.133648 | BS197: 46.420452 | BT197: 48.707256 | BU197: 50.99406 | BV197: =BV175*1.07 -> 62.405824 | BW197: 68.120052 | BX197: 73.83428 | BY197: 79.548508 | BZ197: 85.262736 | CA197: 90.976964 | CB197: 96.691192 | CC197: 102.40542 | CD197: 43.710784 | CE197: 46.392632 | CF197: 49.07448 | CG197: 51.756328 | CH197: 54.438176 | CI197: 57.120024 | CJ197: 59.801872 | CK197: 62.48372 | CL197: 76.026496 | CM197: 82.747808 | CN197: 89.46912 | CO197: 96.190432 | CP197: 102.911744 | CQ197: 109.633056 | CR197: 116.354368 | CS197: 123.07568 | CT197: 52.924768 | CU197: 56.062864 | CV197: 59.20096 | CW197: 62.339056 | CX197: 65.477152 | CY197: 68.615248 | CZ197: 71.753344 | DA197: 74.89144 | DB197: 86.709376 | DC197: 94.070548 | DD197: 101.43172 | DE197: 108.792892 | DF197: 116.154064 | DG197: 123.515236 | DH197: 130.876408 | DI197: 138.23758 | DJ197: 96.3963 | DK197: 99.90162 | DL197: 104.28327 | DM197: 107.78859 | DN197: 112.17024 | DO197: 115.67556 | DP197: 120.93354 | DQ197: 124.43886 | DR197: 126.19152 | DS197: 132.32583 | DT197: 138.46014 | DU197: 145.47078 | DV197: 152.48142 | DW197: 158.61573 | DX197: 164.75004 | DY197: 171.76068 | DZ197: 128.82051 | EA197: 133.20216 | EB197: 139.33647 | EC197: 143.71812 | ED197: 148.9761 | EE197: 155.11041 | EF197: 159.49206 | EG197: 163.87371 | EH197: =EH175*1.07 -> 154.23408 | EI197: 161.24472 | EJ197: 169.13169 | EK197: 177.01866 | EL197: 185.78196 | EM197: 192.7926 | EN197: 200.67957 | EO197: 207.69021 | EP197: 121.459338 | EQ197: 126.980217 | ER197: 131.5809495 | ES197: 136.181682 | ET197: 139.862268 | EU197: 145.383147 | EV197: 149.9838795 | EW197: 155.5047585 | EX197: 149.063733 | EY197: 157.3450515 | EZ197: 165.62637 | FA197: 172.0673955 | FB197: 180.348714 | FC197: 187.709886 | FD197: 196.911351 | FE197: 204.272523 | FF197: 115.67556 | FG197: 120.93354 | FH197: 125.31519 | FI197: 129.69684 | FJ197: 133.20216 | FK197: 138.46014 | FL197: 142.84179 | FM197: 148.09977 | FN197: 141.96546 | FO197: 149.85243 | FP197: 157.7394 | FQ197: 163.87371 | FR197: 171.76068 | FS197: 178.77132 | FT197: 187.53462 | FU197: 194.54526 | FV197: 75.36438 | FW197: 79.74603 | FX197: 84.12768 | FY197: 87.633 | FZ197: 92.01465 | GA197: 97.27263 | GB197: 100.77795 | GC197: 105.1596 | GD197: 94.64364 | GE197: 100.77795 | GF197: 106.91226 | GG197: 113.9229 | GH197: 120.05721 | GI197: 125.31519 | GJ197: 132.32583 | GK197: 137.58381 | GL197: 99.90162 | GM197: 105.1596 | GN197: 110.41758 | GO197: 116.55189 | GP197: 121.80987 | GQ197: 126.19152 | GR197: 132.32583 | GS197: 137.58381 | GT197: =GT175*1.07 -> 123.56253 | GU197: 131.4495 | GV197: 138.46014 | GW197: 146.34711 | GX197: 153.35775 | GY197: 161.24472 | GZ197: 169.13169 | HA197: 176.14233 | HB197: 106.91226 | HC197: 113.04657 | HD197: 119.18088 | HE197: 123.56253 | HF197: 130.57317 | HG197: 135.83115 | HH197: 141.08913 | HI197: 147.22344 | HJ197: 132.32583 | HK197: 141.08913 | HL197: 148.9761 | HM197: 157.7394 | HN197: 164.75004 | HO197: 174.38967 | HP197: 181.40031 | HQ197: 190.16361
A198: 900 | B198: =B176*1.07 -> 74.9 | C198: 77.04 | D198: 78.11 | E198: 80.25 | F198: 84.78252 | G198: 90.133055 | H198: 96.55359 | I198: 101.904125 | J198: =J176*1.07 -> 126.26 | K198: 130.54 | L198: 135.89 | M198: 141.24 | N198: 145.52 | O198: 150.87 | P198: 155.15 | Q198: 160.5 | R198: 73.83 | S198: 75.97 | T198: 77.04 | U198: 78.11 | V198: 82.64252 | W198: 89.063055 | X198: 94.41359 | Y198: 99.764125 | Z198: 125.19 | AA198: 129.47 | AB198: 133.75 | AC198: 139.1 | AD198: 143.38 | AE198: 148.73 | AF198: 153.01 | AG198: 157.29 | AH198: 84.53 | AI198: 85.6 | AJ198: 89.88 | AK198: 89.88 | AL198: 97.62252 | AM198: 106.183055 | AN198: 111.53359 | AO198: 120.094125 | AP198: 134.82 | AQ198: 135.89 | AR198: 145.52 | AS198: 146.59 | AT198: 155.15 | AU198: 163.71 | AV198: 164.78 | AW198: 173.34 | AX198: 93.09 | AY198: 98.44 | AZ198: 102.72 | BA198: 108.07 | BB198: 115.81252 | BC198: 124.373055 | BD198: 134.00359 | BE198: 142.564125 | BF198: 135.89 | BG198: 142.31 | BH198: 148.73 | BI198: 155.15 | BJ198: 161.57 | BK198: 169.06 | BL198: 175.48 | BM198: 181.9 | BN198: 37.273236 | BO198: 39.8458905 | BP198: 42.418545 | BQ198: 44.9911995 | BR198: 47.563854 | BS198: 50.1365085 | BT198: 52.709163 | BU198: 55.2818175 | BV198: =BV176*1.07 -> 68.120052 | BW198: 74.5485585 | BX198: 80.977065 | BY198: 87.4055715 | BZ198: 93.834078 | CA198: 100.2625845 | CB198: 106.691091 | CC198: 113.1195975 | CD198: 46.392632 | CE198: 49.409711 | CF198: 52.42679 | CG198: 55.443869 | CH198: 58.460948 | CI198: 61.478027 | CJ198: 64.495106 | CK198: 67.512185 | CL198: 82.747808 | CM198: 90.309284 | CN198: 97.87076 | CO198: 105.432236 | CP198: 112.993712 | CQ198: 120.555188 | CR198: 128.116664 | CS198: 135.67814 | CT198: 56.062864 | CU198: 59.593222 | CV198: 63.12358 | CW198: 66.653938 | CX198: 70.184296 | CY198: 73.714654 | CZ198: 77.245012 | DA198: 80.77537 | DB198: 94.070548 | DC198: 102.3518665 | DD198: 110.633185 | DE198: 118.9145035 | DF198: 127.195822 | DG198: 135.4771405 | DH198: 143.758459 | DI198: 152.0397775 | DJ198: 102.53061 | DK198: 107.78859 | DL198: 112.17024 | DM198: 116.55189 | DN198: 121.80987 | DO198: 125.31519 | DP198: 129.69684 | DQ198: 134.07849 | DR198: 136.70748 | DS198: 142.84179 | DT198: 150.72876 | DU198: 158.61573 | DV198: 165.62637 | DW198: 172.63701 | DX198: 179.64765 | DY198: 188.41095 | DZ198: 137.58381 | EA198: 142.84179 | EB198: 148.9761 | EC198: 155.11041 | ED198: 160.36839 | EE198: 165.62637 | EF198: 171.76068 | EG198: 177.01866 | EH198: =EH176*1.07 -> 164.75004 | EI198: 173.51334 | EJ198: 182.27664 | EK198: 191.91627 | EL198: 200.67957 | EM198: 208.56654 | EN198: 218.20617 | EO198: 226.96947 | EP198: 129.7406565 | EQ198: 135.2615355 | ER198: 139.862268 | ES198: 145.383147 | ET198: 150.904026 | EU198: 156.424905 | EV198: 161.945784 | EW198: 167.466663 | EX198: 161.0256375 | EY198: 169.306956 | EZ198: 178.508421 | FA198: 185.869593 | FB198: 195.9912045 | FC198: 204.272523 | FD198: 212.5538415 | FE198: 220.83516 | FF198: 123.56253 | FG198: 128.82051 | FH198: 133.20216 | FI198: 138.46014 | FJ198: 143.71812 | FK198: 148.9761 | FL198: 154.23408 | FM198: 159.49206 | FN198: 153.35775 | FO198: 161.24472 | FP198: 170.00802 | FQ198: 177.01866 | FR198: 186.65829 | FS198: 194.54526 | FT198: 202.43223 | FU198: 210.3192 | FV198: 81.49869 | FW198: 85.88034 | FX198: 90.26199 | FY198: 96.3963 | FZ198: 100.77795 | GA198: 105.1596 | GB198: 109.54125 | GC198: 114.79923 | GD198: 103.40694 | GE198: 109.54125 | GF198: 116.55189 | GG198: 122.6862 | GH198: 130.57317 | GI198: 136.70748 | GJ198: 143.71812 | GK198: 149.85243 | GL198: 106.91226 | GM198: 112.17024 | GN198: 118.30455 | GO198: 123.56253 | GP198: 130.57317 | GQ198: 135.83115 | GR198: 141.08913 | GS198: 147.22344 | GT198: =GT176*1.07 -> 132.32583 | GU198: 140.2128 | GV198: 148.9761 | GW198: 156.86307 | GX198: 163.87371 | GY198: 173.51334 | GZ198: 180.52398 | HA198: 189.28728 | HB198: 114.79923 | HC198: 120.93354 | HD198: 126.19152 | HE198: 134.07849 | HF198: 139.33647 | HG198: 145.47078 | HH198: 151.60509 | HI198: 158.61573 | HJ198: 142.84179 | HK198: 151.60509 | HL198: 160.36839 | HM198: 170.00802 | HN198: 177.89499 | HO198: 187.53462 | HP198: 195.42159 | HQ198: 204.18489
A199: 1000 | B199: =B177*1.07 -> 77.04 | C199: 79.18 | D199: 80.25 | E199: 86.80375 | F199: 92.6299 | G199: 99.52605 | H199: 106.4222 | I199: 112.24835 | J199: =J177*1.07 -> 131.61 | K199: 136.96 | L199: 143.38 | M199: 148.73 | N199: 154.08 | O199: 159.43 | P199: 164.78 | Q199: 170.13 | R199: 75.97 | S199: 77.04 | T199: 78.11 | U199: 84.66375 | V199: 90.4899 | W199: 96.31605 | X199: 103.2122 | Y199: 109.03835 | Z199: 128.4 | AA199: 133.75 | AB199: 138.03 | AC199: 143.38 | AD199: 148.73 | AE199: 153.01 | AF199: 158.36 | AG199: 163.71 | AH199: 87.74 | AI199: 87.74 | AJ199: 93.09 | AK199: 97.50375 | AL199: 107.6099 | AM199: 116.64605 | AN199: 122.4722 | AO199: 131.50835 | AP199: 141.24 | AQ199: 142.31 | AR199: 151.94 | AS199: 153.01 | AT199: 162.64 | AU199: 172.27 | AV199: 173.34 | AW199: 182.97 | AX199: 97.37 | AY199: 102.72 | AZ199: 108.07 | BA199: 117.83375 | BB199: 127.9399 | BC199: 138.04605 | BD199: 148.1522 | BE199: 158.25835 | BF199: 141.24 | BG199: 148.73 | BH199: 156.22 | BI199: 163.71 | BJ199: 171.2 | BK199: 178.69 | BL199: 185.11 | BM199: 192.6 | BN199: 39.56004 | BO199: 42.418545 | BP199: 45.27705 | BQ199: 48.135555 | BR199: 50.99406 | BS199: 53.852565 | BT199: 56.71107 | BU199: 59.569575 | BV199: =BV177*1.07 -> 73.83428 | BW199: 80.977065 | BX199: 88.11985 | BY199: 95.262635 | BZ199: 102.40542 | CA199: 109.548205 | CB199: 116.69099 | CC199: 123.833775 | CD199: 49.07448 | CE199: 52.42679 | CF199: 55.7791 | CG199: 59.13141 | CH199: 62.48372 | CI199: 65.83603 | CJ199: 69.18834 | CK199: 72.54065 | CL199: 89.46912 | CM199: 97.87076 | CN199: 106.2724 | CO199: 114.67404 | CP199: 123.07568 | CQ199: 131.47732 | CR199: 139.87896 | CS199: 148.2806 | CT199: 59.20096 | CU199: 63.12358 | CV199: 67.0462 | CW199: 70.96882 | CX199: 74.89144 | CY199: 78.81406 | CZ199: 82.73668 | DA199: 86.6593 | DB199: 101.43172 | DC199: 110.633185 | DD199: 119.83465 | DE199: 129.036115 | DF199: 138.23758 | DG199: 147.439045 | DH199: 156.64051 | DI199: 165.841975 | DJ199: 110.41758 | DK199: 115.67556 | DL199: 120.93354 | DM199: 125.31519 | DN199: 129.69684 | DO199: 134.07849 | DP199: 139.33647 | DQ199: 145.47078 | DR199: 147.22344 | DS199: 155.11041 | DT199: 162.99738 | DU199: 171.76068 | DV199: 178.77132 | DW199: 188.41095 | DX199: 195.42159 | DY199: 204.18489 | DZ199: 145.47078 | EA199: 152.48142 | EB199: 158.61573 | EC199: 163.87371 | ED199: 170.88435 | EE199: 177.01866 | EF199: 184.0293 | EG199: 190.16361 | EH199: =EH177*1.07 -> 175.266 | EI199: 186.65829 | EJ199: 195.42159 | EK199: 205.06122 | EL199: 215.57718 | EM199: 225.21681 | EN199: 235.73277 | EO199: 244.49607 | EP199: 137.1018285 | EQ199: 143.542854 | ER199: 149.063733 | ES199: 155.5047585 | ET199: 161.945784 | EU199: 167.466663 | EV199: 172.987542 | EW199: 179.4285675 | EX199: 172.0673955 | EY199: 182.189007 | EZ199: 191.390472 | FA199: 200.591937 | FB199: 210.7135485 | FC199: 218.994867 | FD199: 230.036625 | FE199: 238.3179435 | FF199: 130.57317 | FG199: 136.70748 | FH199: 141.96546 | FI199: 148.09977 | FJ199: 154.23408 | FK199: 159.49206 | FL199: 164.75004 | FM199: 170.88435 | FN199: 163.87371 | FO199: 173.51334 | FP199: 182.27664 | FQ199: 191.03994 | FR199: 200.67957 | FS199: 208.56654 | FT199: 219.0825 | FU199: 226.96947 | FV199: 86.75667 | FW199: 92.01465 | FX199: 97.27263 | FY199: 103.40694 | FZ199: 108.66492 | GA199: 113.9229 | GB199: 119.18088 | GC199: 123.56253 | GD199: 110.41758 | GE199: 118.30455 | GF199: 125.31519 | GG199: 134.07849 | GH199: 140.2128 | GI199: 148.9761 | GJ199: 155.11041 | GK199: 162.12105 | GL199: 113.04657 | GM199: 119.18088 | GN199: 125.31519 | GO199: 132.32583 | GP199: 137.58381 | GQ199: 143.71812 | GR199: 150.72876 | GS199: 156.86307 | GT199: =GT177*1.07 -> 140.2128 | GU199: 148.9761 | GV199: 158.61573 | GW199: 167.37903 | GX199: 175.266 | GY199: 185.78196 | GZ199: 193.66893 | HA199: 201.5559 | HB199: 122.6862 | HC199: 127.94418 | HD199: 135.83115 | HE199: 141.96546 | HF199: 148.9761 | HG199: 155.11041 | HH199: 161.24472 | HI199: 169.13169 | HJ199: 153.35775 | HK199: 162.12105 | HL199: 172.63701 | HM199: 181.40031 | HN199: 191.03994 | HO199: 199.80324 | HP199: 209.44287 | HQ199: 218.20617
A200: 1100 | B200: =B178*1.07 -> 79.18 | C200: 80.25 | D200: 86.80375 | E200: 94.175515 | F200: 100.47728 | G200: 107.849045 | H200: 115.22081 | I200: 121.522575 | J200: =J178*1.07 -> 135.89 | K200: 142.31 | L200: 148.73 | M200: 154.08 | N200: 160.5 | O200: 165.85 | P200: 172.27 | Q200: 177.62 | R200: 77.04 | S200: 79.18 | T200: 84.66375 | U200: 92.035515 | V200: 98.33728 | W200: 105.709045 | X200: 112.01081 | Y200: 118.312575 | Z200: 133.75 | AA200: 139.1 | AB200: 144.45 | AC200: 150.87 | AD200: 156.22 | AE200: 161.57 | AF200: 166.92 | AG200: 172.27 | AH200: 90.95 | AI200: 90.95 | AJ200: 100.71375 | AK200: 107.015515 | AL200: 116.52728 | AM200: 127.109045 | AN200: 133.41081 | AO200: 143.992575 | AP200: 147.66 | AQ200: 148.73 | AR200: 159.43 | AS200: 160.5 | AT200: 171.2 | AU200: 181.9 | AV200: 182.97 | AW200: 193.67 | AX200: 101.65 | AY200: 107 | AZ200: 117.83375 | BA200: 128.415515 | BB200: 140.06728 | BC200: 150.649045 | BD200: 162.30081 | BE200: 172.882575 | BF200: 147.66 | BG200: 156.22 | BH200: 163.71 | BI200: 172.27 | BJ200: 179.76 | BK200: 188.32 | BL200: 195.81 | BM200: 204.37 | BN200: 41.846844 | BO200: 44.9911995 | BP200: 48.135555 | BQ200: 51.2799105 | BR200: 54.424266 | BS200: 57.5686215 | BT200: 60.712977 | BU200: 63.8573325 | BV200: =BV178*1.07 -> 79.548508 | BW200: 87.4055715 | BX200: 95.262635 | BY200: 103.1196985 | BZ200: 110.976762 | CA200: 118.8338255 | CB200: 126.690889 | CC200: 134.5479525 | CD200: 51.756328 | CE200: 55.443869 | CF200: 59.13141 | CG200: 62.818951 | CH200: 66.506492 | CI200: 70.194033 | CJ200: 73.881574 | CK200: 77.569115 | CL200: 96.190432 | CM200: 105.432236 | CN200: 114.67404 | CO200: 123.915844 | CP200: 133.157648 | CQ200: 142.399452 | CR200: 151.641256 | CS200: 160.88306 | CT200: 62.339056 | CU200: 66.653938 | CV200: 70.96882 | CW200: 75.283702 | CX200: 79.598584 | CY200: 83.913466 | CZ200: 88.228348 | DA200: 92.54323 | DB200: 108.792892 | DC200: 118.9145035 | DD200: 129.036115 | DE200: 139.1577265 | DF200: 149.279338 | DG200: 159.4009495 | DH200: 169.522561 | DI200: 179.6441725 | DJ200: 117.42822 | DK200: 122.6862 | DL200: 127.94418 | DM200: 133.20216 | DN200: 138.46014 | DO200: 143.71812 | DP200: 149.85243 | DQ200: 155.11041 | DR200: 157.7394 | DS200: 165.62637 | DT200: 175.266 | DU200: 184.90563 | DV200: 193.66893 | DW200: 202.43223 | DX200: 210.3192 | DY200: 220.83516 | DZ200: 154.23408 | EA200: 160.36839 | EB200: 168.25536 | EC200: 174.38967 | ED200: 181.40031 | EE200: 189.28728 | EF200: 195.42159 | EG200: 202.43223 | EH200: =EH178*1.07 -> 187.53462 | EI200: 197.17425 | EJ200: 208.56654 | EK200: 219.95883 | EL200: 231.35112 | EM200: 240.99075 | EN200: 253.25937 | EO200: 263.77533 | EP200: 146.3032935 | EQ200: 152.744319 | ER200: 158.265198 | ES200: 165.62637 | ET200: 171.147249 | EU200: 178.508421 | EV200: 184.0293 | EW200: 190.4703255 | EX200: 184.0293 | EY200: 195.071058 | EZ200: 204.272523 | FA200: 215.314281 | FB200: 225.4358925 | FC200: 235.557504 | FD200: 245.6791155 | FE200: 254.8805805 | FF200: 139.33647 | FG200: 145.47078 | FH200: 150.72876 | FI200: 157.7394 | FJ200: 162.99738 | FK200: 170.00802 | FL200: 175.266 | FM200: 181.40031 | FN200: 175.266 | FO200: 185.78196 | FP200: 194.54526 | FQ200: 205.06122 | FR200: 214.70085 | FS200: 224.34048 | FT200: 233.98011 | FU200: 242.74341 | FV200: 93.76731 | FW200: 99.02529 | FX200: 104.28327 | FY200: 109.54125 | FZ200: 116.55189 | GA200: 122.6862 | GB200: 127.06785 | GC200: 134.07849 | GD200: 119.18088 | GE200: 127.06785 | GF200: 135.83115 | GG200: 142.84179 | GH200: 151.60509 | GI200: 159.49206 | GJ200: 167.37903 | GK200: 175.266 | GL200: 119.18088 | GM200: 125.31519 | GN200: 133.20216 | GO200: 139.33647 | GP200: 146.34711 | GQ200: 153.35775 | GR200: 159.49206 | GS200: 165.62637 | GT200: =GT178*1.07 -> 148.9761 | GU200: 158.61573 | GV200: 168.25536 | GW200: 177.01866 | GX200: 187.53462 | GY200: 196.29792 | GZ200: 205.93755 | HA200: 214.70085 | HB200: 128.82051 | HC200: 136.70748 | HD200: 143.71812 | HE200: 150.72876 | HF200: 158.61573 | HG200: 164.75004 | HH200: 172.63701 | HI200: 179.64765 | HJ200: 162.12105 | HK200: 173.51334 | HL200: 183.15297 | HM200: 192.7926 | HN200: 202.43223 | HO200: 212.94819 | HP200: 224.34048 | HQ200: 233.10378
A201: 1200 | B201: =B179*1.07 -> 81.32 | C201: 85.85252 | D201: 93.6999 | E201: 101.54728 | F201: 109.39466 | G201: 117.24204 | H201: 125.08942 | I201: 131.8668 | J201: =J179*1.07 -> 142.31 | K201: 148.73 | L201: 155.15 | M201: 161.57 | N201: 167.99 | O201: 175.48 | P201: 181.9 | Q201: 188.32 | R201: 79.18 | S201: 84.78252 | T201: 91.5599 | U201: 99.40728 | V201: 106.18466 | W201: 114.03204 | X201: 120.80942 | Y201: 128.6568 | Z201: 139.1 | AA201: 145.52 | AB201: 150.87 | AC201: 157.29 | AD201: 163.71 | AE201: 169.06 | AF201: 175.48 | AG201: 181.9 | AH201: 94.16 | AI201: 97.62252 | AJ201: 108.6799 | AK201: 115.45728 | AL201: 126.51466 | AM201: 137.57204 | AN201: 144.34942 | AO201: 155.4068 | AP201: 153.01 | AQ201: 154.08 | AR201: 165.85 | AS201: 166.92 | AT201: 178.69 | AU201: 190.46 | AV201: 191.53 | AW201: 203.3 | AX201: 105.93 | AY201: 115.81252 | AZ201: 127.9399 | BA201: 140.06728 | BB201: 152.19466 | BC201: 164.32204 | BD201: 175.37942 | BE201: 187.5068 | BF201: 154.08 | BG201: 162.64 | BH201: 171.2 | BI201: 179.76 | BJ201: 188.32 | BK201: 197.95 | BL201: 206.51 | BM201: 215.07 | BN201: 44.133648 | BO201: 47.563854 | BP201: 50.99406 | BQ201: 54.424266 | BR201: 57.854472 | BS201: 61.284678 | BT201: 64.714884 | BU201: 68.14509 | BV201: =BV179*1.07 -> 85.262736 | BW201: 93.834078 | BX201: 102.40542 | BY201: 110.976762 | BZ201: 119.548104 | CA201: 128.119446 | CB201: 136.690788 | CC201: 145.26213 | CD201: 54.438176 | CE201: 58.460948 | CF201: 62.48372 | CG201: 66.506492 | CH201: 70.529264 | CI201: 74.552036 | CJ201: 78.574808 | CK201: 82.59758 | CL201: 102.911744 | CM201: 112.993712 | CN201: 123.07568 | CO201: 133.157648 | CP201: 143.239616 | CQ201: 153.321584 | CR201: 163.403552 | CS201: 173.48552 | CT201: 65.477152 | CU201: 70.184296 | CV201: 74.89144 | CW201: 79.598584 | CX201: 84.305728 | CY201: 89.012872 | CZ201: 93.720016 | DA201: 98.42716 | DB201: 116.154064 | DC201: 127.195822 | DD201: 138.23758 | DE201: 149.279338 | DF201: 160.321096 | DG201: 171.362854 | DH201: 182.404612 | DI201: 193.44637 | DJ201: 124.43886 | DK201: 129.69684 | DL201: 135.83115 | DM201: 141.96546 | DN201: 148.09977 | DO201: 154.23408 | DP201: 159.49206 | DQ201: 164.75004 | DR201: 168.25536 | DS201: 177.01866 | DT201: 187.53462 | DU201: 197.17425 | DV201: 206.81388 | DW201: 217.32984 | DX201: 226.96947 | DY201: 236.6091 | DZ201: 162.12105 | EA201: 170.00802 | EB201: 177.01866 | EC201: 185.78196 | ED201: 192.7926 | EE201: 200.67957 | EF201: 207.69021 | EG201: 215.57718 | EH201: =EH179*1.07 -> 198.05058 | EI201: 209.44287 | EJ201: 222.58782 | EK201: 233.98011 | EL201: 245.3724 | EM201: 258.51735 | EN201: 269.90964 | EO201: 282.17826 | EP201: 154.584612 | EQ201: 161.945784 | ER201: 168.3868095 | ES201: 175.7479815 | ET201: 181.2688605 | EU201: 187.709886 | EV201: 195.9912045 | EW201: 202.43223 | EX201: 195.9912045 | EY201: 207.0329625 | EZ201: 218.0747205 | FA201: 230.036625 | FB201: 240.1582365 | FC201: 251.1999945 | FD201: 262.2417525 | FE201: 273.2835105 | FF201: 147.22344 | FG201: 154.23408 | FH201: 160.36839 | FI201: 167.37903 | FJ201: 172.63701 | FK201: 178.77132 | FL201: 186.65829 | FM201: 192.7926 | FN201: 186.65829 | FO201: 197.17425 | FP201: 207.69021 | FQ201: 219.0825 | FR201: 228.72213 | FS201: 239.23809 | FT201: 249.75405 | FU201: 260.27001 | FV201: 99.02529 | FW201: 105.1596 | FX201: 110.41758 | FY201: 118.30455 | FZ201: 123.56253 | GA201: 130.57317 | GB201: 136.70748 | GC201: 142.84179 | GD201: 126.19152 | GE201: 135.83115 | GF201: 144.59445 | GG201: 153.35775 | GH201: 161.24472 | GI201: 170.88435 | GJ201: 178.77132 | GK201: 187.53462 | GL201: 125.31519 | GM201: 133.20216 | GN201: 140.2128 | GO201: 147.22344 | GP201: 154.23408 | GQ201: 161.24472 | GR201: 169.13169 | GS201: 176.14233 | GT201: =GT179*1.07 -> 157.7394 | GU201: 168.25536 | GV201: 177.01866 | GW201: 187.53462 | GX201: 198.05058 | GY201: 208.56654 | GZ201: 218.20617 | HA201: 228.72213 | HB201: 136.70748 | HC201: 144.59445 | HD201: 152.48142 | HE201: 160.36839 | HF201: 167.37903 | HG201: 174.38967 | HH201: 182.27664 | HI201: 190.16361 | HJ201: 173.51334 | HK201: 184.0293 | HL201: 194.54526 | HM201: 205.06122 | HN201: 215.57718 | HO201: 226.09314 | HP201: 237.48543 | HQ201: 248.00139
A202: 1300 | B202: =B180*1.07 -> 83.95006 | C202: 92.273055 | D202: 100.59605 | E202: 108.919045 | F202: 117.24204 | G202: 125.565035 | H202: 133.88803 | I202: 140.17 | J202: =J180*1.07 -> 146.59 | K202: 154.08 | L202: 160.5 | M202: 167.99 | N202: 174.41 | O202: 181.9 | P202: 188.32 | Q202: 195.81 | R202: 81.81006 | S202: 90.133055 | T202: 98.45605 | U202: 105.709045 | V202: 114.03204 | W202: 121.285035 | X202: 129.60803 | Y202: 135.89 | Z202: 142.31 | AA202: 148.73 | AB202: 155.15 | AC202: 161.57 | AD202: 167.99 | AE202: 174.41 | AF202: 180.83 | AG202: 187.25 | AH202: 97.86006 | AI202: 105.113055 | AJ202: 117.71605 | AK202: 123.899045 | AL202: 136.50204 | AM202: 149.105035 | AN202: 155.28803 | AO202: 165.85 | AP202: 159.43 | AQ202: 160.5 | AR202: 173.34 | AS202: 174.41 | AT202: 187.25 | AU202: 199.02 | AV202: 200.09 | AW202: 212.93 | AX202: 111.77006 | AY202: 124.373055 | AZ202: 136.97605 | BA202: 150.649045 | BB202: 163.25204 | BC202: 176.925035 | BD202: 189.52803 | BE202: 201.16 | BF202: 159.43 | BG202: 169.06 | BH202: 178.69 | BI202: 188.32 | BJ202: 197.95 | BK202: 207.58 | BL202: 216.14 | BM202: 225.77 | BN202: 46.420452 | BO202: 50.1365085 | BP202: 53.852565 | BQ202: 57.5686215 | BR202: 61.284678 | BS202: 65.0007345 | BT202: 68.716791 | BU202: 72.4328475 | BV202: =BV180*1.07 -> 90.976964 | BW202: 100.2625845 | BX202: 109.548205 | BY202: 118.8338255 | BZ202: 128.119446 | CA202: 137.4050665 | CB202: 146.690687 | CC202: 155.9763075 | CD202: 57.120024 | CE202: 61.478027 | CF202: 65.83603 | CG202: 70.194033 | CH202: 74.552036 | CI202: 78.910039 | CJ202: 83.268042 | CK202: 87.626045 | CL202: 109.633056 | CM202: 120.555188 | CN202: 131.47732 | CO202: 142.399452 | CP202: 153.321584 | CQ202: 164.243716 | CR202: 175.165848 | CS202: 186.08798 | CT202: 68.615248 | CU202: 73.714654 | CV202: 78.81406 | CW202: 83.913466 | CX202: 89.012872 | CY202: 94.112278 | CZ202: 99.211684 | DA202: 104.31109 | DB202: 123.515236 | DC202: 135.4771405 | DD202: 147.439045 | DE202: 159.4009495 | DF202: 171.362854 | DG202: 183.3247585 | DH202: 195.286663 | DI202: 207.2485675 | DJ202: 129.69684 | DK202: 135.83115 | DL202: 141.96546 | DM202: 148.9761 | DN202: 155.11041 | DO202: 161.24472 | DP202: 168.25536 | DQ202: 174.38967 | DR202: 176.14233 | DS202: 187.53462 | DT202: 197.17425 | DU202: 207.69021 | DV202: 219.95883 | DW202: 229.59846 | DX202: 240.11442 | DY202: 250.63038 | DZ202: 167.37903 | EA202: 175.266 | EB202: 184.90563 | EC202: 192.7926 | ED202: 200.67957 | EE202: 208.56654 | EF202: 218.20617 | EG202: 226.09314 | EH202: =EH180*1.07 -> 205.93755 | EI202: 219.95883 | EJ202: 233.10378 | EK202: 244.49607 | EL202: 258.51735 | EM202: 271.6623 | EN202: 284.80725 | EO202: 297.9522 | EP202: 161.0256375 | EQ202: 168.3868095 | ER202: 175.7479815 | ES202: 182.189007 | ET202: 190.4703255 | EU202: 197.8314975 | EV202: 204.272523 | EW202: 211.633695 | EX202: 205.1926695 | EY202: 217.154574 | EZ202: 230.036625 | FA202: 241.078383 | FB202: 252.120141 | FC202: 264.0820455 | FD202: 276.9640965 | FE202: 288.0058545 | FF202: 153.35775 | FG202: 160.36839 | FH202: 167.37903 | FI202: 173.51334 | FJ202: 181.40031 | FK202: 188.41095 | FL202: 194.54526 | FM202: 201.5559 | FN202: 195.42159 | FO202: 206.81388 | FP202: 219.0825 | FQ202: 229.59846 | FR202: 240.11442 | FS202: 251.50671 | FT202: 263.77533 | FU202: 274.29129 | FV202: 103.40694 | FW202: 109.54125 | FX202: 117.42822 | FY202: 123.56253 | FZ202: 131.4495 | GA202: 137.58381 | GB202: 144.59445 | GC202: 151.60509 | GD202: 134.07849 | GE202: 142.84179 | GF202: 152.48142 | GG202: 161.24472 | GH202: 171.76068 | GI202: 180.52398 | GJ202: 190.16361 | GK202: 199.80324 | GL202: 130.57317 | GM202: 137.58381 | GN202: 145.47078 | GO202: 153.35775 | GP202: 161.24472 | GQ202: 169.13169 | GR202: 176.14233 | GS202: 184.0293 | GT202: =GT180*1.07 -> 163.87371 | GU202: 174.38967 | GV202: 186.65829 | GW202: 197.17425 | GX202: 207.69021 | GY202: 218.20617 | GZ202: 228.72213 | HA202: 239.23809 | HB202: 142.84179 | HC202: 150.72876 | HD202: 158.61573 | HE202: 167.37903 | HF202: 174.38967 | HG202: 183.15297 | HH202: 191.03994 | HI202: 199.80324 | HJ202: 181.40031 | HK202: 192.7926 | HL202: 204.18489 | HM202: 214.70085 | HN202: 226.96947 | HO202: 238.36176 | HP202: 249.75405 | HQ202: 261.14634
A203: 1400 | B203: =B181*1.07 -> 89.89498 | C203: 98.69359 | D203: 107.4922 | E203: 116.29081 | F203: 125.08942 | G203: 133.88803 | H203: 140.17 | I203: 143.38 | J203: =J181*1.07 -> 151.94 | K203: 160.5 | L203: 167.99 | M203: 175.48 | N203: 182.97 | O203: 190.46 | P203: 197.95 | Q203: 205.44 | R203: 87.75498 | S203: 96.55359 | T203: 105.3522 | U203: 113.08081 | V203: 121.87942 | W203: 130.67803 | X203: 135.89 | Y203: 138.03 | Z203: 147.66 | AA203: 155.15 | AB203: 161.57 | AC203: 169.06 | AD203: 175.48 | AE203: 182.97 | AF203: 189.39 | AG203: 195.81 | AH203: 104.87498 | AI203: 112.60359 | AJ203: 125.6822 | AK203: 132.34081 | AL203: 146.48942 | AM203: 159.56803 | AN203: 163.71 | AO203: 170.13 | AP203: 165.85 | AQ203: 166.92 | AR203: 179.76 | AS203: 180.83 | AT203: 194.74 | AU203: 208.65 | AV203: 209.72 | AW203: 223.63 | AX203: 118.78498 | AY203: 132.93359 | AZ203: 147.0822 | BA203: 161.23081 | BB203: 175.37942 | BC203: 189.52803 | BD203: 201.16 | BE203: 208.65 | BF203: 165.85 | BG203: 176.55 | BH203: 186.18 | BI203: 196.88 | BJ203: 206.51 | BK203: 217.21 | BL203: 226.84 | BM203: 237.54 | BN203: 48.707256 | BO203: 52.709163 | BP203: 56.71107 | BQ203: 60.712977 | BR203: 64.714884 | BS203: 68.716791 | BT203: 72.718698 | BU203: 76.720605 | BV203: =BV181*1.07 -> 96.691192 | BW203: 106.691091 | BX203: 116.69099 | BY203: 126.690889 | BZ203: 136.690788 | CA203: 146.690687 | CB203: 156.690586 | CC203: 166.690485 | CD203: 59.801872 | CE203: 64.495106 | CF203: 69.18834 | CG203: 73.881574 | CH203: 78.574808 | CI203: 83.268042 | CJ203: 87.961276 | CK203: 92.65451 | CL203: 116.354368 | CM203: 128.116664 | CN203: 139.87896 | CO203: 151.641256 | CP203: 163.403552 | CQ203: 175.165848 | CR203: 186.928144 | CS203: 198.69044 | CT203: 71.753344 | CU203: 77.245012 | CV203: 82.73668 | CW203: 88.228348 | CX203: 93.720016 | CY203: 99.211684 | CZ203: 104.703352 | DA203: 110.19502 | DB203: 130.876408 | DC203: 143.758459 | DD203: 156.64051 | DE203: 169.522561 | DF203: 182.404612 | DG203: 195.286663 | DH203: 208.168714 | DI203: 221.050765 | DJ203: 134.07849 | DK203: 141.08913 | DL203: 148.9761 | DM203: 155.98674 | DN203: 162.12105 | DO203: 169.13169 | DP203: 176.14233 | DQ203: 184.0293 | DR203: 185.78196 | DS203: 196.29792 | DT203: 207.69021 | DU203: 219.95883 | DV203: 231.35112 | DW203: 241.86708 | DX203: 254.1357 | DY203: 265.52799 | DZ203: 172.63701 | EA203: 182.27664 | EB203: 191.03994 | EC203: 199.80324 | ED203: 208.56654 | EE203: 218.20617 | EF203: 226.96947 | EG203: 235.73277 | EH203: =EH181*1.07 -> 214.70085 | EI203: 228.72213 | EJ203: 242.74341 | EK203: 257.64102 | EL203: 270.78597 | EM203: 284.80725 | EN203: 299.70486 | EO203: 313.72614 | EP203: 166.5465165 | EQ203: 173.9076885 | ER203: 182.189007 | ES203: 190.4703255 | ET203: 198.751644 | EU203: 205.1926695 | EV203: 213.473988 | EW203: 220.83516 | EX203: 215.314281 | EY203: 228.196332 | EZ203: 240.1582365 | FA203: 253.0402875 | FB203: 265.9223385 | FC203: 278.8043895 | FD203: 289.8461475 | FE203: 303.648345 | FF203: 158.61573 | FG203: 165.62637 | FH203: 173.51334 | FI203: 181.40031 | FJ203: 189.28728 | FK203: 195.42159 | FL203: 203.30856 | FM203: 210.3192 | FN203: 205.06122 | FO203: 217.32984 | FP203: 228.72213 | FQ203: 240.99075 | FR203: 253.25937 | FS203: 265.52799 | FT203: 276.04395 | FU203: 289.1889 | FV203: 108.66492 | FW203: 115.67556 | FX203: 122.6862 | FY203: 130.57317 | FZ203: 137.58381 | GA203: 144.59445 | GB203: 152.48142 | GC203: 159.49206 | GD203: 140.2128 | GE203: 150.72876 | GF203: 161.24472 | GG203: 170.88435 | GH203: 180.52398 | GI203: 191.03994 | GJ203: 199.80324 | GK203: 211.19553 | GL203: 135.83115 | GM203: 142.84179 | GN203: 151.60509 | GO203: 159.49206 | GP203: 168.25536 | GQ203: 175.266 | GR203: 184.0293 | GS203: 191.91627 | GT203: =GT181*1.07 -> 171.76068 | GU203: 182.27664 | GV203: 193.66893 | GW203: 205.93755 | GX203: 216.45351 | GY203: 228.72213 | GZ203: 239.23809 | HA203: 251.50671 | HB203: 148.9761 | HC203: 156.86307 | HD203: 164.75004 | HE203: 174.38967 | HF203: 182.27664 | HG203: 191.03994 | HH203: 199.80324 | HI203: 208.56654 | HJ203: 189.28728 | HK203: 200.67957 | HL203: 212.94819 | HM203: 226.09314 | HN203: 237.48543 | HO203: 249.75405 | HP203: 262.02267 | HQ203: 273.41496
A204: 1500 | B204: =B182*1.07 -> 95.7543 | C204: 105.028525 | D204: 114.30275 | E204: 123.576975 | F204: 132.8512 | G204: 143.195425 | H204: 148.73 | I204: 150.87 | J204: =J182*1.07 -> 162.64 | K204: 170.13 | L204: 178.69 | M204: 186.18 | N204: 194.74 | O204: 202.23 | P204: 210.79 | Q204: 219.35 | R204: 93.6143 | S204: 102.888525 | T204: 112.16275 | U204: 120.366975 | V204: 129.6412 | W204: 138.915425 | X204: 144.45 | Y204: 146.59 | Z204: 158.36 | AA204: 165.85 | AB204: 173.34 | AC204: 180.83 | AD204: 188.32 | AE204: 195.81 | AF204: 203.3 | AG204: 210.79 | AH204: 111.8043 | AI204: 120.008525 | AJ204: 133.56275 | AK204: 141.766975 | AL204: 155.3212 | AM204: 169.945425 | AN204: 173.34 | AO204: 180.83 | AP204: 176.55 | AQ204: 177.62 | AR204: 192.6 | AS204: 193.67 | AT204: 208.65 | AU204: 222.56 | AV204: 223.63 | AW204: 238.61 | AX204: 126.7843 | AY204: 142.478525 | AZ204: 157.10275 | BA204: 172.796975 | BB204: 187.4212 | BC204: 203.115425 | BD204: 214 | BE204: 222.56 | BF204: 177.62 | BG204: 188.32 | BH204: 199.02 | BI204: 209.72 | BJ204: 221.49 | BK204: 232.19 | BL204: 242.89 | BM204: 253.59 | BN204: 50.99406 | BO204: 55.2818175 | BP204: 59.569575 | BQ204: 63.8573325 | BR204: 68.14509 | BS204: 72.4328475 | BT204: 76.720605 | BU204: 81.0083625 | BV204: =BV182*1.07 -> 102.40542 | BW204: 113.1195975 | BX204: 123.833775 | BY204: 134.5479525 | BZ204: 145.26213 | CA204: 155.9763075 | CB204: 166.690485 | CC204: 177.4046625 | CD204: 62.48372 | CE204: 67.512185 | CF204: 72.54065 | CG204: 77.569115 | CH204: 82.59758 | CI204: 87.626045 | CJ204: 92.65451 | CK204: 97.682975 | CL204: 123.07568 | CM204: 135.67814 | CN204: 148.2806 | CO204: 160.88306 | CP204: 173.48552 | CQ204: 186.08798 | CR204: 198.69044 | CS204: 211.2929 | CT204: 74.89144 | CU204: 80.77537 | CV204: 86.6593 | CW204: 92.54323 | CX204: 98.42716 | CY204: 104.31109 | CZ204: 110.19502 | DA204: 116.07895 | DB204: 138.23758 | DC204: 152.0397775 | DD204: 165.841975 | DE204: 179.6441725 | DF204: 193.44637 | DG204: 207.2485675 | DH204: 221.050765 | DI204: 234.8529625 | DJ204: 140.2128 | DK204: 148.09977 | DL204: 155.11041 | DM204: 162.12105 | DN204: 170.00802 | DO204: 177.01866 | DP204: 184.90563 | DQ204: 191.91627 | DR204: 194.54526 | DS204: 205.93755 | DT204: 219.0825 | DU204: 231.35112 | DV204: 242.74341 | DW204: 255.88836 | DX204: 268.15698 | DY204: 279.54927 | DZ204: 177.89499 | EA204: 188.41095 | EB204: 197.17425 | EC204: 206.81388 | ED204: 218.20617 | EE204: 226.96947 | EF204: 236.6091 | EG204: 245.3724 | EH204: =EH182*1.07 -> 223.46415 | EI204: 238.36176 | EJ204: 254.1357 | EK204: 269.03331 | EL204: 283.93092 | EM204: 299.70486 | EN204: 313.72614 | EO204: 329.50008 | EP204: 172.987542 | EQ204: 181.2688605 | ER204: 188.6300325 | ES204: 198.751644 | ET204: 206.112816 | EU204: 214.3941345 | EV204: 221.7553065 | EW204: 231.876918 | EX204: 223.5955995 | EY204: 238.3179435 | EZ204: 251.1999945 | FA204: 264.0820455 | FB204: 278.8043895 | FC204: 290.766294 | FD204: 305.488638 | FE204: 318.370689 | FF204: 164.75004 | FG204: 172.63701 | FH204: 179.64765 | FI204: 189.28728 | FJ204: 196.29792 | FK204: 204.18489 | FL204: 211.19553 | FM204: 220.83516 | FN204: 212.94819 | FO204: 226.96947 | FP204: 239.23809 | FQ204: 251.50671 | FR204: 265.52799 | FS204: 276.92028 | FT204: 290.94156 | FU204: 303.21018 | FV204: 113.04657 | FW204: 120.93354 | FX204: 127.94418 | FY204: 136.70748 | FZ204: 144.59445 | GA204: 152.48142 | GB204: 160.36839 | GC204: 168.25536 | GD204: 147.22344 | GE204: 158.61573 | GF204: 169.13169 | GG204: 179.64765 | GH204: 190.16361 | GI204: 200.67957 | GJ204: 212.07186 | GK204: 222.58782 | GL204: 139.33647 | GM204: 148.9761 | GN204: 156.86307 | GO204: 165.62637 | GP204: 174.38967 | GQ204: 183.15297 | GR204: 191.91627 | GS204: 199.80324 | GT204: =GT182*1.07 -> 177.01866 | GU204: 190.16361 | GV204: 201.5559 | GW204: 213.82452 | GX204: 226.09314 | GY204: 238.36176 | GZ204: 250.63038 | HA204: 263.77533 | HB204: 154.23408 | HC204: 162.99738 | HD204: 172.63701 | HE204: 181.40031 | HF204: 190.16361 | HG204: 199.80324 | HH204: 208.56654 | HI204: 217.32984 | HJ204: 198.05058 | HK204: 211.19553 | HL204: 223.46415 | HM204: 235.73277 | HN204: 248.87772 | HO204: 262.02267 | HP204: 273.41496 | HQ204: 286.55991
A205: 1600 | B205: =B183*1.07 -> 100.62922 | C205: 111.44906 | D205: 121.1989 | E205: 130.94874 | F205: 140.69858 | G205: 148.73 | H205: 150.87 | I205: 153.01 | J205: =J183*1.07 -> 166.92 | K205: 175.48 | L205: 184.04 | M205: 192.6 | N205: 201.16 | O205: 209.72 | P205: 218.28 | Q205: 226.84 | R205: 98.48922 | S205: 108.23906 | T205: 117.9889 | U205: 127.73874 | V205: 137.48858 | W205: 144.45 | X205: 145.52 | Y205: 147.66 | Z205: 162.64 | AA205: 170.13 | AB205: 177.62 | AC205: 185.11 | AD205: 193.67 | AE205: 201.16 | AF205: 208.65 | AG205: 216.14 | AH205: 118.81922 | AI205: 126.42906 | AJ205: 141.5289 | AK205: 150.20874 | AL205: 165.30858 | AM205: 177.62 | AN205: 178.69 | AO205: 186.18 | AP205: 182.97 | AQ205: 184.04 | AR205: 200.09 | AS205: 201.16 | AT205: 216.14 | AU205: 232.19 | AV205: 233.26 | AW205: 248.24 | AX205: 134.86922 | AY205: 151.03906 | AZ205: 167.2089 | BA205: 183.37874 | BB205: 199.54858 | BC205: 212.93 | BD205: 221.49 | BE205: 230.05 | BF205: 184.04 | BG205: 194.74 | BH205: 206.51 | BI205: 218.28 | BJ205: 230.05 | BK205: 241.82 | BL205: 253.59 | BM205: 264.29 | BN205: 53.280864 | BO205: 57.854472 | BP205: 62.42808 | BQ205: 67.001688 | BR205: 71.575296 | BS205: 76.148904 | BT205: 80.722512 | BU205: 85.29612 | BV205: =BV183*1.07 -> 108.119648 | BW205: 119.548104 | BX205: 130.97656 | BY205: 142.405016 | BZ205: 153.833472 | CA205: 165.261928 | CB205: 176.690384 | CC205: 188.11884 | CD205: 65.165568 | CE205: 70.529264 | CF205: 75.89296 | CG205: 81.256656 | CH205: 86.620352 | CI205: 91.984048 | CJ205: 97.347744 | CK205: 102.71144 | CL205: 129.796992 | CM205: 143.239616 | CN205: 156.68224 | CO205: 170.124864 | CP205: 183.567488 | CQ205: 197.010112 | CR205: 210.452736 | CS205: 223.89536 | CT205: 78.029536 | CU205: 84.305728 | CV205: 90.58192 | CW205: 96.858112 | CX205: 103.134304 | CY205: 109.410496 | CZ205: 115.686688 | DA205: 121.96288 | DB205: 145.598752 | DC205: 160.321096 | DD205: 175.04344 | DE205: 189.765784 | DF205: 204.488128 | DG205: 219.210472 | DH205: 233.932816 | DI205: 248.65516 | DJ205: 145.47078 | DK205: 154.23408 | DL205: 161.24472 | DM205: 169.13169 | DN205: 176.14233 | DO205: 185.78196 | DP205: 192.7926 | DQ205: 200.67957 | DR205: 203.30856 | DS205: 215.57718 | DT205: 228.72213 | DU205: 241.86708 | DV205: 255.01203 | DW205: 268.15698 | DX205: 281.30193 | DY205: 295.32321 | DZ205: 184.90563 | EA205: 194.54526 | EB205: 205.06122 | EC205: 214.70085 | ED205: 225.21681 | EE205: 235.73277 | EF205: 245.3724 | EG205: 256.76469 | EH205: =EH183*1.07 -> 232.22745 | EI205: 248.00139 | EJ205: 264.65166 | EK205: 280.4256 | EL205: 297.07587 | EM205: 312.84981 | EN205: 329.50008 | EO205: 345.27402 | EP205: 179.4285675 | EQ205: 187.709886 | ER205: 196.911351 | ES205: 205.1926695 | ET205: 214.3941345 | EU205: 222.675453 | EV205: 231.876918 | EW205: 240.1582365 | EX205: 234.6373575 | EY205: 248.439555 | EZ205: 262.2417525 | FA205: 276.9640965 | FB205: 290.766294 | FC205: 305.488638 | FD205: 319.2908355 | FE205: 333.093033 | FF205: 170.88435 | FG205: 178.77132 | FH205: 187.53462 | FI205: 195.42159 | FJ205: 204.18489 | FK205: 212.07186 | FL205: 220.83516 | FM205: 228.72213 | FN205: 223.46415 | FO205: 236.6091 | FP205: 249.75405 | FQ205: 263.77533 | FR205: 276.92028 | FS205: 290.94156 | FT205: 304.08651 | FU205: 317.23146 | FV205: 118.30455 | FW205: 126.19152 | FX205: 134.95482 | FY205: 142.84179 | FZ205: 150.72876 | GA205: 159.49206 | GB205: 168.25536 | GC205: 175.266 | GD205: 154.23408 | GE205: 164.75004 | GF205: 177.01866 | GG205: 188.41095 | GH205: 199.80324 | GI205: 211.19553 | GJ205: 223.46415 | GK205: 233.98011 | GL205: 144.59445 | GM205: 154.23408 | GN205: 162.12105 | GO205: 172.63701 | GP205: 180.52398 | GQ205: 190.16361 | GR205: 199.80324 | GS205: 208.56654 | GT205: =GT183*1.07 -> 184.0293 | GU205: 197.17425 | GV205: 210.3192 | GW205: 223.46415 | GX205: 235.73277 | GY205: 248.87772 | GZ205: 262.02267 | HA205: 274.29129 | HB205: 160.36839 | HC205: 170.00802 | HD205: 178.77132 | HE205: 188.41095 | HF205: 198.05058 | HG205: 207.69021 | HH205: 216.45351 | HI205: 226.09314 | HJ205: 206.81388 | HK205: 219.0825 | HL205: 233.10378 | HM205: 246.24873 | HN205: 259.39368 | HO205: 272.53863 | HP205: 285.68358 | HQ205: 299.70486
A206: 1700 | B206: =B184*1.07 -> 106.57414 | C206: 117.869595 | D206: 128.09505 | E206: 138.320505 | F206: 148.73 | G206: 150.87 | H206: 154.08 | I206: 156.22 | J206: =J184*1.07 -> 172.27 | K206: 181.9 | L206: 190.46 | M206: 200.09 | N206: 208.65 | O206: 218.28 | P206: 227.91 | Q206: 236.47 | R206: 104.43414 | S206: 114.659595 | T206: 124.88505 | U206: 135.110505 | V206: 144.45 | W206: 146.59 | X206: 148.73 | Y206: 150.87 | Z206: 167.99 | AA206: 175.48 | AB206: 184.04 | AC206: 192.6 | AD206: 201.16 | AE206: 208.65 | AF206: 217.21 | AG206: 225.77 | AH206: 125.83414 | AI206: 133.919595 | AJ206: 150.56505 | AK206: 158.650505 | AL206: 174.41 | AM206: 181.9 | AN206: 182.97 | AO206: 190.46 | AP206: 189.39 | AQ206: 190.46 | AR206: 206.51 | AS206: 207.58 | AT206: 224.7 | AU206: 240.75 | AV206: 241.82 | AW206: 258.94 | AX206: 142.95414 | AY206: 160.669595 | AZ206: 177.31505 | BA206: 193.960505 | BB206: 210.79 | BC206: 219.35 | BD206: 228.98 | BE206: 237.54 | BF206: 189.39 | BG206: 202.23 | BH206: 214 | BI206: 226.84 | BJ206: 238.61 | BK206: 251.45 | BL206: 263.22 | BM206: 276.06 | BN206: 55.567668 | BO206: 60.4271265 | BP206: 65.286585 | BQ206: 70.1460435 | BR206: 75.005502 | BS206: 79.8649605 | BT206: 84.724419 | BU206: 89.5838775 | BV206: =BV184*1.07 -> 113.833876 | BW206: 125.9766105 | BX206: 138.119345 | BY206: 150.2620795 | BZ206: 162.404814 | CA206: 174.5475485 | CB206: 186.690283 | CC206: 198.8330175 | CD206: 67.847416 | CE206: 73.546343 | CF206: 79.24527 | CG206: 84.944197 | CH206: 90.643124 | CI206: 96.342051 | CJ206: 102.040978 | CK206: 107.739905 | CL206: 136.518304 | CM206: 150.801092 | CN206: 165.08388 | CO206: 179.366668 | CP206: 193.649456 | CQ206: 207.932244 | CR206: 222.215032 | CS206: 236.49782 | CT206: 81.167632 | CU206: 87.836086 | CV206: 94.50454 | CW206: 101.172994 | CX206: 107.841448 | CY206: 114.509902 | CZ206: 121.178356 | DA206: 127.84681 | DB206: 152.959924 | DC206: 168.6024145 | DD206: 184.244905 | DE206: 199.8873955 | DF206: 215.529886 | DG206: 231.1723765 | DH206: 246.814867 | DI206: 262.4573575 | DJ206: 153.35775 | DK206: 161.24472 | DL206: 169.13169 | DM206: 177.01866 | DN206: 186.65829 | DO206: 194.54526 | DP206: 202.43223 | DQ206: 210.3192 | DR206: 212.94819 | DS206: 226.96947 | DT206: 240.99075 | DU206: 255.01203 | DV206: 269.03331 | DW206: 282.17826 | DX206: 297.07587 | DY206: 311.09715 | DZ206: 191.91627 | EA206: 203.30856 | EB206: 212.94819 | EC206: 225.21681 | ED206: 235.73277 | EE206: 247.12506 | EF206: 258.51735 | EG206: 269.03331 | EH206: =EH184*1.07 -> 241.86708 | EI206: 260.27001 | EJ206: 276.92028 | EK206: 295.32321 | EL206: 311.97348 | EM206: 329.50008 | EN206: 346.15035 | EO206: 363.67695 | EP206: 186.7897395 | EQ206: 196.911351 | ER206: 206.112816 | ES206: 215.314281 | ET206: 223.5955995 | EU206: 233.717211 | EV206: 243.8388225 | EW206: 252.120141 | EX206: 246.599262 | EY206: 261.321606 | EZ206: 276.9640965 | FA206: 290.766294 | FB206: 306.4087845 | FC206: 321.1311285 | FD206: 335.8534725 | FE206: 351.495963 | FF206: 177.89499 | FG206: 187.53462 | FH206: 196.29792 | FI206: 205.06122 | FJ206: 212.94819 | FK206: 222.58782 | FL206: 232.22745 | FM206: 240.11442 | FN206: 234.85644 | FO206: 248.87772 | FP206: 263.77533 | FQ206: 276.92028 | FR206: 291.81789 | FS206: 305.83917 | FT206: 319.86045 | FU206: 334.75806 | FV206: 123.56253 | FW206: 133.20216 | FX206: 141.08913 | FY206: 149.85243 | FZ206: 159.49206 | GA206: 168.25536 | GB206: 176.14233 | GC206: 185.78196 | GD206: 161.24472 | GE206: 174.38967 | GF206: 186.65829 | GG206: 198.05058 | GH206: 210.3192 | GI206: 222.58782 | GJ206: 233.98011 | GK206: 246.24873 | GL206: 150.72876 | GM206: 160.36839 | GN206: 170.88435 | GO206: 179.64765 | GP206: 189.28728 | GQ206: 198.92691 | GR206: 208.56654 | GS206: 217.32984 | GT206: =GT184*1.07 -> 192.7926 | GU206: 206.81388 | GV206: 219.95883 | GW206: 233.10378 | GX206: 247.12506 | GY206: 261.14634 | GZ206: 274.29129 | HA206: 287.43624 | HB206: 167.37903 | HC206: 177.01866 | HD206: 187.53462 | HE206: 197.17425 | HF206: 207.69021 | HG206: 217.32984 | HH206: 226.96947 | HI206: 237.48543 | HJ206: 215.57718 | HK206: 230.47479 | HL206: 244.49607 | HM206: 257.64102 | HN206: 271.6623 | HO206: 285.68358 | HP206: 300.58119 | HQ206: 314.60247
A207: 1800 | B207: =B185*1.07 -> 112.43346 | C207: 123.13453 | D207: 134.9056 | E207: 145.60667 | F207: 156.22 | G207: 158.36 | H207: 161.57 | I207: 164.78 | J207: =J185*1.07 -> 182.97 | K207: 191.53 | L207: 201.16 | M207: 210.79 | N207: 220.42 | O207: 230.05 | P207: 239.68 | Q207: 249.31 | R207: 109.22346 | S207: 119.92453 | T207: 130.6256 | U207: 141.32667 | V207: 151.94 | W207: 154.08 | X207: 156.22 | Y207: 158.36 | Z207: 176.55 | AA207: 185.11 | AB207: 193.67 | AC207: 202.23 | AD207: 210.79 | AE207: 219.35 | AF207: 227.91 | AG207: 236.47 | AH207: 132.76346 | AI207: 141.32453 | AJ207: 158.4456 | AK207: 168.07667 | AL207: 182.97 | AM207: 191.53 | AN207: 192.6 | AO207: 201.16 | AP207: 200.09 | AQ207: 201.16 | AR207: 219.35 | AS207: 220.42 | AT207: 237.54 | AU207: 255.73 | AV207: 256.8 | AW207: 273.92 | AX207: 150.95346 | AY207: 169.14453 | AZ207: 187.3356 | BA207: 205.52667 | BB207: 222.56 | BC207: 232.19 | BD207: 241.82 | BE207: 251.45 | BF207: 201.16 | BG207: 214 | BH207: 226.84 | BI207: 240.75 | BJ207: 253.59 | BK207: 266.43 | BL207: 279.27 | BM207: 292.11 | BN207: 57.854472 | BO207: 62.999781 | BP207: 68.14509 | BQ207: 73.290399 | BR207: 78.435708 | BS207: 83.581017 | BT207: 88.726326 | BU207: 93.871635 | BV207: =BV185*1.07 -> 119.548104 | BW207: 132.405117 | BX207: 145.26213 | BY207: 158.119143 | BZ207: 170.976156 | CA207: 183.833169 | CB207: 196.690182 | CC207: 209.547195 | CD207: 70.529264 | CE207: 76.563422 | CF207: 82.59758 | CG207: 88.631738 | CH207: 94.665896 | CI207: 100.700054 | CJ207: 106.734212 | CK207: 112.76837 | CL207: 143.239616 | CM207: 158.362568 | CN207: 173.48552 | CO207: 188.608472 | CP207: 203.731424 | CQ207: 218.854376 | CR207: 233.977328 | CS207: 249.10028 | CT207: 84.305728 | CU207: 91.366444 | CV207: 98.42716 | CW207: 105.487876 | CX207: 112.548592 | CY207: 119.609308 | CZ207: 126.670024 | DA207: 133.73074 | DB207: 160.321096 | DC207: 176.883733 | DD207: 193.44637 | DE207: 210.009007 | DF207: 226.571644 | DG207: 243.134281 | DH207: 259.696918 | DI207: 276.259555 | DJ207: 159.49206 | DK207: 168.25536 | DL207: 177.01866 | DM207: 186.65829 | DN207: 194.54526 | DO207: 204.18489 | DP207: 212.07186 | DQ207: 221.71149 | DR207: 224.34048 | DS207: 238.36176 | DT207: 254.1357 | DU207: 268.15698 | DV207: 282.17826 | DW207: 297.9522 | DX207: 311.97348 | DY207: 327.74742 | DZ207: 200.67957 | EA207: 211.19553 | EB207: 223.46415 | EC207: 235.73277 | ED207: 247.12506 | EE207: 258.51735 | EF207: 269.90964 | EG207: 281.30193 | EH207: =EH185*1.07 -> 254.1357 | EI207: 271.6623 | EJ207: 290.06523 | EK207: 308.46816 | EL207: 327.74742 | EM207: 345.27402 | EN207: 363.67695 | EO207: 382.07988 | EP207: 196.911351 | EQ207: 205.1926695 | ER207: 215.314281 | ES207: 225.4358925 | ET207: 234.6373575 | EU207: 244.758969 | EV207: 253.960434 | EW207: 264.0820455 | EX207: 256.7208735 | EY207: 273.2835105 | EZ207: 288.926001 | FA207: 305.488638 | FB207: 320.210982 | FC207: 335.8534725 | FD207: 352.4161095 | FE207: 368.0586 | FF207: 187.53462 | FG207: 195.42159 | FH207: 205.06122 | FI207: 214.70085 | FJ207: 223.46415 | FK207: 233.10378 | FL207: 241.86708 | FM207: 251.50671 | FN207: 244.49607 | FO207: 260.27001 | FP207: 275.16762 | FQ207: 290.94156 | FR207: 304.96284 | FS207: 319.86045 | FT207: 335.63439 | FU207: 350.532 | FV207: 130.57317 | FW207: 138.46014 | FX207: 148.9761 | FY207: 157.7394 | FZ207: 167.37903 | GA207: 175.266 | GB207: 185.78196 | GC207: 194.54526 | GD207: 170.88435 | GE207: 182.27664 | GF207: 195.42159 | GG207: 208.56654 | GH207: 220.83516 | GI207: 233.98011 | GJ207: 246.24873 | GK207: 259.39368 | GL207: 157.7394 | GM207: 167.37903 | GN207: 177.01866 | GO207: 187.53462 | GP207: 198.05058 | GQ207: 207.69021 | GR207: 217.32984 | GS207: 227.8458 | GT207: =GT185*1.07 -> 200.67957 | GU207: 214.70085 | GV207: 229.59846 | GW207: 243.61974 | GX207: 257.64102 | GY207: 271.6623 | GZ207: 286.55991 | HA207: 300.58119 | HB207: 174.38967 | HC207: 185.78196 | HD207: 195.42159 | HE207: 206.81388 | HF207: 216.45351 | HG207: 226.96947 | HH207: 237.48543 | HI207: 248.00139 | HJ207: 226.09314 | HK207: 240.99075 | HL207: 255.01203 | HM207: 269.90964 | HN207: 284.80725 | HO207: 299.70486 | HP207: 314.60247 | HQ207: 328.62375
A208: 1900 | B208: =B186*1.07 -> 118.37838 | C208: 129.555065 | D208: 141.80175 | E208: 154.048435 | F208: 158.36 | G208: 161.57 | H208: 164.78 | I208: 166.92 | J208: =J186*1.07 -> 188.32 | K208: 197.95 | L208: 208.65 | M208: 219.35 | N208: 228.98 | O208: 239.68 | P208: 249.31 | Q208: 260.01 | R208: 115.16838 | S208: 126.345065 | T208: 137.52175 | U208: 148.698435 | V208: 154.08 | W208: 156.22 | X208: 158.36 | Y208: 160.5 | Z208: 181.9 | AA208: 191.53 | AB208: 200.09 | AC208: 209.72 | AD208: 218.28 | AE208: 227.91 | AF208: 236.47 | AG208: 246.1 | AH208: 138.70838 | AI208: 148.815065 | AJ208: 166.41175 | AK208: 176.518435 | AL208: 187.25 | AM208: 196.88 | AN208: 196.88 | AO208: 205.44 | AP208: 206.51 | AQ208: 207.58 | AR208: 225.77 | AS208: 226.84 | AT208: 246.1 | AU208: 264.29 | AV208: 265.36 | AW208: 283.55 | AX208: 159.03838 | AY208: 177.705065 | AZ208: 197.44175 | BA208: 216.108435 | BB208: 228.98 | BC208: 238.61 | BD208: 249.31 | BE208: 258.94 | BF208: 207.58 | BG208: 221.49 | BH208: 234.33 | BI208: 248.24 | BJ208: 262.15 | BK208: 276.06 | BL208: 289.97 | BM208: 302.81 | BN208: 60.141276 | BO208: 65.5724355 | BP208: 71.003595 | BQ208: 76.4347545 | BR208: 81.865914 | BS208: 87.2970735 | BT208: 92.728233 | BU208: 98.1593925 | BV208: =BV186*1.07 -> 125.262332 | BW208: 138.8336235 | BX208: 152.404915 | BY208: 165.9762065 | BZ208: 179.547498 | CA208: 193.1187895 | CB208: 206.690081 | CC208: 220.2613725 | CD208: 73.211112 | CE208: 79.580501 | CF208: 85.94989 | CG208: 92.319279 | CH208: 98.688668 | CI208: 105.058057 | CJ208: 111.427446 | CK208: 117.796835 | CL208: 149.960928 | CM208: 165.924044 | CN208: 181.88716 | CO208: 197.850276 | CP208: 213.813392 | CQ208: 229.776508 | CR208: 245.739624 | CS208: 261.70274 | CT208: 87.443824 | CU208: 94.896802 | CV208: 102.34978 | CW208: 109.802758 | CX208: 117.255736 | CY208: 124.708714 | CZ208: 132.161692 | DA208: 139.61467 | DB208: 167.682268 | DC208: 185.1650515 | DD208: 202.647835 | DE208: 220.1306185 | DF208: 237.613402 | DG208: 255.0961855 | DH208: 272.578969 | DI208: 290.0617525 | DJ208: 165.62637 | DK208: 175.266 | DL208: 185.78196 | DM208: 194.54526 | DN208: 204.18489 | DO208: 212.07186 | DP208: 222.58782 | DQ208: 232.22745 | DR208: 234.85644 | DS208: 249.75405 | DT208: 265.52799 | DU208: 281.30193 | DV208: 297.07587 | DW208: 311.97348 | DX208: 327.74742 | DY208: 343.52136 | DZ208: 208.56654 | EA208: 221.71149 | EB208: 233.10378 | EC208: 244.49607 | ED208: 257.64102 | EE208: 269.90964 | EF208: 282.17826 | EG208: 295.32321 | EH208: =EH186*1.07 -> 265.52799 | EI208: 283.93092 | EJ208: 303.21018 | EK208: 322.48944 | EL208: 342.64503 | EM208: 361.92429 | EN208: 381.20355 | EO208: 400.48281 | EP208: 204.272523 | EQ208: 214.3941345 | ER208: 223.5955995 | ES208: 234.6373575 | ET208: 245.6791155 | EU208: 254.8805805 | EV208: 265.9223385 | EW208: 276.04395 | EX208: 269.6029245 | EY208: 285.245415 | EZ208: 301.808052 | FA208: 319.2908355 | FB208: 334.933326 | FC208: 352.4161095 | FD208: 368.0586 | FE208: 385.5413835 | FF208: 194.54526 | FG208: 204.18489 | FH208: 212.94819 | FI208: 223.46415 | FJ208: 233.98011 | FK208: 242.74341 | FL208: 253.25937 | FM208: 262.899 | FN208: 256.76469 | FO208: 271.6623 | FP208: 287.43624 | FQ208: 304.08651 | FR208: 318.98412 | FS208: 335.63439 | FT208: 350.532 | FU208: 367.18227 | FV208: 135.83115 | FW208: 145.47078 | FX208: 155.11041 | FY208: 163.87371 | FZ208: 174.38967 | GA208: 184.0293 | GB208: 194.54526 | GC208: 204.18489 | GD208: 177.89499 | GE208: 191.03994 | GF208: 205.06122 | GG208: 218.20617 | GH208: 231.35112 | GI208: 245.3724 | GJ208: 257.64102 | GK208: 271.6623 | GL208: 162.99738 | GM208: 174.38967 | GN208: 185.78196 | GO208: 195.42159 | GP208: 205.93755 | GQ208: 215.57718 | GR208: 226.96947 | GS208: 237.48543 | GT208: =GT186*1.07 -> 210.3192 | GU208: 225.21681 | GV208: 238.36176 | GW208: 254.1357 | GX208: 269.03331 | GY208: 283.93092 | GZ208: 298.82853 | HA208: 314.60247 | HB208: 182.27664 | HC208: 192.7926 | HD208: 204.18489 | HE208: 214.70085 | HF208: 226.09314 | HG208: 236.6091 | HH208: 248.00139 | HI208: 259.39368 | HJ208: 236.6091 | HK208: 251.50671 | HL208: 266.40432 | HM208: 282.17826 | HN208: 297.07587 | HO208: 311.97348 | HP208: 327.74742 | HQ208: 342.64503
A209: 2000 | B209: =B187*1.07 -> 123.371 | C209: 136.0933 | D209: 148.8156 | E209: 161.5379 | F209: 170.13 | G209: 173.34 | H209: 176.55 | I209: 179.76 | J209: =J187*1.07 -> 202.23 | K209: 212.93 | L209: 223.63 | M209: 234.33 | N209: 245.03 | O209: 255.73 | P209: 266.43 | Q209: 277.13 | R209: 121.231 | S209: 132.8833 | T209: 144.5356 | U209: 156.1879 | V209: 165.85 | W209: 167.99 | X209: 170.13 | Y209: 172.27 | Z209: 196.88 | AA209: 206.51 | AB209: 216.14 | AC209: 225.77 | AD209: 235.4 | AE209: 245.03 | AF209: 254.66 | AG209: 264.29 | AH209: 145.841 | AI209: 156.4233 | AJ209: 174.4956 | AK209: 185.0779 | AL209: 201.16 | AM209: 210.79 | AN209: 210.79 | AO209: 220.42 | AP209: 222.56 | AQ209: 223.63 | AR209: 242.89 | AS209: 243.96 | AT209: 263.22 | AU209: 282.48 | AV209: 283.55 | AW209: 302.81 | AX209: 167.241 | AY209: 187.4533 | AZ209: 206.5956 | BA209: 226.8079 | BB209: 243.96 | BC209: 254.66 | BD209: 265.36 | BE209: 276.06 | BF209: 222.56 | BG209: 237.54 | BH209: 251.45 | BI209: 266.43 | BJ209: 280.34 | BK209: 295.32 | BL209: 309.23 | BM209: 324.21 | BN209: 62.42808 | BO209: 68.14509 | BP209: 73.8621 | BQ209: 79.57911 | BR209: 85.29612 | BS209: 91.01313 | BT209: 96.73014 | BU209: 102.44715 | BV209: =BV187*1.07 -> 130.97656 | BW209: 145.26213 | BX209: 159.5477 | BY209: 173.83327 | BZ209: 188.11884 | CA209: 202.40441 | CB209: 216.68998 | CC209: 230.97555 | CD209: 75.89296 | CE209: 82.59758 | CF209: 89.3022 | CG209: 96.00682 | CH209: 102.71144 | CI209: 109.41606 | CJ209: 116.12068 | CK209: 122.8253 | CL209: 156.68224 | CM209: 173.48552 | CN209: 190.2888 | CO209: 207.09208 | CP209: 223.89536 | CQ209: 240.69864 | CR209: 257.50192 | CS209: 274.3052 | CT209: 90.58192 | CU209: 98.42716 | CV209: 106.2724 | CW209: 114.11764 | CX209: 121.96288 | CY209: 129.80812 | CZ209: 137.65336 | DA209: 145.4986 | DB209: 175.04344 | DC209: 193.44637 | DD209: 211.8493 | DE209: 230.25223 | DF209: 248.65516 | DG209: 267.05809 | DH209: 285.46102 | DI209: 303.86395 | DJ209: 173.51334 | DK209: 184.0293 | DL209: 192.7926 | DM209: 203.30856 | DN209: 212.07186 | DO209: 222.58782 | DP209: 233.10378 | DQ209: 241.86708 | DR209: 244.49607 | DS209: 261.14634 | DT209: 276.92028 | DU209: 293.57055 | DV209: 310.22082 | DW209: 326.87109 | DX209: 342.64503 | DY209: 358.41897 | DZ209: 248.00139 | EA209: 260.27001 | EB209: 272.53863 | EC209: 286.55991 | ED209: 299.70486 | EE209: 311.97348 | EF209: 325.99476 | EG209: 337.38705 | EH209: =EH187*1.07 -> 305.83917 | EI209: 327.74742 | EJ209: 347.02668 | EK209: 368.0586 | EL209: 388.21419 | EM209: 408.36978 | EN209: 429.4017 | EO209: 448.68096 | EP209: 212.5538415 | EQ209: 222.675453 | ER209: 233.717211 | ES209: 244.758969 | ET209: 254.8805805 | EU209: 266.842485 | EV209: 276.9640965 | EW209: 287.085708 | EX209: 281.564829 | EY209: 298.127466 | EZ209: 315.6102495 | FA209: 333.093033 | FB209: 350.5758165 | FC209: 367.1384535 | FD209: 385.5413835 | FE209: 402.1040205 | FF209: 202.43223 | FG209: 212.07186 | FH209: 222.58782 | FI209: 233.10378 | FJ209: 242.74341 | FK209: 254.1357 | FL209: 263.77533 | FM209: 273.41496 | FN209: 268.15698 | FO209: 283.93092 | FP209: 300.58119 | FQ209: 317.23146 | FR209: 333.88173 | FS209: 349.65567 | FT209: 367.18227 | FU209: 382.95621 | FV209: 141.08913 | FW209: 151.60509 | FX209: 161.24472 | FY209: 172.63701 | FZ209: 182.27664 | GA209: 192.7926 | GB209: 202.43223 | GC209: 212.94819 | GD209: 186.65829 | GE209: 199.80324 | GF209: 213.82452 | GG209: 227.8458 | GH209: 241.86708 | GI209: 255.88836 | GJ209: 269.90964 | GK209: 284.80725 | GL209: 170.00802 | GM209: 180.52398 | GN209: 191.91627 | GO209: 202.43223 | GP209: 213.82452 | GQ209: 226.09314 | GR209: 235.73277 | GS209: 247.12506 | GT209: =GT187*1.07 -> 218.20617 | GU209: 233.98011 | GV209: 249.75405 | GW209: 264.65166 | GX209: 280.4256 | GY209: 296.19954 | GZ209: 311.09715 | HA209: 326.87109 | HB209: 189.28728 | HC209: 200.67957 | HD209: 212.94819 | HE209: 224.34048 | HF209: 235.73277 | HG209: 247.12506 | HH209: 257.64102 | HI209: 269.03331 | HJ209: 246.24873 | HK209: 262.899 | HL209: 277.79661 | HM209: 293.57055 | HN209: 309.34449 | HO209: 325.99476 | HP209: 341.7687 | HQ209: 356.66631
A210: 2100 | B210: =B188*1.07 -> 129.31592 | C210: 142.513835 | D210: 155.71175 | E210: 168.909665 | F210: 173.34 | G210: 176.55 | H210: 179.76 | I210: 182.97 | J210: =J188*1.07 -> 207.58 | K210: 219.35 | L210: 230.05 | M210: 241.82 | N210: 253.59 | O210: 264.29 | P210: 276.06 | Q210: 286.76 | R210: 126.10592 | S210: 138.233835 | T210: 151.43175 | U210: 163.559665 | V210: 166.92 | W210: 170.13 | X210: 172.27 | Y210: 174.41 | Z210: 200.09 | AA210: 210.79 | AB210: 220.42 | AC210: 230.05 | AD210: 240.75 | AE210: 250.38 | AF210: 260.01 | AG210: 270.71 | AH210: 152.85592 | AI210: 162.843835 | AJ210: 183.53175 | AK210: 193.519665 | AL210: 204.37 | AM210: 215.07 | AN210: 215.07 | AO210: 225.77 | AP210: 227.91 | AQ210: 228.98 | AR210: 249.31 | AS210: 250.38 | AT210: 270.71 | AU210: 292.11 | AV210: 293.18 | AW210: 313.51 | AX210: 174.25592 | AY210: 196.013835 | AZ210: 216.70175 | BA210: 238.459665 | BB210: 250.38 | BC210: 262.15 | BD210: 272.85 | BE210: 284.62 | BF210: 228.98 | BG210: 243.96 | BH210: 258.94 | BI210: 273.92 | BJ210: 289.97 | BK210: 304.95 | BL210: 319.93 | BM210: 334.91 | BN210: 64.714884 | BO210: 70.7177445 | BP210: 76.720605 | BQ210: 82.7234655 | BR210: 88.726326 | BS210: 94.7291865 | BT210: 100.732047 | BU210: 106.7349075 | BV210: =BV188*1.07 -> 136.690788 | BW210: 151.6906365 | BX210: 166.690485 | BY210: 181.6903335 | BZ210: 196.690182 | CA210: 211.6900305 | CB210: 226.689879 | CC210: 241.6897275 | CD210: 78.574808 | CE210: 85.614659 | CF210: 92.65451 | CG210: 99.694361 | CH210: 106.734212 | CI210: 113.774063 | CJ210: 120.813914 | CK210: 127.853765 | CL210: 163.403552 | CM210: 181.046996 | CN210: 198.69044 | CO210: 216.333884 | CP210: 233.977328 | CQ210: 251.620772 | CR210: 269.264216 | CS210: 286.90766 | CT210: 93.720016 | CU210: 101.957518 | CV210: 110.19502 | CW210: 118.432522 | CX210: 126.670024 | CY210: 134.907526 | CZ210: 143.145028 | DA210: 151.38253 | DB210: 182.404612 | DC210: 201.7276885 | DD210: 221.050765 | DE210: 240.3738415 | DF210: 259.696918 | DG210: 279.0199945 | DH210: 298.343071 | DI210: 317.6661475 | DJ210: 177.89499 | DK210: 189.28728 | DL210: 199.80324 | DM210: 209.44287 | DN210: 220.83516 | DO210: 229.59846 | DP210: 240.11442 | DQ210: 250.63038 | DR210: 254.1357 | DS210: 270.78597 | DT210: 287.43624 | DU210: 304.96284 | DV210: 321.61311 | DW210: 339.13971 | DX210: 355.78998 | DY210: 374.19291 | DZ210: 253.25937 | EA210: 266.40432 | EB210: 280.4256 | EC210: 294.44688 | ED210: 306.7155 | EE210: 320.73678 | EF210: 334.75806 | EG210: 347.90301 | EH210: =EH188*1.07 -> 314.60247 | EI210: 336.51072 | EJ210: 358.41897 | EK210: 379.45089 | EL210: 400.48281 | EM210: 422.39106 | EN210: 443.42298 | EO210: 465.33123 | EP210: 218.0747205 | EQ210: 230.036625 | ER210: 241.078383 | ES210: 252.120141 | ET210: 263.161899 | EU210: 274.203657 | EV210: 285.245415 | EW210: 297.2073195 | EX210: 289.8461475 | EY210: 308.2490775 | EZ210: 326.6520075 | FA210: 345.975084 | FB210: 363.4578675 | FC210: 381.8607975 | FD210: 399.343581 | FE210: 417.746511 | FF210: 207.69021 | FG210: 219.0825 | FH210: 229.59846 | FI210: 240.11442 | FJ210: 250.63038 | FK210: 261.14634 | FL210: 271.6623 | FM210: 283.05459 | FN210: 276.04395 | FO210: 293.57055 | FP210: 311.09715 | FQ210: 329.50008 | FR210: 346.15035 | FS210: 363.67695 | FT210: 380.32722 | FU210: 397.85382 | FV210: 146.34711 | FW210: 156.86307 | FX210: 168.25536 | FY210: 177.89499 | FZ210: 189.28728 | GA210: 199.80324 | GB210: 211.19553 | GC210: 220.83516 | GD210: 192.7926 | GE210: 207.69021 | GF210: 222.58782 | GG210: 236.6091 | GH210: 251.50671 | GI210: 266.40432 | GJ210: 281.30193 | GK210: 296.19954 | GL210: 174.38967 | GM210: 186.65829 | GN210: 198.05058 | GO210: 209.44287 | GP210: 219.95883 | GQ210: 232.22745 | GR210: 243.61974 | GS210: 255.01203 | GT210: =GT188*1.07 -> 226.09314 | GU210: 240.99075 | GV210: 256.76469 | GW210: 273.41496 | GX210: 290.06523 | GY210: 305.83917 | GZ210: 321.61311 | HA210: 338.26338 | HB210: 195.42159 | HC210: 207.69021 | HD210: 219.0825 | HE210: 231.35112 | HF210: 242.74341 | HG210: 254.1357 | HH210: 266.40432 | HI210: 278.67294 | HJ210: 254.1357 | HK210: 270.78597 | HL210: 287.43624 | HM210: 304.08651 | HN210: 320.73678 | HO210: 337.38705 | HP210: 354.03732 | HQ210: 369.81126
A211: 2200 | B211: =B189*1.07 -> 135.26084 | C211: 148.93437 | D211: 162.6079 | E211: 172.27 | F211: 175.48 | G211: 178.69 | H211: 181.9 | I211: 185.11 | J211: =J189*1.07 -> 212.93 | K211: 223.63 | L211: 235.4 | M211: 247.17 | N211: 258.94 | O211: 270.71 | P211: 282.48 | Q211: 294.25 | R211: 132.05084 | S211: 144.65437 | T211: 157.2579 | U211: 166.92 | V211: 169.06 | W211: 172.27 | X211: 174.41 | Y211: 177.62 | Z211: 205.44 | AA211: 216.14 | AB211: 226.84 | AC211: 237.54 | AD211: 248.24 | AE211: 257.87 | AF211: 268.57 | AG211: 279.27 | AH211: 159.87084 | AI211: 170.33437 | AJ211: 191.4979 | AK211: 197.95 | AL211: 208.65 | AM211: 219.35 | AN211: 219.35 | AO211: 230.05 | AP211: 234.33 | AQ211: 235.4 | AR211: 256.8 | AS211: 257.87 | AT211: 279.27 | AU211: 300.67 | AV211: 301.74 | AW211: 323.14 | AX211: 182.34084 | AY211: 204.57437 | AZ211: 226.8079 | BA211: 245.03 | BB211: 256.8 | BC211: 268.57 | BD211: 280.34 | BE211: 292.11 | BF211: 235.4 | BG211: 251.45 | BH211: 266.43 | BI211: 282.48 | BJ211: 298.53 | BK211: 314.58 | BL211: 330.63 | BM211: 345.61 | BN211: 67.001688 | BO211: 73.290399 | BP211: 79.57911 | BQ211: 85.867821 | BR211: 92.156532 | BS211: 98.445243 | BT211: 104.733954 | BU211: 111.022665 | BV211: =BV189*1.07 -> 142.405016 | BW211: 158.119143 | BX211: 173.83327 | BY211: 189.547397 | BZ211: 205.261524 | CA211: 220.975651 | CB211: 236.689778 | CC211: 252.403905 | CD211: 81.256656 | CE211: 88.631738 | CF211: 96.00682 | CG211: 103.381902 | CH211: 110.756984 | CI211: 118.132066 | CJ211: 125.507148 | CK211: 132.88223 | CL211: 170.124864 | CM211: 188.608472 | CN211: 207.09208 | CO211: 225.575688 | CP211: 244.059296 | CQ211: 262.542904 | CR211: 281.026512 | CS211: 299.51012 | CT211: 96.858112 | CU211: 105.487876 | CV211: 114.11764 | CW211: 122.747404 | CX211: 131.377168 | CY211: 140.006932 | CZ211: 148.636696 | DA211: 157.26646 | DB211: 189.765784 | DC211: 210.009007 | DD211: 230.25223 | DE211: 250.495453 | DF211: 270.738676 | DG211: 290.981899 | DH211: 311.225122 | DI211: 331.468345 | DJ211: 184.90563 | DK211: 194.54526 | DL211: 205.93755 | DM211: 217.32984 | DN211: 226.96947 | DO211: 238.36176 | DP211: 248.87772 | DQ211: 259.39368 | DR211: 262.899 | DS211: 280.4256 | DT211: 298.82853 | DU211: 316.35513 | DV211: 333.88173 | DW211: 351.40833 | DX211: 369.81126 | DY211: 387.33786 | DZ211: 258.51735 | EA211: 272.53863 | EB211: 287.43624 | EC211: 301.45752 | ED211: 315.4788 | EE211: 330.37641 | EF211: 344.39769 | EG211: 359.2953 | EH211: =EH189*1.07 -> 323.36577 | EI211: 346.15035 | EJ211: 368.0586 | EK211: 391.71951 | EL211: 412.75143 | EM211: 436.41234 | EN211: 458.32059 | EO211: 480.22884 | EP211: 225.4358925 | EQ211: 236.4776505 | ER211: 248.439555 | ES211: 259.481313 | ET211: 271.4432175 | EU211: 283.405122 | EV211: 294.44688 | EW211: 306.4087845 | EX211: 299.967759 | EY211: 319.2908355 | EZ211: 337.6937655 | FA211: 357.016842 | FB211: 376.3399185 | FC211: 395.662995 | FD211: 414.065925 | FE211: 433.3890015 | FF211: 214.70085 | FG211: 225.21681 | FH211: 236.6091 | FI211: 247.12506 | FJ211: 258.51735 | FK211: 269.90964 | FL211: 280.4256 | FM211: 291.81789 | FN211: 285.68358 | FO211: 304.08651 | FP211: 321.61311 | FQ211: 340.01604 | FR211: 358.41897 | FS211: 376.8219 | FT211: 394.3485 | FU211: 412.75143 | FV211: 150.72876 | FW211: 161.24472 | FX211: 174.38967 | FY211: 185.78196 | FZ211: 196.29792 | GA211: 207.69021 | GB211: 218.20617 | GC211: 229.59846 | GD211: 199.80324 | GE211: 214.70085 | GF211: 230.47479 | GG211: 246.24873 | GH211: 261.14634 | GI211: 276.04395 | GJ211: 290.94156 | GK211: 306.7155 | GL211: 179.64765 | GM211: 191.03994 | GN211: 202.43223 | GO211: 214.70085 | GP211: 226.96947 | GQ211: 238.36176 | GR211: 251.50671 | GS211: 263.77533 | GT211: =GT189*1.07 -> 231.35112 | GU211: 248.87772 | GV211: 265.52799 | GW211: 282.17826 | GX211: 299.70486 | GY211: 316.35513 | GZ211: 333.0054 | HA211: 349.65567 | HB211: 200.67957 | HC211: 212.94819 | HD211: 226.09314 | HE211: 238.36176 | HF211: 250.63038 | HG211: 263.77533 | HH211: 275.16762 | HI211: 288.31257 | HJ211: 263.77533 | HK211: 280.4256 | HL211: 297.07587 | HM211: 314.60247 | HN211: 330.37641 | HO211: 347.90301 | HP211: 365.42961 | HQ211: 382.07988
... 3 more rows
